Workbook

Sheet Input and Output
B7: This tool was developed within Subtask A "Integrated Energy System" of IEA SHC Task 64 "Solar Process Heat". The underlying database and methodology is described in the Deliverable D.A1 "Reference applications for renewable heat". It can be used to define an annual heat load profile with a daily resolution for industrial consumers.
B8: How to use this tool? Enter all required information to the yellow marked cells. Choose from four possible clusters for working days (wd) and five possible clusters for weekends and holidays (wknd). The respective location can be chosen by inserting an annual ambient temperature profile. The dependency of daily heat demand on ambient temperature is increasing from clusters 0 to 3 or 0 to 4 (see Figure 1).
B27: Enter load profile parameters.
B28: wd cluster | C28: 2
B29: wknd cluster | C29: 3
B30: Qyear [MWh/a] | C30: 300
B31: Year | C31: 2016
B33: Enter an annual ambient temperature profile. | E33: Results
B34: Day | C34: Mean daily ambient temperature in °C | E34: Qnorm,day in - | F34: Qday in MWh/d
B35: =Calculation!A2 -> 2016-01-01 | C35: 4.6 | E35: =Calculation!K2 -> 0.9648179921 | F35: =Calculation!L2 -> 1.036157334
B36: =Calculation!A3 -> 2016-01-02 | C36: 1.8 | E36: =Calculation!K3 -> 1.175688135 | F36: =Calculation!L3 -> 1.262619369
B37: =Calculation!A4 -> 2016-01-03 | C37: 0.7 | E37: =Calculation!K4 -> 1.704749487 | F37: =Calculation!L4 -> 1.830799901
B38: =Calculation!A5 -> 2016-01-04 | C38: 0.1 | E38: =Calculation!K5 -> 1.762340339 | F38: =Calculation!L5 -> 1.892649062
B39: =Calculation!A6 -> 2016-01-05 | C39: 3.8 | E39: =Calculation!K6 -> 1.407196752 | F39: =Calculation!L6 -> 1.511245901
B40: =Calculation!A7 -> 2016-01-06 | C40: 1.8 | E40: =Calculation!K7 -> 1.599166258 | F40: =Calculation!L7 -> 1.717409772
B41: =Calculation!A8 -> 2016-01-07 | C41: 3.1 | E41: =Calculation!K8 -> 1.474386079 | F41: =Calculation!L8 -> 1.583403256
B42: =Calculation!A9 -> 2016-01-08 | C42: 4.3 | E42: =Calculation!K9 -> 0.9874112217 | F42: =Calculation!L9 -> 1.060421124
B43: =Calculation!A10 -> 2016-01-09 | C43: 1 | E43: =Calculation!K10 -> 1.235936747 | F43: =Calculation!L10 -> 1.327322807
B44: =Calculation!A11 -> 2016-01-10 | C44: 5.6 | E44: =Calculation!K11 -> 1.234424196 | F44: =Calculation!L11 -> 1.325698417
B45: =Calculation!A12 -> 2016-01-11 | C45: 4.5 | E45: =Calculation!K12 -> 1.340007425 | F45: =Calculation!L12 -> 1.439088546
B46: =Calculation!A13 -> 2016-01-12 | C46: 4.8 | E46: =Calculation!K13 -> 1.311211999 | F46: =Calculation!L13 -> 1.408163965
B47: =Calculation!A14 -> 2016-01-13 | C47: 3.8 | E47: =Calculation!K14 -> 1.407196752 | F47: =Calculation!L14 -> 1.511245901
B48: =Calculation!A15 -> 2016-01-14 | C48: 2 | E48: =Calculation!K15 -> 1.579969308 | F48: =Calculation!L15 -> 1.696793385
B49: =Calculation!A16 -> 2016-01-15 | C49: 1.5 | E49: =Calculation!K16 -> 1.198281365 | F49: =Calculation!L16 -> 1.286883158
B50: =Calculation!A17 -> 2016-01-16 | C50: 0.4 | E50: =Calculation!K17 -> 1.281123207 | F50: =Calculation!L17 -> 1.375850386
B51: =Calculation!A18 -> 2016-01-17 | C51: -1.6 | E51: =Calculation!K18 -> 1.925514419 | F51: =Calculation!L18 -> 2.067888353
B52: =Calculation!A19 -> 2016-01-18 | C52: -5.3 | E52: =Calculation!K19 -> 2.280658006 | F52: =Calculation!L19 -> 2.449291514
B53: =Calculation!A20 -> 2016-01-19 | C53: -7.3 | E53: =Calculation!K20 -> 2.472627513 | F53: =Calculation!L20 -> 2.655455385
B54: =Calculation!A21 -> 2016-01-20 | C54: -3.3 | E54: =Calculation!K21 -> 2.0886885 | F54: =Calculation!L21 -> 2.243127643
B55: =Calculation!A22 -> 2016-01-21 | C55: -4.2 | E55: =Calculation!K22 -> 2.175074778 | F55: =Calculation!L22 -> 2.335901385
B56: =Calculation!A23 -> 2016-01-22 | C56: -6.4 | E56: =Calculation!K23 -> 1.793236411 | F56: =Calculation!L23 -> 1.925829612
B57: =Calculation!A24 -> 2016-01-23 | C57: 1 | E57: =Calculation!K24 -> 1.235936747 | F57: =Calculation!L24 -> 1.327322807
B58: =Calculation!A25 -> 2016-01-24 | C58: 3.4 | E58: =Calculation!K25 -> 1.445590653 | F58: =Calculation!L25 -> 1.552478675
B59: =Calculation!A26 -> 2016-01-25 | C59: 6.5 | E59: =Calculation!K26 -> 1.148037918 | F59: =Calculation!L26 -> 1.232924675
B60: =Calculation!A27 -> 2016-01-26 | C60: 7.7 | E60: =Calculation!K27 -> 1.032856215 | F60: =Calculation!L27 -> 1.109226352
B61: =Calculation!A28 -> 2016-01-27 | C61: 9.4 | E61: =Calculation!K28 -> 0.8696821341 | F61: =Calculation!L28 -> 0.9339870621
B62: =Calculation!A29 -> 2016-01-28 | C62: 7.3 | E62: =Calculation!K29 -> 1.071250116 | F62: =Calculation!L29 -> 1.150459127
B63: =Calculation!A30 -> 2016-01-29 | C63: 4.9 | E63: =Calculation!K30 -> 0.9422247625 | F63: =Calculation!L30 -> 1.011893545
B64: =Calculation!A31 -> 2016-01-30 | C64: 6.1 | E64: =Calculation!K31 -> 0.851851844 | F64: =Calculation!L31 -> 0.9148383874
B65: =Calculation!A32 -> 2016-01-31 | C65: 3.9 | E65: =Calculation!K32 -> 1.397598277 | F65: =Calculation!L32 -> 1.500937707
B66: =Calculation!A33 -> 2016-02-01 | C66: 10.1 | E66: =Calculation!K33 -> 0.8024928068 | F66: =Calculation!L33 -> 0.8618297072
B67: =Calculation!A34 -> 2016-02-02 | C67: 8.3 | E67: =Calculation!K34 -> 0.9752653626 | F67: =Calculation!L34 -> 1.047377191
B68: =Calculation!A35 -> 2016-02-03 | C68: 4.4 | E68: =Calculation!K35 -> 1.3496059 | F68: =Calculation!L35 -> 1.44939674
B69: =Calculation!A36 -> 2016-02-04 | C69: 2.7 | E69: =Calculation!K36 -> 1.512779981 | F69: =Calculation!L36 -> 1.62463603
B70: =Calculation!A37 -> 2016-02-05 | C70: 4.4 | E70: =Calculation!K37 -> 0.9798801451 | F70: =Calculation!L37 -> 1.052333194
B71: =Calculation!A38 -> 2016-02-06 | C71: 8.5 | E71: =Calculation!K38 -> 0.6711060072 | F71: =Calculation!L38 -> 0.7207280722
B72: =Calculation!A39 -> 2016-02-07 | C72: 8.2 | E72: =Calculation!K39 -> 0.9848638379 | F72: =Calculation!L39 -> 1.057685385
B73: =Calculation!A40 -> 2016-02-08 | C73: 6.9 | E73: =Calculation!K40 -> 1.109644017 | F73: =Calculation!L40 -> 1.191691901
B74: =Calculation!A41 -> 2016-02-09 | C74: 6.4 | E74: =Calculation!K41 -> 1.157636394 | F74: =Calculation!L41 -> 1.243232869
B75: =Calculation!A42 -> 2016-02-10 | C75: 3.2 | E75: =Calculation!K42 -> 1.464787604 | F75: =Calculation!L42 -> 1.573095062
B76: =Calculation!A43 -> 2016-02-11 | C76: 3.7 | E76: =Calculation!K43 -> 1.416795227 | F76: =Calculation!L43 -> 1.521554094
B77: =Calculation!A44 -> 2016-02-12 | C77: 2.7 | E77: =Calculation!K44 -> 1.107908446 | F77: =Calculation!L44 -> 1.189828001
B78: =Calculation!A45 -> 2016-02-13 | C78: 2 | E78: =Calculation!K45 -> 1.160625982 | F78: =Calculation!L45 -> 1.246443509
B79: =Calculation!A46 -> 2016-02-14 | C79: 4 | E79: =Calculation!K46 -> 1.387999801 | F79: =Calculation!L46 -> 1.490629514
B80: =Calculation!A47 -> 2016-02-15 | C80: 1.5 | E80: =Calculation!K47 -> 1.627961684 | F80: =Calculation!L47 -> 1.748334352
B81: =Calculation!A48 -> 2016-02-16 | C81: -1 | E81: =Calculation!K48 -> 1.867923567 | F81: =Calculation!L48 -> 2.006039191
B82: =Calculation!A49 -> 2016-02-17 | C82: 0.5 | E82: =Calculation!K49 -> 1.723946438 | F82: =Calculation!L49 -> 1.851416288
B83: =Calculation!A50 -> 2016-02-18 | C83: 1.8 | E83: =Calculation!K50 -> 1.599166258 | F83: =Calculation!L50 -> 1.717409772
B84: =Calculation!A51 -> 2016-02-19 | C84: 1 | E84: =Calculation!K51 -> 1.235936747 | F84: =Calculation!L51 -> 1.327322807
B85: =Calculation!A52 -> 2016-02-20 | C85: 3.3 | E85: =Calculation!K52 -> 1.062721987 | F85: =Calculation!L52 -> 1.141300422
B86: =Calculation!A53 -> 2016-02-21 | C86: 10 | E86: =Calculation!K53 -> 0.8120912822 | F86: =Calculation!L53 -> 0.8721379008
B87: =Calculation!A54 -> 2016-02-22 | C87: 7.8 | E87: =Calculation!K54 -> 1.023257739 | F87: =Calculation!L54 -> 1.098918159
B88: =Calculation!A55 -> 2016-02-23 | C88: 3.9 | E88: =Calculation!K55 -> 1.397598277 | F88: =Calculation!L55 -> 1.500937707
B89: =Calculation!A56 -> 2016-02-24 | C89: 2.8 | E89: =Calculation!K56 -> 1.503181505 | F89: =Calculation!L56 -> 1.614327836
B90: =Calculation!A57 -> 2016-02-25 | C90: 0.7 | E90: =Calculation!K57 -> 1.704749487 | F90: =Calculation!L57 -> 1.830799901
B91: =Calculation!A58 -> 2016-02-26 | C91: 1.3 | E91: =Calculation!K58 -> 1.213343518 | F91: =Calculation!L58 -> 1.303059018
B92: =Calculation!A59 -> 2016-02-27 | C92: 1.6 | E92: =Calculation!K59 -> 1.190750288 | F92: =Calculation!L59 -> 1.278795228
B93: =Calculation!A60 -> 2016-02-28 | C93: 1.3 | E93: =Calculation!K60 -> 1.647158635 | F93: =Calculation!L60 -> 1.76895074
B94: =Calculation!A61 -> 2016-02-29 | C94: 1.9 | E94: =Calculation!K61 -> 1.589567783 | F94: =Calculation!L61 -> 1.707101578
B95: =Calculation!A62 -> 2016-03-01 | C95: 0.9 | E95: =Calculation!K62 -> 1.685552536 | F95: =Calculation!L62 -> 1.810183514
B96: =Calculation!A63 -> 2016-03-02 | C96: 4 | E96: =Calculation!K63 -> 1.387999801 | F96: =Calculation!L63 -> 1.490629514
B97: =Calculation!A64 -> 2016-03-03 | C97: 3.9 | E97: =Calculation!K64 -> 1.397598277 | F97: =Calculation!L64 -> 1.500937707
B98: =Calculation!A65 -> 2016-03-04 | C98: 3.4 | E98: =Calculation!K65 -> 1.05519091 | F98: =Calculation!L65 -> 1.133212492
B99: =Calculation!A66 -> 2016-03-05 | C99: 4.8 | E99: =Calculation!K66 -> 0.949755839 | F99: =Calculation!L66 -> 1.019981475
B100: =Calculation!A67 -> 2016-03-06 | C100: 2.9 | E100: =Calculation!K67 -> 1.49358303 | F100: =Calculation!L67 -> 1.604019643
B101: =Calculation!A68 -> 2016-03-07 | C101: 1.7 | E101: =Calculation!K68 -> 1.608764734 | F101: =Calculation!L68 -> 1.727717965
B102: =Calculation!A69 -> 2016-03-08 | C102: 1.3 | E102: =Calculation!K69 -> 1.647158635 | F102: =Calculation!L69 -> 1.76895074
B103: =Calculation!A70 -> 2016-03-09 | C103: 3.4 | E103: =Calculation!K70 -> 1.445590653 | F103: =Calculation!L70 -> 1.552478675
B104: =Calculation!A71 -> 2016-03-10 | C104: 3.4 | E104: =Calculation!K71 -> 1.445590653 | F104: =Calculation!L71 -> 1.552478675
B105: =Calculation!A72 -> 2016-03-11 | C105: 4.9 | E105: =Calculation!K72 -> 0.9422247625 | F105: =Calculation!L72 -> 1.011893545
B106: =Calculation!A73 -> 2016-03-12 | C106: 3.4 | E106: =Calculation!K73 -> 1.05519091 | F106: =Calculation!L73 -> 1.133212492
B107: =Calculation!A74 -> 2016-03-13 | C107: 3.4 | E107: =Calculation!K74 -> 1.445590653 | F107: =Calculation!L74 -> 1.552478675
B108: =Calculation!A75 -> 2016-03-14 | C108: 4.6 | E108: =Calculation!K75 -> 1.330408949 | F108: =Calculation!L75 -> 1.428780352
B109: =Calculation!A76 -> 2016-03-15 | C109: 4.1 | E109: =Calculation!K76 -> 1.378401326 | F109: =Calculation!L76 -> 1.48032132
B110: =Calculation!A77 -> 2016-03-16 | C110: 4.9 | E110: =Calculation!K77 -> 1.301613523 | F110: =Calculation!L77 -> 1.397855772
B111: =Calculation!A78 -> 2016-03-17 | C111: 6.6 | E111: =Calculation!K78 -> 1.138439443 | F111: =Calculation!L78 -> 1.222616481
B112: =Calculation!A79 -> 2016-03-18 | C112: 3.4 | E112: =Calculation!K79 -> 1.05519091 | F112: =Calculation!L79 -> 1.133212492
B113: =Calculation!A80 -> 2016-03-19 | C113: 4.9 | E113: =Calculation!K80 -> 0.9422247625 | F113: =Calculation!L80 -> 1.011893545
B114: =Calculation!A81 -> 2016-03-20 | C114: 5.8 | E114: =Calculation!K81 -> 1.215227246 | F114: =Calculation!L81 -> 1.30508203
B115: =Calculation!A82 -> 2016-03-21 | C115: 6.3 | E115: =Calculation!K82 -> 1.167234869 | F115: =Calculation!L82 -> 1.253541062
B116: =Calculation!A83 -> 2016-03-22 | C116: 6.2 | E116: =Calculation!K83 -> 1.176833344 | F116: =Calculation!L83 -> 1.263849256
B117: =Calculation!A84 -> 2016-03-23 | C117: 6.5 | E117: =Calculation!K84 -> 1.148037918 | F117: =Calculation!L84 -> 1.232924675
B118: =Calculation!A85 -> 2016-03-24 | C118: 6.3 | E118: =Calculation!K85 -> 1.167234869 | F118: =Calculation!L85 -> 1.253541062
B119: =Calculation!A86 -> 2016-03-25 | C119: 6 | E119: =Calculation!K86 -> 0.8593829206 | F119: =Calculation!L86 -> 0.9229263172
B120: =Calculation!A87 -> 2016-03-26 | C120: 9 | E120: =Calculation!K87 -> 0.6334506245 | F120: =Calculation!L87 -> 0.6802884232
B121: =Calculation!A88 -> 2016-03-27 | C121: 8.6 | E121: =Calculation!K88 -> 0.9464699366 | F121: =Calculation!L88 -> 1.01645261
B122: =Calculation!A89 -> 2016-03-28 | C122: 7.5 | E122: =Calculation!K89 -> 1.052053165 | F122: =Calculation!L89 -> 1.12984274
B123: =Calculation!A90 -> 2016-03-29 | C123: 7.2 | E123: =Calculation!K90 -> 1.080848591 | F123: =Calculation!L90 -> 1.16076732
B124: =Calculation!A91 -> 2016-03-30 | C124: 8.6 | E124: =Calculation!K91 -> 0.9464699366 | F124: =Calculation!L91 -> 1.01645261
B125: =Calculation!A92 -> 2016-03-31 | C125: 6.1 | E125: =Calculation!K92 -> 1.18643182 | F125: =Calculation!L92 -> 1.274157449
B126: =Calculation!A93 -> 2016-04-01 | C126: 7.6 | E126: =Calculation!K93 -> 0.738885696 | F126: =Calculation!L93 -> 0.7935194404
B127: =Calculation!A94 -> 2016-04-02 | C127: 10 | E127: =Calculation!K94 -> 0.5581398591 | F127: =Calculation!L94 -> 0.5994091253
B128: =Calculation!A95 -> 2016-04-03 | C128: 14.1 | E128: =Calculation!K95 -> 0.418553794 | F128: =Calculation!L95 -> 0.4495019652
B129: =Calculation!A96 -> 2016-04-04 | C129: 14.9 | E129: =Calculation!K96 -> 0.3417659915 | F129: =Calculation!L96 -> 0.3670364169
B130: =Calculation!A97 -> 2016-04-05 | C130: 12.4 | E130: =Calculation!K97 -> 0.5817278745 | F130: =Calculation!L97 -> 0.6247412556
B131: =Calculation!A98 -> 2016-04-06 | C131: 11.1 | E131: =Calculation!K98 -> 0.7065080536 | F131: =Calculation!L98 -> 0.7587477717
B132: =Calculation!A99 -> 2016-04-07 | C132: 9 | E132: =Calculation!K99 -> 0.9080760354 | F132: =Calculation!L99 -> 0.9752198363
B133: =Calculation!A100 -> 2016-04-08 | C133: 7.6 | E133: =Calculation!K100 -> 0.738885696 | F133: =Calculation!L100 -> 0.7935194404
B134: =Calculation!A101 -> 2016-04-09 | C134: 9.5 | E134: =Calculation!K101 -> 0.5957952418 | F134: =Calculation!L101 -> 0.6398487742
B135: =Calculation!A102 -> 2016-04-10 | C135: 11.9 | E135: =Calculation!K102 -> 0.6297202511 | F135: =Calculation!L102 -> 0.6762822233
B136: =Calculation!A103 -> 2016-04-11 | C136: 9.9 | E136: =Calculation!K103 -> 0.8216897575 | F136: =Calculation!L103 -> 0.8824460943
B137: =Calculation!A104 -> 2016-04-12 | C137: 10.7 | E137: =Calculation!K104 -> 0.7449019549 | F137: =Calculation!L104 -> 0.7999805459
B138: =Calculation!A105 -> 2016-04-13 | C138: 10 | E138: =Calculation!K105 -> 0.8120912822 | F138: =Calculation!L105 -> 0.8721379008
B139: =Calculation!A106 -> 2016-04-14 | C139: 11.5 | E139: =Calculation!K106 -> 0.6681141524 | F139: =Calculation!L106 -> 0.7175149975
B140: =Calculation!A107 -> 2016-04-15 | C140: 11.4 | E140: =Calculation!K107 -> 0.4527047876 | F140: =Calculation!L107 -> 0.4861781081
B141: =Calculation!A108 -> 2016-04-16 | C141: 10.9 | E141: =Calculation!K108 -> 0.4903601703 | F141: =Calculation!L108 -> 0.5266177571
B142: =Calculation!A109 -> 2016-04-17 | C142: 8 | E142: =Calculation!K109 -> 1.004060789 | F142: =Calculation!L109 -> 1.078301772
B143: =Calculation!A110 -> 2016-04-18 | C143: 8.1 | E143: =Calculation!K110 -> 0.9944623132 | F143: =Calculation!L110 -> 1.067993578
B144: =Calculation!A111 -> 2016-04-19 | C144: 10 | E144: =Calculation!K111 -> 0.8120912822 | F144: =Calculation!L111 -> 0.8721379008
B145: =Calculation!A112 -> 2016-04-20 | C145: 8.6 | E145: =Calculation!K112 -> 0.9464699366 | F145: =Calculation!L112 -> 1.01645261
B146: =Calculation!A113 -> 2016-04-21 | C146: 11.7 | E146: =Calculation!K113 -> 0.6489172017 | F146: =Calculation!L113 -> 0.6968986104
B147: =Calculation!A114 -> 2016-04-22 | C147: 10.3 | E147: =Calculation!K114 -> 0.5355466295 | F147: =Calculation!L114 -> 0.5751453359
B148: =Calculation!A115 -> 2016-04-23 | C148: 6.1 | E148: =Calculation!K115 -> 0.851851844 | F148: =Calculation!L115 -> 0.9148383874
B149: =Calculation!A116 -> 2016-04-24 | C149: 3.4 | E149: =Calculation!K116 -> 1.445590653 | F149: =Calculation!L116 -> 1.552478675
B150: =Calculation!A117 -> 2016-04-25 | C150: 4.3 | E150: =Calculation!K117 -> 1.359204375 | F150: =Calculation!L117 -> 1.459704933
B151: =Calculation!A118 -> 2016-04-26 | C151: 4.6 | E151: =Calculation!K118 -> 1.330408949 | F151: =Calculation!L118 -> 1.428780352
B152: =Calculation!A119 -> 2016-04-27 | C152: 4.6 | E152: =Calculation!K119 -> 1.330408949 | F152: =Calculation!L119 -> 1.428780352
B153: =Calculation!A120 -> 2016-04-28 | C153: 5.9 | E153: =Calculation!K120 -> 1.20562877 | F153: =Calculation!L120 -> 1.294773836
B154: =Calculation!A121 -> 2016-04-29 | C154: 7.6 | E154: =Calculation!K121 -> 0.738885696 | F154: =Calculation!L121 -> 0.7935194404
B155: =Calculation!A122 -> 2016-04-30 | C155: 8.9 | E155: =Calculation!K122 -> 0.640981701 | F155: =Calculation!L122 -> 0.688376353
B156: =Calculation!A123 -> 2016-05-01 | C156: 11.7 | E156: =Calculation!K123 -> 0.6489172017 | F156: =Calculation!L123 -> 0.6968986104
B157: =Calculation!A124 -> 2016-05-02 | C157: 14.3 | E157: =Calculation!K124 -> 0.3993568434 | F157: =Calculation!L124 -> 0.4288855781
B158: =Calculation!A125 -> 2016-05-03 | C158: 10 | E158: =Calculation!K125 -> 0.8120912822 | F158: =Calculation!L125 -> 0.8721379008
B159: =Calculation!A126 -> 2016-05-04 | C159: 9.6 | E159: =Calculation!K126 -> 0.8504851834 | F159: =Calculation!L126 -> 0.913370675
B160: =Calculation!A127 -> 2016-05-05 | C160: 12.6 | E160: =Calculation!K127 -> 0.5625309238 | F160: =Calculation!L127 -> 0.6041248685
B161: =Calculation!A128 -> 2016-05-06 | C161: 17.9 | E161: =Calculation!K128 -> 0.1205013717 | F161: =Calculation!L128 -> 0.1294113305
B162: =Calculation!A129 -> 2016-05-07 | C162: 19.5 | E162: =Calculation!K129 -> 0.1048818531 | F162: =Calculation!L129 -> 0.1126368934
B163: =Calculation!A130 -> 2016-05-08 | C163: 19.2 | E163: =Calculation!K130 -> 0.1620707894 | F163: =Calculation!L130 -> 0.1740544211
B164: =Calculation!A131 -> 2016-05-09 | C164: 19.6 | E164: =Calculation!K131 -> 0.1569682076 | F164: =Calculation!L131 -> 0.1685745508
B165: =Calculation!A132 -> 2016-05-10 | C165: 19.9 | E165: =Calculation!K132 -> 0.1531412713 | F165: =Calculation!L132 -> 0.164464648
B166: =Calculation!A133 -> 2016-05-11 | C166: 19.4 | E166: =Calculation!K133 -> 0.1595194985 | F166: =Calculation!L133 -> 0.1713144859
B167: =Calculation!A134 -> 2016-05-12 | C167: 19.8 | E167: =Calculation!K134 -> 0.1544169167 | F167: =Calculation!L134 -> 0.1658346156
B168: =Calculation!A135 -> 2016-05-13 | C168: 17.9 | E168: =Calculation!K135 -> 0.1205013717 | F168: =Calculation!L135 -> 0.1294113305
B169: =Calculation!A136 -> 2016-05-14 | C169: 9.3 | E169: =Calculation!K136 -> 0.6108573949 | F169: =Calculation!L136 -> 0.6560246338
B170: =Calculation!A137 -> 2016-05-15 | C170: 8 | E170: =Calculation!K137 -> 1.004060789 | F170: =Calculation!L137 -> 1.078301772
B171: =Calculation!A138 -> 2016-05-16 | C171: 9.3 | E171: =Calculation!K138 -> 0.8792806094 | F171: =Calculation!L138 -> 0.9442952556
B172: =Calculation!A139 -> 2016-05-17 | C172: 11.5 | E172: =Calculation!K139 -> 0.6681141524 | F172: =Calculation!L139 -> 0.7175149975
B173: =Calculation!A140 -> 2016-05-18 | C173: 14.1 | E173: =Calculation!K140 -> 0.418553794 | F173: =Calculation!L140 -> 0.4495019652
B174: =Calculation!A141 -> 2016-05-19 | C174: 13.6 | E174: =Calculation!K141 -> 0.4665461706 | F174: =Calculation!L141 -> 0.501042933
B175: =Calculation!A142 -> 2016-05-20 | C175: 14.6 | E175: =Calculation!K142 -> 0.2117103384 | F175: =Calculation!L142 -> 0.2273643545
B176: =Calculation!A143 -> 2016-05-21 | C176: 17.5 | E176: =Calculation!K143 -> 0.1244062513 | F176: =Calculation!L143 -> 0.1336049398
B177: =Calculation!A144 -> 2016-05-22 | C177: 20 | E177: =Calculation!K144 -> 0.1518656258 | F177: =Calculation!L144 -> 0.1630946804
B178: =Calculation!A145 -> 2016-05-23 | C178: 15.5 | E178: =Calculation!K145 -> 0.2841751396 | F178: =Calculation!L145 -> 0.3051872556
B179: =Calculation!A146 -> 2016-05-24 | C179: 11.1 | E179: =Calculation!K146 -> 0.7065080536 | F179: =Calculation!L146 -> 0.7587477717
B180: =Calculation!A147 -> 2016-05-25 | C180: 12.7 | E180: =Calculation!K147 -> 0.5529324485 | F180: =Calculation!L147 -> 0.5938166749
B181: =Calculation!A148 -> 2016-05-26 | C181: 16.3 | E181: =Calculation!K148 -> 0.207387337 | F181: =Calculation!L148 -> 0.2227217072
B182: =Calculation!A149 -> 2016-05-27 | C182: 17.2 | E182: =Calculation!K149 -> 0.1273349111 | F182: =Calculation!L149 -> 0.1367501468
B183: =Calculation!A150 -> 2016-05-28 | C183: 18.8 | E183: =Calculation!K150 -> 0.1117153925 | F183: =Calculation!L150 -> 0.1199757096
B184: =Calculation!A151 -> 2016-05-29 | C184: 19.1 | E184: =Calculation!K151 -> 0.1633464348 | F184: =Calculation!L151 -> 0.1754243887
B185: =Calculation!A152 -> 2016-05-30 | C185: 18.3 | E185: =Calculation!K152 -> 0.1735515983 | F185: =Calculation!L152 -> 0.1863841294
B186: =Calculation!A153 -> 2016-05-31 | C186: 18.8 | E186: =Calculation!K153 -> 0.1671733711 | F186: =Calculation!L153 -> 0.1795342915
B187: =Calculation!A154 -> 2016-06-01 | C187: 17 | E187: =Calculation!K154 -> 0.190134989 | F187: =Calculation!L154 -> 0.2041937081
B188: =Calculation!A155 -> 2016-06-02 | C188: 17.9 | E188: =Calculation!K155 -> 0.1786541801 | F188: =Calculation!L155 -> 0.1918639998
B189: =Calculation!A156 -> 2016-06-03 | C189: 18.8 | E189: =Calculation!K156 -> 0.1117153925 | F189: =Calculation!L156 -> 0.1199757096
B190: =Calculation!A157 -> 2016-06-04 | C190: 20.8 | E190: =Calculation!K157 -> 0.09219099421 | F190: =Calculation!L157 -> 0.09900766321
B191: =Calculation!A158 -> 2016-06-05 | C191: 21.2 | E191: =Calculation!K158 -> 0.1365578806 | F191: =Calculation!L158 -> 0.1466550693
B192: =Calculation!A159 -> 2016-06-06 | C192: 22.5 | E192: =Calculation!K159 -> 0.1199744899 | F192: =Calculation!L159 -> 0.1288454907
B193: =Calculation!A160 -> 2016-06-07 | C193: 22.3 | E193: =Calculation!K160 -> 0.1225257807 | F193: =Calculation!L160 -> 0.1315854259
B194: =Calculation!A161 -> 2016-06-08 | C194: 20 | E194: =Calculation!K161 -> 0.1518656258 | F194: =Calculation!L161 -> 0.1630946804
B195: =Calculation!A162 -> 2016-06-09 | C195: 15.2 | E195: =Calculation!K162 -> 0.3129705655 | F195: =Calculation!L162 -> 0.3361118362
B196: =Calculation!A163 -> 2016-06-10 | C196: 17.3 | E196: =Calculation!K163 -> 0.1263586912 | F196: =Calculation!L163 -> 0.1357017445
B197: =Calculation!A164 -> 2016-06-11 | C197: 17.8 | E197: =Calculation!K164 -> 0.1214775916 | F197: =Calculation!L164 -> 0.1304597329
B198: =Calculation!A165 -> 2016-06-12 | C198: 16.7 | E198: =Calculation!K165 -> 0.1939619254 | F198: =Calculation!L165 -> 0.2083036108
B199: =Calculation!A166 -> 2016-06-13 | C199: 15.7 | E199: =Calculation!K166 -> 0.2649781889 | F199: =Calculation!L166 -> 0.2845708685
B200: =Calculation!A167 -> 2016-06-14 | C200: 16.4 | E200: =Calculation!K167 -> 0.1977888617 | F200: =Calculation!L167 -> 0.2124135136
B201: =Calculation!A168 -> 2016-06-15 | C201: 15.5 | E201: =Calculation!K168 -> 0.2841751396 | F201: =Calculation!L168 -> 0.3051872556
B202: =Calculation!A169 -> 2016-06-16 | C202: 14.8 | E202: =Calculation!K169 -> 0.3513644668 | F202: =Calculation!L169 -> 0.3773446104
B203: =Calculation!A170 -> 2016-06-17 | C203: 16 | E203: =Calculation!K170 -> 0.13904955 | F203: =Calculation!L170 -> 0.1493309747
B204: =Calculation!A171 -> 2016-06-18 | C204: 16.4 | E204: =Calculation!K171 -> 0.1351446704 | F204: =Calculation!L171 -> 0.1451373654
B205: =Calculation!A172 -> 2016-06-19 | C205: 14.9 | E205: =Calculation!K172 -> 0.3417659915 | F205: =Calculation!L172 -> 0.3670364169
B206: =Calculation!A173 -> 2016-06-20 | C206: 15.7 | E206: =Calculation!K173 -> 0.2649781889 | F206: =Calculation!L173 -> 0.2845708685
B207: =Calculation!A174 -> 2016-06-21 | C207: 19.1 | E207: =Calculation!K174 -> 0.1633464348 | F207: =Calculation!L174 -> 0.1754243887
B208: =Calculation!A175 -> 2016-06-22 | C208: 22.2 | E208: =Calculation!K175 -> 0.1238014262 | F208: =Calculation!L175 -> 0.1329553934
B209: =Calculation!A176 -> 2016-06-23 | C209: 26.3 | E209: =Calculation!K176 -> 0.07149996315 | F209: =Calculation!L176 -> 0.0767867223
B210: =Calculation!A177 -> 2016-06-24 | C210: 24.4 | E210: =Calculation!K177 -> 0.05704707732 | F210: =Calculation!L177 -> 0.06126517961
B211: =Calculation!A178 -> 2016-06-25 | C211: 19.2 | E211: =Calculation!K178 -> 0.1078105128 | F211: =Calculation!L178 -> 0.1157821004
B212: =Calculation!A179 -> 2016-06-26 | C212: 17.6 | E212: =Calculation!K179 -> 0.1824811164 | F212: =Calculation!L179 -> 0.1959739025
B213: =Calculation!A180 -> 2016-06-27 | C213: 16.5 | E213: =Calculation!K180 -> 0.1965132162 | F213: =Calculation!L180 -> 0.211043546
B214: =Calculation!A181 -> 2016-06-28 | C214: 18.6 | E214: =Calculation!K181 -> 0.169724662 | F214: =Calculation!L181 -> 0.1822742267
B215: =Calculation!A182 -> 2016-06-29 | C215: 20.5 | E215: =Calculation!K182 -> 0.1454873986 | F215: =Calculation!L182 -> 0.1562448425
B216: =Calculation!A183 -> 2016-06-30 | C216: 19.1 | E216: =Calculation!K183 -> 0.1633464348 | F216: =Calculation!L183 -> 0.1754243887
B217: =Calculation!A184 -> 2016-07-01 | C217: 21 | E217: =Calculation!K184 -> 0.09023855438 | F217: =Calculation!L184 -> 0.09691085856
B218: =Calculation!A185 -> 2016-07-02 | C218: 16.6 | E218: =Calculation!K185 -> 0.1331922306 | F218: =Calculation!L185 -> 0.1430405607
B219: =Calculation!A186 -> 2016-07-03 | C219: 15.2 | E219: =Calculation!K186 -> 0.3129705655 | F219: =Calculation!L186 -> 0.3361118362
B220: =Calculation!A187 -> 2016-07-04 | C220: 17.6 | E220: =Calculation!K187 -> 0.1824811164 | F220: =Calculation!L187 -> 0.1959739025
B221: =Calculation!A188 -> 2016-07-05 | C221: 18.4 | E221: =Calculation!K188 -> 0.1722759529 | F221: =Calculation!L188 -> 0.1850141618
B222: =Calculation!A189 -> 2016-07-06 | C222: 16.6 | E222: =Calculation!K189 -> 0.1952375708 | F222: =Calculation!L189 -> 0.2096735784
B223: =Calculation!A190 -> 2016-07-07 | C223: 18.4 | E223: =Calculation!K190 -> 0.1722759529 | F223: =Calculation!L190 -> 0.1850141618
B224: =Calculation!A191 -> 2016-07-08 | C224: 20.6 | E224: =Calculation!K191 -> 0.09414343403 | F224: =Calculation!L191 -> 0.1011044679
B225: =Calculation!A192 -> 2016-07-09 | C225: 20.9 | E225: =Calculation!K192 -> 0.09121477429 | F225: =Calculation!L192 -> 0.09795926088
... 175 more rows

Sheet Calculation
A1: Date | B1: Mean daily ambient Temperature in °C | C1: Weekday | D1: b_h | E1: m_h | F1: b_w | G1: m_w | H1: t_hl | I1: b | J1: m | K1: Qnorm,day in - | L1: Qday in MWh/d
A2: =DATE('Input and Output'!$C$31,1,1) -> 2016-01-01 | B2: ='Input and Output'!C35 -> 4.6 | C2: =WEEKDAY(A2) -> 6 | D2: =IF($C2<6,Lin_parameters_wd!B$9,Lin_parameters_wknd!B$10) -> 1.311247513 | E2: =IF($C2<6,Lin_parameters_wd!C$9,Lin_parameters_wknd!C$10) -> -0.07531076536 | F2: =IF($C2<6,Lin_parameters_wd!D$9,Lin_parameters_wknd!D$10) -> 0.2952447362 | G2: =IF($C2<6,Lin_parameters_wd!E$9,Lin_parameters_wknd!E$10) -> -0.009762199134 | H2: =IF($C2<6,Lin_parameters_wd!F$9,Lin_parameters_wknd!F$10) -> 15.5 | I2: =IF($B2<$H2,$D2,$F2) -> 1.311247513 | J2: =IF($B2<$H2,$E2,$G2) -> -0.07531076536 | K2: =MAX($I2+$J2*$B2,0) -> 0.9648179921 | L2: =$K2*'Input and Output'!$C$30/SUM($K$2:$K$366) -> 1.036157334
A3: =A2+1 -> 2016-01-02 | B3: ='Input and Output'!C36 -> 1.8 | C3: 7 | D3: =IF($C3<6,Lin_parameters_wd!B$9,Lin_parameters_wknd!B$10) -> 1.311247513 | E3: =IF($C3<6,Lin_parameters_wd!C$9,Lin_parameters_wknd!C$10) -> -0.07531076536 | F3: =IF($C3<6,Lin_parameters_wd!D$9,Lin_parameters_wknd!D$10) -> 0.2952447362 | G3: =IF($C3<6,Lin_parameters_wd!E$9,Lin_parameters_wknd!E$10) -> -0.009762199134 | H3: =IF($C3<6,Lin_parameters_wd!F$9,Lin_parameters_wknd!F$10) -> 15.5 | I3: =IF($B3<$H3,$D3,$F3) -> 1.311247513 | J3: =IF($B3<$H3,$E3,$G3) -> -0.07531076536 | K3: =MAX($I3+$J3*$B3,0) -> 1.175688135 | L3: =$K3*'Input and Output'!$C$30/SUM($K$2:$K$366) -> 1.262619369
A4: =A3+1 -> 2016-01-03 | B4: ='Input and Output'!C37 -> 0.7 | C4: 1 | D4: =IF($C4<6,Lin_parameters_wd!B$9,Lin_parameters_wknd!B$10) -> 1.771938814 | E4: =IF($C4<6,Lin_parameters_wd!C$9,Lin_parameters_wknd!C$10) -> -0.0959847532 | F4: =IF($C4<6,Lin_parameters_wd!D$9,Lin_parameters_wknd!D$10) -> 0.4069947138 | G4: =IF($C4<6,Lin_parameters_wd!E$9,Lin_parameters_wknd!E$10) -> -0.0127564544 | H4: =IF($C4<6,Lin_parameters_wd!F$9,Lin_parameters_wknd!F$10) -> 16.4 | I4: 1.771938814 | J4: -0.0959847532 | K4: 1.704749487 | L4: =$K4*'Input and Output'!$C$30/SUM($K$2:$K$366) -> 1.830799901
A5: 2016-01-04 | B5: ='Input and Output'!C38 -> 0.1 | C5: 2 | D5: =IF($C5<6,Lin_parameters_wd!B$9,Lin_parameters_wknd!B$10) -> 1.771938814 | E5: =IF($C5<6,Lin_parameters_wd!C$9,Lin_parameters_wknd!C$10) -> -0.0959847532 | F5: =IF($C5<6,Lin_parameters_wd!D$9,Lin_parameters_wknd!D$10) -> 0.4069947138 | G5: =IF($C5<6,Lin_parameters_wd!E$9,Lin_parameters_wknd!E$10) -> -0.0127564544 | H5: =IF($C5<6,Lin_parameters_wd!F$9,Lin_parameters_wknd!F$10) -> 16.4 | I5: 1.771938814 | J5: -0.0959847532 | K5: 1.762340339 | L5: =$K5*'Input and Output'!$C$30/SUM($K$2:$K$366) -> 1.892649062
A6: 2016-01-05 | B6: ='Input and Output'!C39 -> 3.8 | C6: 3 | D6: =IF($C6<6,Lin_parameters_wd!B$9,Lin_parameters_wknd!B$10) -> 1.771938814 | E6: =IF($C6<6,Lin_parameters_wd!C$9,Lin_parameters_wknd!C$10) -> -0.0959847532 | F6: =IF($C6<6,Lin_parameters_wd!D$9,Lin_parameters_wknd!D$10) -> 0.4069947138 | G6: =IF($C6<6,Lin_parameters_wd!E$9,Lin_parameters_wknd!E$10) -> -0.0127564544 | H6: =IF($C6<6,Lin_parameters_wd!F$9,Lin_parameters_wknd!F$10) -> 16.4 | I6: 1.771938814 | J6: -0.0959847532 | K6: 1.407196752 | L6: =$K6*'Input and Output'!$C$30/SUM($K$2:$K$366) -> 1.511245901
A7: 2016-01-06 | B7: ='Input and Output'!C40 -> 1.8 | C7: 4 | D7: =IF($C7<6,Lin_parameters_wd!B$9,Lin_parameters_wknd!B$10) -> 1.771938814 | E7: =IF($C7<6,Lin_parameters_wd!C$9,Lin_parameters_wknd!C$10) -> -0.0959847532 | F7: =IF($C7<6,Lin_parameters_wd!D$9,Lin_parameters_wknd!D$10) -> 0.4069947138 | G7: =IF($C7<6,Lin_parameters_wd!E$9,Lin_parameters_wknd!E$10) -> -0.0127564544 | H7: =IF($C7<6,Lin_parameters_wd!F$9,Lin_parameters_wknd!F$10) -> 16.4 | I7: 1.771938814 | J7: -0.0959847532 | K7: 1.599166258 | L7: =$K7*'Input and Output'!$C$30/SUM($K$2:$K$366) -> 1.717409772
A8: 2016-01-07 | B8: ='Input and Output'!C41 -> 3.1 | C8: 5 | D8: =IF($C8<6,Lin_parameters_wd!B$9,Lin_parameters_wknd!B$10) -> 1.771938814 | E8: =IF($C8<6,Lin_parameters_wd!C$9,Lin_parameters_wknd!C$10) -> -0.0959847532 | F8: =IF($C8<6,Lin_parameters_wd!D$9,Lin_parameters_wknd!D$10) -> 0.4069947138 | G8: =IF($C8<6,Lin_parameters_wd!E$9,Lin_parameters_wknd!E$10) -> -0.0127564544 | H8: =IF($C8<6,Lin_parameters_wd!F$9,Lin_parameters_wknd!F$10) -> 16.4 | I8: 1.771938814 | J8: -0.0959847532 | K8: 1.474386079 | L8: =$K8*'Input and Output'!$C$30/SUM($K$2:$K$366) -> 1.583403256
A9: 2016-01-08 | B9: ='Input and Output'!C42 -> 4.3 | C9: 6 | D9: =IF($C9<6,Lin_parameters_wd!B$9,Lin_parameters_wknd!B$10) -> 1.311247513 | E9: =IF($C9<6,Lin_parameters_wd!C$9,Lin_parameters_wknd!C$10) -> -0.07531076536 | F9: =IF($C9<6,Lin_parameters_wd!D$9,Lin_parameters_wknd!D$10) -> 0.2952447362 | G9: =IF($C9<6,Lin_parameters_wd!E$9,Lin_parameters_wknd!E$10) -> -0.009762199134 | H9: =IF($C9<6,Lin_parameters_wd!F$9,Lin_parameters_wknd!F$10) -> 15.5 | I9: 1.311247513 | J9: -0.07531076536 | K9: 0.9874112217 | L9: =$K9*'Input and Output'!$C$30/SUM($K$2:$K$366) -> 1.060421124
A10: 2016-01-09 | B10: ='Input and Output'!C43 -> 1 | C10: 7 | D10: =IF($C10<6,Lin_parameters_wd!B$9,Lin_parameters_wknd!B$10) -> 1.311247513 | E10: =IF($C10<6,Lin_parameters_wd!C$9,Lin_parameters_wknd!C$10) -> -0.07531076536 | F10: =IF($C10<6,Lin_parameters_wd!D$9,Lin_parameters_wknd!D$10) -> 0.2952447362 | G10: =IF($C10<6,Lin_parameters_wd!E$9,Lin_parameters_wknd!E$10) -> -0.009762199134 | H10: =IF($C10<6,Lin_parameters_wd!F$9,Lin_parameters_wknd!F$10) -> 15.5 | I10: 1.311247513 | J10: -0.07531076536 | K10: 1.235936747 | L10: =$K10*'Input and Output'!$C$30/SUM($K$2:$K$366) -> 1.327322807
A11: 2016-01-10 | B11: ='Input and Output'!C44 -> 5.6 | C11: 1 | D11: =IF($C11<6,Lin_parameters_wd!B$9,Lin_parameters_wknd!B$10) -> 1.771938814 | E11: =IF($C11<6,Lin_parameters_wd!C$9,Lin_parameters_wknd!C$10) -> -0.0959847532 | F11: =IF($C11<6,Lin_parameters_wd!D$9,Lin_parameters_wknd!D$10) -> 0.4069947138 | G11: =IF($C11<6,Lin_parameters_wd!E$9,Lin_parameters_wknd!E$10) -> -0.0127564544 | H11: =IF($C11<6,Lin_parameters_wd!F$9,Lin_parameters_wknd!F$10) -> 16.4 | I11: 1.771938814 | J11: -0.0959847532 | K11: 1.234424196 | L11: =$K11*'Input and Output'!$C$30/SUM($K$2:$K$366) -> 1.325698417
A12: 2016-01-11 | B12: ='Input and Output'!C45 -> 4.5 | C12: 2 | D12: =IF($C12<6,Lin_parameters_wd!B$9,Lin_parameters_wknd!B$10) -> 1.771938814 | E12: =IF($C12<6,Lin_parameters_wd!C$9,Lin_parameters_wknd!C$10) -> -0.0959847532 | F12: =IF($C12<6,Lin_parameters_wd!D$9,Lin_parameters_wknd!D$10) -> 0.4069947138 | G12: =IF($C12<6,Lin_parameters_wd!E$9,Lin_parameters_wknd!E$10) -> -0.0127564544 | H12: =IF($C12<6,Lin_parameters_wd!F$9,Lin_parameters_wknd!F$10) -> 16.4 | I12: 1.771938814 | J12: -0.0959847532 | K12: 1.340007425 | L12: =$K12*'Input and Output'!$C$30/SUM($K$2:$K$366) -> 1.439088546
A13: 2016-01-12 | B13: ='Input and Output'!C46 -> 4.8 | C13: 3 | D13: =IF($C13<6,Lin_parameters_wd!B$9,Lin_parameters_wknd!B$10) -> 1.771938814 | E13: =IF($C13<6,Lin_parameters_wd!C$9,Lin_parameters_wknd!C$10) -> -0.0959847532 | F13: =IF($C13<6,Lin_parameters_wd!D$9,Lin_parameters_wknd!D$10) -> 0.4069947138 | G13: =IF($C13<6,Lin_parameters_wd!E$9,Lin_parameters_wknd!E$10) -> -0.0127564544 | H13: =IF($C13<6,Lin_parameters_wd!F$9,Lin_parameters_wknd!F$10) -> 16.4 | I13: 1.771938814 | J13: -0.0959847532 | K13: 1.311211999 | L13: =$K13*'Input and Output'!$C$30/SUM($K$2:$K$366) -> 1.408163965
A14: 2016-01-13 | B14: ='Input and Output'!C47 -> 3.8 | C14: 4 | D14: =IF($C14<6,Lin_parameters_wd!B$9,Lin_parameters_wknd!B$10) -> 1.771938814 | E14: =IF($C14<6,Lin_parameters_wd!C$9,Lin_parameters_wknd!C$10) -> -0.0959847532 | F14: =IF($C14<6,Lin_parameters_wd!D$9,Lin_parameters_wknd!D$10) -> 0.4069947138 | G14: =IF($C14<6,Lin_parameters_wd!E$9,Lin_parameters_wknd!E$10) -> -0.0127564544 | H14: =IF($C14<6,Lin_parameters_wd!F$9,Lin_parameters_wknd!F$10) -> 16.4 | I14: 1.771938814 | J14: -0.0959847532 | K14: 1.407196752 | L14: =$K14*'Input and Output'!$C$30/SUM($K$2:$K$366) -> 1.511245901
A15: 2016-01-14 | B15: ='Input and Output'!C48 -> 2 | C15: 5 | D15: =IF($C15<6,Lin_parameters_wd!B$9,Lin_parameters_wknd!B$10) -> 1.771938814 | E15: =IF($C15<6,Lin_parameters_wd!C$9,Lin_parameters_wknd!C$10) -> -0.0959847532 | F15: =IF($C15<6,Lin_parameters_wd!D$9,Lin_parameters_wknd!D$10) -> 0.4069947138 | G15: =IF($C15<6,Lin_parameters_wd!E$9,Lin_parameters_wknd!E$10) -> -0.0127564544 | H15: =IF($C15<6,Lin_parameters_wd!F$9,Lin_parameters_wknd!F$10) -> 16.4 | I15: 1.771938814 | J15: -0.0959847532 | K15: 1.579969308 | L15: =$K15*'Input and Output'!$C$30/SUM($K$2:$K$366) -> 1.696793385
A16: 2016-01-15 | B16: ='Input and Output'!C49 -> 1.5 | C16: 6 | D16: =IF($C16<6,Lin_parameters_wd!B$9,Lin_parameters_wknd!B$10) -> 1.311247513 | E16: =IF($C16<6,Lin_parameters_wd!C$9,Lin_parameters_wknd!C$10) -> -0.07531076536 | F16: =IF($C16<6,Lin_parameters_wd!D$9,Lin_parameters_wknd!D$10) -> 0.2952447362 | G16: =IF($C16<6,Lin_parameters_wd!E$9,Lin_parameters_wknd!E$10) -> -0.009762199134 | H16: =IF($C16<6,Lin_parameters_wd!F$9,Lin_parameters_wknd!F$10) -> 15.5 | I16: 1.311247513 | J16: -0.07531076536 | K16: 1.198281365 | L16: =$K16*'Input and Output'!$C$30/SUM($K$2:$K$366) -> 1.286883158
A17: 2016-01-16 | B17: ='Input and Output'!C50 -> 0.4 | C17: 7 | D17: =IF($C17<6,Lin_parameters_wd!B$9,Lin_parameters_wknd!B$10) -> 1.311247513 | E17: =IF($C17<6,Lin_parameters_wd!C$9,Lin_parameters_wknd!C$10) -> -0.07531076536 | F17: =IF($C17<6,Lin_parameters_wd!D$9,Lin_parameters_wknd!D$10) -> 0.2952447362 | G17: =IF($C17<6,Lin_parameters_wd!E$9,Lin_parameters_wknd!E$10) -> -0.009762199134 | H17: =IF($C17<6,Lin_parameters_wd!F$9,Lin_parameters_wknd!F$10) -> 15.5 | I17: 1.311247513 | J17: -0.07531076536 | K17: 1.281123207 | L17: =$K17*'Input and Output'!$C$30/SUM($K$2:$K$366) -> 1.375850386
A18: 2016-01-17 | B18: ='Input and Output'!C51 -> -1.6 | C18: 1 | D18: =IF($C18<6,Lin_parameters_wd!B$9,Lin_parameters_wknd!B$10) -> 1.771938814 | E18: =IF($C18<6,Lin_parameters_wd!C$9,Lin_parameters_wknd!C$10) -> -0.0959847532 | F18: =IF($C18<6,Lin_parameters_wd!D$9,Lin_parameters_wknd!D$10) -> 0.4069947138 | G18: =IF($C18<6,Lin_parameters_wd!E$9,Lin_parameters_wknd!E$10) -> -0.0127564544 | H18: =IF($C18<6,Lin_parameters_wd!F$9,Lin_parameters_wknd!F$10) -> 16.4 | I18: 1.771938814 | J18: -0.0959847532 | K18: 1.925514419 | L18: =$K18*'Input and Output'!$C$30/SUM($K$2:$K$366) -> 2.067888353
A19: 2016-01-18 | B19: ='Input and Output'!C52 -> -5.3 | C19: 2 | D19: =IF($C19<6,Lin_parameters_wd!B$9,Lin_parameters_wknd!B$10) -> 1.771938814 | E19: =IF($C19<6,Lin_parameters_wd!C$9,Lin_parameters_wknd!C$10) -> -0.0959847532 | F19: =IF($C19<6,Lin_parameters_wd!D$9,Lin_parameters_wknd!D$10) -> 0.4069947138 | G19: =IF($C19<6,Lin_parameters_wd!E$9,Lin_parameters_wknd!E$10) -> -0.0127564544 | H19: =IF($C19<6,Lin_parameters_wd!F$9,Lin_parameters_wknd!F$10) -> 16.4 | I19: 1.771938814 | J19: -0.0959847532 | K19: 2.280658006 | L19: =$K19*'Input and Output'!$C$30/SUM($K$2:$K$366) -> 2.449291514
A20: 2016-01-19 | B20: ='Input and Output'!C53 -> -7.3 | C20: 3 | D20: =IF($C20<6,Lin_parameters_wd!B$9,Lin_parameters_wknd!B$10) -> 1.771938814 | E20: =IF($C20<6,Lin_parameters_wd!C$9,Lin_parameters_wknd!C$10) -> -0.0959847532 | F20: =IF($C20<6,Lin_parameters_wd!D$9,Lin_parameters_wknd!D$10) -> 0.4069947138 | G20: =IF($C20<6,Lin_parameters_wd!E$9,Lin_parameters_wknd!E$10) -> -0.0127564544 | H20: =IF($C20<6,Lin_parameters_wd!F$9,Lin_parameters_wknd!F$10) -> 16.4 | I20: 1.771938814 | J20: -0.0959847532 | K20: 2.472627513 | L20: =$K20*'Input and Output'!$C$30/SUM($K$2:$K$366) -> 2.655455385
A21: 2016-01-20 | B21: ='Input and Output'!C54 -> -3.3 | C21: 4 | D21: =IF($C21<6,Lin_parameters_wd!B$9,Lin_parameters_wknd!B$10) -> 1.771938814 | E21: =IF($C21<6,Lin_parameters_wd!C$9,Lin_parameters_wknd!C$10) -> -0.0959847532 | F21: =IF($C21<6,Lin_parameters_wd!D$9,Lin_parameters_wknd!D$10) -> 0.4069947138 | G21: =IF($C21<6,Lin_parameters_wd!E$9,Lin_parameters_wknd!E$10) -> -0.0127564544 | H21: =IF($C21<6,Lin_parameters_wd!F$9,Lin_parameters_wknd!F$10) -> 16.4 | I21: 1.771938814 | J21: -0.0959847532 | K21: 2.0886885 | L21: =$K21*'Input and Output'!$C$30/SUM($K$2:$K$366) -> 2.243127643
A22: 2016-01-21 | B22: ='Input and Output'!C55 -> -4.2 | C22: 5 | D22: =IF($C22<6,Lin_parameters_wd!B$9,Lin_parameters_wknd!B$10) -> 1.771938814 | E22: =IF($C22<6,Lin_parameters_wd!C$9,Lin_parameters_wknd!C$10) -> -0.0959847532 | F22: =IF($C22<6,Lin_parameters_wd!D$9,Lin_parameters_wknd!D$10) -> 0.4069947138 | G22: =IF($C22<6,Lin_parameters_wd!E$9,Lin_parameters_wknd!E$10) -> -0.0127564544 | H22: =IF($C22<6,Lin_parameters_wd!F$9,Lin_parameters_wknd!F$10) -> 16.4 | I22: 1.771938814 | J22: -0.0959847532 | K22: 2.175074778 | L22: =$K22*'Input and Output'!$C$30/SUM($K$2:$K$366) -> 2.335901385
A23: 2016-01-22 | B23: ='Input and Output'!C56 -> -6.4 | C23: 6 | D23: =IF($C23<6,Lin_parameters_wd!B$9,Lin_parameters_wknd!B$10) -> 1.311247513 | E23: =IF($C23<6,Lin_parameters_wd!C$9,Lin_parameters_wknd!C$10) -> -0.07531076536 | F23: =IF($C23<6,Lin_parameters_wd!D$9,Lin_parameters_wknd!D$10) -> 0.2952447362 | G23: =IF($C23<6,Lin_parameters_wd!E$9,Lin_parameters_wknd!E$10) -> -0.009762199134 | H23: =IF($C23<6,Lin_parameters_wd!F$9,Lin_parameters_wknd!F$10) -> 15.5 | I23: 1.311247513 | J23: -0.07531076536 | K23: 1.793236411 | L23: =$K23*'Input and Output'!$C$30/SUM($K$2:$K$366) -> 1.925829612
A24: 2016-01-23 | B24: ='Input and Output'!C57 -> 1 | C24: 7 | D24: =IF($C24<6,Lin_parameters_wd!B$9,Lin_parameters_wknd!B$10) -> 1.311247513 | E24: =IF($C24<6,Lin_parameters_wd!C$9,Lin_parameters_wknd!C$10) -> -0.07531076536 | F24: =IF($C24<6,Lin_parameters_wd!D$9,Lin_parameters_wknd!D$10) -> 0.2952447362 | G24: =IF($C24<6,Lin_parameters_wd!E$9,Lin_parameters_wknd!E$10) -> -0.009762199134 | H24: =IF($C24<6,Lin_parameters_wd!F$9,Lin_parameters_wknd!F$10) -> 15.5 | I24: 1.311247513 | J24: -0.07531076536 | K24: 1.235936747 | L24: =$K24*'Input and Output'!$C$30/SUM($K$2:$K$366) -> 1.327322807
A25: 2016-01-24 | B25: ='Input and Output'!C58 -> 3.4 | C25: 1 | D25: =IF($C25<6,Lin_parameters_wd!B$9,Lin_parameters_wknd!B$10) -> 1.771938814 | E25: =IF($C25<6,Lin_parameters_wd!C$9,Lin_parameters_wknd!C$10) -> -0.0959847532 | F25: =IF($C25<6,Lin_parameters_wd!D$9,Lin_parameters_wknd!D$10) -> 0.4069947138 | G25: =IF($C25<6,Lin_parameters_wd!E$9,Lin_parameters_wknd!E$10) -> -0.0127564544 | H25: =IF($C25<6,Lin_parameters_wd!F$9,Lin_parameters_wknd!F$10) -> 16.4 | I25: 1.771938814 | J25: -0.0959847532 | K25: 1.445590653 | L25: =$K25*'Input and Output'!$C$30/SUM($K$2:$K$366) -> 1.552478675
A26: 2016-01-25 | B26: ='Input and Output'!C59 -> 6.5 | C26: 2 | D26: =IF($C26<6,Lin_parameters_wd!B$9,Lin_parameters_wknd!B$10) -> 1.771938814 | E26: =IF($C26<6,Lin_parameters_wd!C$9,Lin_parameters_wknd!C$10) -> -0.0959847532 | F26: =IF($C26<6,Lin_parameters_wd!D$9,Lin_parameters_wknd!D$10) -> 0.4069947138 | G26: =IF($C26<6,Lin_parameters_wd!E$9,Lin_parameters_wknd!E$10) -> -0.0127564544 | H26: =IF($C26<6,Lin_parameters_wd!F$9,Lin_parameters_wknd!F$10) -> 16.4 | I26: 1.771938814 | J26: -0.0959847532 | K26: 1.148037918 | L26: =$K26*'Input and Output'!$C$30/SUM($K$2:$K$366) -> 1.232924675
A27: 2016-01-26 | B27: ='Input and Output'!C60 -> 7.7 | C27: 3 | D27: =IF($C27<6,Lin_parameters_wd!B$9,Lin_parameters_wknd!B$10) -> 1.771938814 | E27: =IF($C27<6,Lin_parameters_wd!C$9,Lin_parameters_wknd!C$10) -> -0.0959847532 | F27: =IF($C27<6,Lin_parameters_wd!D$9,Lin_parameters_wknd!D$10) -> 0.4069947138 | G27: =IF($C27<6,Lin_parameters_wd!E$9,Lin_parameters_wknd!E$10) -> -0.0127564544 | H27: =IF($C27<6,Lin_parameters_wd!F$9,Lin_parameters_wknd!F$10) -> 16.4 | I27: 1.771938814 | J27: -0.0959847532 | K27: 1.032856215 | L27: =$K27*'Input and Output'!$C$30/SUM($K$2:$K$366) -> 1.109226352
A28: 2016-01-27 | B28: ='Input and Output'!C61 -> 9.4 | C28: 4 | D28: =IF($C28<6,Lin_parameters_wd!B$9,Lin_parameters_wknd!B$10) -> 1.771938814 | E28: =IF($C28<6,Lin_parameters_wd!C$9,Lin_parameters_wknd!C$10) -> -0.0959847532 | F28: =IF($C28<6,Lin_parameters_wd!D$9,Lin_parameters_wknd!D$10) -> 0.4069947138 | G28: =IF($C28<6,Lin_parameters_wd!E$9,Lin_parameters_wknd!E$10) -> -0.0127564544 | H28: =IF($C28<6,Lin_parameters_wd!F$9,Lin_parameters_wknd!F$10) -> 16.4 | I28: 1.771938814 | J28: -0.0959847532 | K28: 0.8696821341 | L28: =$K28*'Input and Output'!$C$30/SUM($K$2:$K$366) -> 0.9339870621
A29: 2016-01-28 | B29: ='Input and Output'!C62 -> 7.3 | C29: 5 | D29: =IF($C29<6,Lin_parameters_wd!B$9,Lin_parameters_wknd!B$10) -> 1.771938814 | E29: =IF($C29<6,Lin_parameters_wd!C$9,Lin_parameters_wknd!C$10) -> -0.0959847532 | F29: =IF($C29<6,Lin_parameters_wd!D$9,Lin_parameters_wknd!D$10) -> 0.4069947138 | G29: =IF($C29<6,Lin_parameters_wd!E$9,Lin_parameters_wknd!E$10) -> -0.0127564544 | H29: =IF($C29<6,Lin_parameters_wd!F$9,Lin_parameters_wknd!F$10) -> 16.4 | I29: 1.771938814 | J29: -0.0959847532 | K29: 1.071250116 | L29: =$K29*'Input and Output'!$C$30/SUM($K$2:$K$366) -> 1.150459127
A30: 2016-01-29 | B30: ='Input and Output'!C63 -> 4.9 | C30: 6 | D30: =IF($C30<6,Lin_parameters_wd!B$9,Lin_parameters_wknd!B$10) -> 1.311247513 | E30: =IF($C30<6,Lin_parameters_wd!C$9,Lin_parameters_wknd!C$10) -> -0.07531076536 | F30: =IF($C30<6,Lin_parameters_wd!D$9,Lin_parameters_wknd!D$10) -> 0.2952447362 | G30: =IF($C30<6,Lin_parameters_wd!E$9,Lin_parameters_wknd!E$10) -> -0.009762199134 | H30: =IF($C30<6,Lin_parameters_wd!F$9,Lin_parameters_wknd!F$10) -> 15.5 | I30: 1.311247513 | J30: -0.07531076536 | K30: 0.9422247625 | L30: =$K30*'Input and Output'!$C$30/SUM($K$2:$K$366) -> 1.011893545
A31: 2016-01-30 | B31: ='Input and Output'!C64 -> 6.1 | C31: 7 | D31: =IF($C31<6,Lin_parameters_wd!B$9,Lin_parameters_wknd!B$10) -> 1.311247513 | E31: =IF($C31<6,Lin_parameters_wd!C$9,Lin_parameters_wknd!C$10) -> -0.07531076536 | F31: =IF($C31<6,Lin_parameters_wd!D$9,Lin_parameters_wknd!D$10) -> 0.2952447362 | G31: =IF($C31<6,Lin_parameters_wd!E$9,Lin_parameters_wknd!E$10) -> -0.009762199134 | H31: =IF($C31<6,Lin_parameters_wd!F$9,Lin_parameters_wknd!F$10) -> 15.5 | I31: 1.311247513 | J31: -0.07531076536 | K31: 0.851851844 | L31: =$K31*'Input and Output'!$C$30/SUM($K$2:$K$366) -> 0.9148383874
A32: 2016-01-31 | B32: ='Input and Output'!C65 -> 3.9 | C32: 1 | D32: =IF($C32<6,Lin_parameters_wd!B$9,Lin_parameters_wknd!B$10) -> 1.771938814 | E32: =IF($C32<6,Lin_parameters_wd!C$9,Lin_parameters_wknd!C$10) -> -0.0959847532 | F32: =IF($C32<6,Lin_parameters_wd!D$9,Lin_parameters_wknd!D$10) -> 0.4069947138 | G32: =IF($C32<6,Lin_parameters_wd!E$9,Lin_parameters_wknd!E$10) -> -0.0127564544 | H32: =IF($C32<6,Lin_parameters_wd!F$9,Lin_parameters_wknd!F$10) -> 16.4 | I32: 1.771938814 | J32: -0.0959847532 | K32: 1.397598277 | L32: =$K32*'Input and Output'!$C$30/SUM($K$2:$K$366) -> 1.500937707
A33: 2016-02-01 | B33: ='Input and Output'!C66 -> 10.1 | C33: 2 | D33: =IF($C33<6,Lin_parameters_wd!B$9,Lin_parameters_wknd!B$10) -> 1.771938814 | E33: =IF($C33<6,Lin_parameters_wd!C$9,Lin_parameters_wknd!C$10) -> -0.0959847532 | F33: =IF($C33<6,Lin_parameters_wd!D$9,Lin_parameters_wknd!D$10) -> 0.4069947138 | G33: =IF($C33<6,Lin_parameters_wd!E$9,Lin_parameters_wknd!E$10) -> -0.0127564544 | H33: =IF($C33<6,Lin_parameters_wd!F$9,Lin_parameters_wknd!F$10) -> 16.4 | I33: 1.771938814 | J33: -0.0959847532 | K33: 0.8024928068 | L33: =$K33*'Input and Output'!$C$30/SUM($K$2:$K$366) -> 0.8618297072
A34: 2016-02-02 | B34: ='Input and Output'!C67 -> 8.3 | C34: 3 | D34: =IF($C34<6,Lin_parameters_wd!B$9,Lin_parameters_wknd!B$10) -> 1.771938814 | E34: =IF($C34<6,Lin_parameters_wd!C$9,Lin_parameters_wknd!C$10) -> -0.0959847532 | F34: =IF($C34<6,Lin_parameters_wd!D$9,Lin_parameters_wknd!D$10) -> 0.4069947138 | G34: =IF($C34<6,Lin_parameters_wd!E$9,Lin_parameters_wknd!E$10) -> -0.0127564544 | H34: =IF($C34<6,Lin_parameters_wd!F$9,Lin_parameters_wknd!F$10) -> 16.4 | I34: 1.771938814 | J34: -0.0959847532 | K34: 0.9752653626 | L34: =$K34*'Input and Output'!$C$30/SUM($K$2:$K$366) -> 1.047377191
A35: 2016-02-03 | B35: ='Input and Output'!C68 -> 4.4 | C35: 4 | D35: =IF($C35<6,Lin_parameters_wd!B$9,Lin_parameters_wknd!B$10) -> 1.771938814 | E35: =IF($C35<6,Lin_parameters_wd!C$9,Lin_parameters_wknd!C$10) -> -0.0959847532 | F35: =IF($C35<6,Lin_parameters_wd!D$9,Lin_parameters_wknd!D$10) -> 0.4069947138 | G35: =IF($C35<6,Lin_parameters_wd!E$9,Lin_parameters_wknd!E$10) -> -0.0127564544 | H35: =IF($C35<6,Lin_parameters_wd!F$9,Lin_parameters_wknd!F$10) -> 16.4 | I35: 1.771938814 | J35: -0.0959847532 | K35: 1.3496059 | L35: =$K35*'Input and Output'!$C$30/SUM($K$2:$K$366) -> 1.44939674
A36: 2016-02-04 | B36: ='Input and Output'!C69 -> 2.7 | C36: 5 | D36: =IF($C36<6,Lin_parameters_wd!B$9,Lin_parameters_wknd!B$10) -> 1.771938814 | E36: =IF($C36<6,Lin_parameters_wd!C$9,Lin_parameters_wknd!C$10) -> -0.0959847532 | F36: =IF($C36<6,Lin_parameters_wd!D$9,Lin_parameters_wknd!D$10) -> 0.4069947138 | G36: =IF($C36<6,Lin_parameters_wd!E$9,Lin_parameters_wknd!E$10) -> -0.0127564544 | H36: =IF($C36<6,Lin_parameters_wd!F$9,Lin_parameters_wknd!F$10) -> 16.4 | I36: 1.771938814 | J36: -0.0959847532 | K36: 1.512779981 | L36: =$K36*'Input and Output'!$C$30/SUM($K$2:$K$366) -> 1.62463603
A37: 2016-02-05 | B37: ='Input and Output'!C70 -> 4.4 | C37: 6 | D37: =IF($C37<6,Lin_parameters_wd!B$9,Lin_parameters_wknd!B$10) -> 1.311247513 | E37: =IF($C37<6,Lin_parameters_wd!C$9,Lin_parameters_wknd!C$10) -> -0.07531076536 | F37: =IF($C37<6,Lin_parameters_wd!D$9,Lin_parameters_wknd!D$10) -> 0.2952447362 | G37: =IF($C37<6,Lin_parameters_wd!E$9,Lin_parameters_wknd!E$10) -> -0.009762199134 | H37: =IF($C37<6,Lin_parameters_wd!F$9,Lin_parameters_wknd!F$10) -> 15.5 | I37: 1.311247513 | J37: -0.07531076536 | K37: 0.9798801451 | L37: =$K37*'Input and Output'!$C$30/SUM($K$2:$K$366) -> 1.052333194
A38: 2016-02-06 | B38: ='Input and Output'!C71 -> 8.5 | C38: 7 | D38: =IF($C38<6,Lin_parameters_wd!B$9,Lin_parameters_wknd!B$10) -> 1.311247513 | E38: =IF($C38<6,Lin_parameters_wd!C$9,Lin_parameters_wknd!C$10) -> -0.07531076536 | F38: =IF($C38<6,Lin_parameters_wd!D$9,Lin_parameters_wknd!D$10) -> 0.2952447362 | G38: =IF($C38<6,Lin_parameters_wd!E$9,Lin_parameters_wknd!E$10) -> -0.009762199134 | H38: =IF($C38<6,Lin_parameters_wd!F$9,Lin_parameters_wknd!F$10) -> 15.5 | I38: 1.311247513 | J38: -0.07531076536 | K38: 0.6711060072 | L38: =$K38*'Input and Output'!$C$30/SUM($K$2:$K$366) -> 0.7207280722
A39: 2016-02-07 | B39: ='Input and Output'!C72 -> 8.2 | C39: 1 | D39: =IF($C39<6,Lin_parameters_wd!B$9,Lin_parameters_wknd!B$10) -> 1.771938814 | E39: =IF($C39<6,Lin_parameters_wd!C$9,Lin_parameters_wknd!C$10) -> -0.0959847532 | F39: =IF($C39<6,Lin_parameters_wd!D$9,Lin_parameters_wknd!D$10) -> 0.4069947138 | G39: =IF($C39<6,Lin_parameters_wd!E$9,Lin_parameters_wknd!E$10) -> -0.0127564544 | H39: =IF($C39<6,Lin_parameters_wd!F$9,Lin_parameters_wknd!F$10) -> 16.4 | I39: 1.771938814 | J39: -0.0959847532 | K39: 0.9848638379 | L39: =$K39*'Input and Output'!$C$30/SUM($K$2:$K$366) -> 1.057685385
A40: 2016-02-08 | B40: ='Input and Output'!C73 -> 6.9 | C40: 2 | D40: =IF($C40<6,Lin_parameters_wd!B$9,Lin_parameters_wknd!B$10) -> 1.771938814 | E40: =IF($C40<6,Lin_parameters_wd!C$9,Lin_parameters_wknd!C$10) -> -0.0959847532 | F40: =IF($C40<6,Lin_parameters_wd!D$9,Lin_parameters_wknd!D$10) -> 0.4069947138 | G40: =IF($C40<6,Lin_parameters_wd!E$9,Lin_parameters_wknd!E$10) -> -0.0127564544 | H40: =IF($C40<6,Lin_parameters_wd!F$9,Lin_parameters_wknd!F$10) -> 16.4 | I40: 1.771938814 | J40: -0.0959847532 | K40: 1.109644017 | L40: =$K40*'Input and Output'!$C$30/SUM($K$2:$K$366) -> 1.191691901
A41: 2016-02-09 | B41: ='Input and Output'!C74 -> 6.4 | C41: 3 | D41: =IF($C41<6,Lin_parameters_wd!B$9,Lin_parameters_wknd!B$10) -> 1.771938814 | E41: =IF($C41<6,Lin_parameters_wd!C$9,Lin_parameters_wknd!C$10) -> -0.0959847532 | F41: =IF($C41<6,Lin_parameters_wd!D$9,Lin_parameters_wknd!D$10) -> 0.4069947138 | G41: =IF($C41<6,Lin_parameters_wd!E$9,Lin_parameters_wknd!E$10) -> -0.0127564544 | H41: =IF($C41<6,Lin_parameters_wd!F$9,Lin_parameters_wknd!F$10) -> 16.4 | I41: 1.771938814 | J41: -0.0959847532 | K41: 1.157636394 | L41: =$K41*'Input and Output'!$C$30/SUM($K$2:$K$366) -> 1.243232869
A42: 2016-02-10 | B42: ='Input and Output'!C75 -> 3.2 | C42: 4 | D42: =IF($C42<6,Lin_parameters_wd!B$9,Lin_parameters_wknd!B$10) -> 1.771938814 | E42: =IF($C42<6,Lin_parameters_wd!C$9,Lin_parameters_wknd!C$10) -> -0.0959847532 | F42: =IF($C42<6,Lin_parameters_wd!D$9,Lin_parameters_wknd!D$10) -> 0.4069947138 | G42: =IF($C42<6,Lin_parameters_wd!E$9,Lin_parameters_wknd!E$10) -> -0.0127564544 | H42: =IF($C42<6,Lin_parameters_wd!F$9,Lin_parameters_wknd!F$10) -> 16.4 | I42: 1.771938814 | J42: -0.0959847532 | K42: 1.464787604 | L42: =$K42*'Input and Output'!$C$30/SUM($K$2:$K$366) -> 1.573095062
A43: 2016-02-11 | B43: ='Input and Output'!C76 -> 3.7 | C43: 5 | D43: =IF($C43<6,Lin_parameters_wd!B$9,Lin_parameters_wknd!B$10) -> 1.771938814 | E43: =IF($C43<6,Lin_parameters_wd!C$9,Lin_parameters_wknd!C$10) -> -0.0959847532 | F43: =IF($C43<6,Lin_parameters_wd!D$9,Lin_parameters_wknd!D$10) -> 0.4069947138 | G43: =IF($C43<6,Lin_parameters_wd!E$9,Lin_parameters_wknd!E$10) -> -0.0127564544 | H43: =IF($C43<6,Lin_parameters_wd!F$9,Lin_parameters_wknd!F$10) -> 16.4 | I43: 1.771938814 | J43: -0.0959847532 | K43: 1.416795227 | L43: =$K43*'Input and Output'!$C$30/SUM($K$2:$K$366) -> 1.521554094
A44: 2016-02-12 | B44: ='Input and Output'!C77 -> 2.7 | C44: 6 | D44: =IF($C44<6,Lin_parameters_wd!B$9,Lin_parameters_wknd!B$10) -> 1.311247513 | E44: =IF($C44<6,Lin_parameters_wd!C$9,Lin_parameters_wknd!C$10) -> -0.07531076536 | F44: =IF($C44<6,Lin_parameters_wd!D$9,Lin_parameters_wknd!D$10) -> 0.2952447362 | G44: =IF($C44<6,Lin_parameters_wd!E$9,Lin_parameters_wknd!E$10) -> -0.009762199134 | H44: =IF($C44<6,Lin_parameters_wd!F$9,Lin_parameters_wknd!F$10) -> 15.5 | I44: 1.311247513 | J44: -0.07531076536 | K44: 1.107908446 | L44: =$K44*'Input and Output'!$C$30/SUM($K$2:$K$366) -> 1.189828001
A45: 2016-02-13 | B45: ='Input and Output'!C78 -> 2 | C45: 7 | D45: =IF($C45<6,Lin_parameters_wd!B$9,Lin_parameters_wknd!B$10) -> 1.311247513 | E45: =IF($C45<6,Lin_parameters_wd!C$9,Lin_parameters_wknd!C$10) -> -0.07531076536 | F45: =IF($C45<6,Lin_parameters_wd!D$9,Lin_parameters_wknd!D$10) -> 0.2952447362 | G45: =IF($C45<6,Lin_parameters_wd!E$9,Lin_parameters_wknd!E$10) -> -0.009762199134 | H45: =IF($C45<6,Lin_parameters_wd!F$9,Lin_parameters_wknd!F$10) -> 15.5 | I45: 1.311247513 | J45: -0.07531076536 | K45: 1.160625982 | L45: =$K45*'Input and Output'!$C$30/SUM($K$2:$K$366) -> 1.246443509
A46: 2016-02-14 | B46: ='Input and Output'!C79 -> 4 | C46: 1 | D46: =IF($C46<6,Lin_parameters_wd!B$9,Lin_parameters_wknd!B$10) -> 1.771938814 | E46: =IF($C46<6,Lin_parameters_wd!C$9,Lin_parameters_wknd!C$10) -> -0.0959847532 | F46: =IF($C46<6,Lin_parameters_wd!D$9,Lin_parameters_wknd!D$10) -> 0.4069947138 | G46: =IF($C46<6,Lin_parameters_wd!E$9,Lin_parameters_wknd!E$10) -> -0.0127564544 | H46: =IF($C46<6,Lin_parameters_wd!F$9,Lin_parameters_wknd!F$10) -> 16.4 | I46: 1.771938814 | J46: -0.0959847532 | K46: 1.387999801 | L46: =$K46*'Input and Output'!$C$30/SUM($K$2:$K$366) -> 1.490629514
A47: 2016-02-15 | B47: ='Input and Output'!C80 -> 1.5 | C47: 2 | D47: =IF($C47<6,Lin_parameters_wd!B$9,Lin_parameters_wknd!B$10) -> 1.771938814 | E47: =IF($C47<6,Lin_parameters_wd!C$9,Lin_parameters_wknd!C$10) -> -0.0959847532 | F47: =IF($C47<6,Lin_parameters_wd!D$9,Lin_parameters_wknd!D$10) -> 0.4069947138 | G47: =IF($C47<6,Lin_parameters_wd!E$9,Lin_parameters_wknd!E$10) -> -0.0127564544 | H47: =IF($C47<6,Lin_parameters_wd!F$9,Lin_parameters_wknd!F$10) -> 16.4 | I47: 1.771938814 | J47: -0.0959847532 | K47: 1.627961684 | L47: =$K47*'Input and Output'!$C$30/SUM($K$2:$K$366) -> 1.748334352
A48: 2016-02-16 | B48: ='Input and Output'!C81 -> -1 | C48: 3 | D48: =IF($C48<6,Lin_parameters_wd!B$9,Lin_parameters_wknd!B$10) -> 1.771938814 | E48: =IF($C48<6,Lin_parameters_wd!C$9,Lin_parameters_wknd!C$10) -> -0.0959847532 | F48: =IF($C48<6,Lin_parameters_wd!D$9,Lin_parameters_wknd!D$10) -> 0.4069947138 | G48: =IF($C48<6,Lin_parameters_wd!E$9,Lin_parameters_wknd!E$10) -> -0.0127564544 | H48: =IF($C48<6,Lin_parameters_wd!F$9,Lin_parameters_wknd!F$10) -> 16.4 | I48: 1.771938814 | J48: -0.0959847532 | K48: 1.867923567 | L48: =$K48*'Input and Output'!$C$30/SUM($K$2:$K$366) -> 2.006039191
A49: 2016-02-17 | B49: ='Input and Output'!C82 -> 0.5 | C49: 4 | D49: =IF($C49<6,Lin_parameters_wd!B$9,Lin_parameters_wknd!B$10) -> 1.771938814 | E49: =IF($C49<6,Lin_parameters_wd!C$9,Lin_parameters_wknd!C$10) -> -0.0959847532 | F49: =IF($C49<6,Lin_parameters_wd!D$9,Lin_parameters_wknd!D$10) -> 0.4069947138 | G49: =IF($C49<6,Lin_parameters_wd!E$9,Lin_parameters_wknd!E$10) -> -0.0127564544 | H49: =IF($C49<6,Lin_parameters_wd!F$9,Lin_parameters_wknd!F$10) -> 16.4 | I49: 1.771938814 | J49: -0.0959847532 | K49: 1.723946438 | L49: =$K49*'Input and Output'!$C$30/SUM($K$2:$K$366) -> 1.851416288
A50: 2016-02-18 | B50: ='Input and Output'!C83 -> 1.8 | C50: 5 | D50: =IF($C50<6,Lin_parameters_wd!B$9,Lin_parameters_wknd!B$10) -> 1.771938814 | E50: =IF($C50<6,Lin_parameters_wd!C$9,Lin_parameters_wknd!C$10) -> -0.0959847532 | F50: =IF($C50<6,Lin_parameters_wd!D$9,Lin_parameters_wknd!D$10) -> 0.4069947138 | G50: =IF($C50<6,Lin_parameters_wd!E$9,Lin_parameters_wknd!E$10) -> -0.0127564544 | H50: =IF($C50<6,Lin_parameters_wd!F$9,Lin_parameters_wknd!F$10) -> 16.4 | I50: 1.771938814 | J50: -0.0959847532 | K50: 1.599166258 | L50: =$K50*'Input and Output'!$C$30/SUM($K$2:$K$366) -> 1.717409772
A51: 2016-02-19 | B51: ='Input and Output'!C84 -> 1 | C51: 6 | D51: =IF($C51<6,Lin_parameters_wd!B$9,Lin_parameters_wknd!B$10) -> 1.311247513 | E51: =IF($C51<6,Lin_parameters_wd!C$9,Lin_parameters_wknd!C$10) -> -0.07531076536 | F51: =IF($C51<6,Lin_parameters_wd!D$9,Lin_parameters_wknd!D$10) -> 0.2952447362 | G51: =IF($C51<6,Lin_parameters_wd!E$9,Lin_parameters_wknd!E$10) -> -0.009762199134 | H51: =IF($C51<6,Lin_parameters_wd!F$9,Lin_parameters_wknd!F$10) -> 15.5 | I51: 1.311247513 | J51: -0.07531076536 | K51: 1.235936747 | L51: =$K51*'Input and Output'!$C$30/SUM($K$2:$K$366) -> 1.327322807
A52: 2016-02-20 | B52: ='Input and Output'!C85 -> 3.3 | C52: 7 | D52: =IF($C52<6,Lin_parameters_wd!B$9,Lin_parameters_wknd!B$10) -> 1.311247513 | E52: =IF($C52<6,Lin_parameters_wd!C$9,Lin_parameters_wknd!C$10) -> -0.07531076536 | F52: =IF($C52<6,Lin_parameters_wd!D$9,Lin_parameters_wknd!D$10) -> 0.2952447362 | G52: =IF($C52<6,Lin_parameters_wd!E$9,Lin_parameters_wknd!E$10) -> -0.009762199134 | H52: =IF($C52<6,Lin_parameters_wd!F$9,Lin_parameters_wknd!F$10) -> 15.5 | I52: 1.311247513 | J52: -0.07531076536 | K52: 1.062721987 | L52: =$K52*'Input and Output'!$C$30/SUM($K$2:$K$366) -> 1.141300422
A53: 2016-02-21 | B53: ='Input and Output'!C86 -> 10 | C53: 1 | D53: =IF($C53<6,Lin_parameters_wd!B$9,Lin_parameters_wknd!B$10) -> 1.771938814 | E53: =IF($C53<6,Lin_parameters_wd!C$9,Lin_parameters_wknd!C$10) -> -0.0959847532 | F53: =IF($C53<6,Lin_parameters_wd!D$9,Lin_parameters_wknd!D$10) -> 0.4069947138 | G53: =IF($C53<6,Lin_parameters_wd!E$9,Lin_parameters_wknd!E$10) -> -0.0127564544 | H53: =IF($C53<6,Lin_parameters_wd!F$9,Lin_parameters_wknd!F$10) -> 16.4 | I53: 1.771938814 | J53: -0.0959847532 | K53: 0.8120912822 | L53: =$K53*'Input and Output'!$C$30/SUM($K$2:$K$366) -> 0.8721379008
A54: 2016-02-22 | B54: ='Input and Output'!C87 -> 7.8 | C54: 2 | D54: =IF($C54<6,Lin_parameters_wd!B$9,Lin_parameters_wknd!B$10) -> 1.771938814 | E54: =IF($C54<6,Lin_parameters_wd!C$9,Lin_parameters_wknd!C$10) -> -0.0959847532 | F54: =IF($C54<6,Lin_parameters_wd!D$9,Lin_parameters_wknd!D$10) -> 0.4069947138 | G54: =IF($C54<6,Lin_parameters_wd!E$9,Lin_parameters_wknd!E$10) -> -0.0127564544 | H54: =IF($C54<6,Lin_parameters_wd!F$9,Lin_parameters_wknd!F$10) -> 16.4 | I54: 1.771938814 | J54: -0.0959847532 | K54: 1.023257739 | L54: =$K54*'Input and Output'!$C$30/SUM($K$2:$K$366) -> 1.098918159
A55: 2016-02-23 | B55: ='Input and Output'!C88 -> 3.9 | C55: 3 | D55: =IF($C55<6,Lin_parameters_wd!B$9,Lin_parameters_wknd!B$10) -> 1.771938814 | E55: =IF($C55<6,Lin_parameters_wd!C$9,Lin_parameters_wknd!C$10) -> -0.0959847532 | F55: =IF($C55<6,Lin_parameters_wd!D$9,Lin_parameters_wknd!D$10) -> 0.4069947138 | G55: =IF($C55<6,Lin_parameters_wd!E$9,Lin_parameters_wknd!E$10) -> -0.0127564544 | H55: =IF($C55<6,Lin_parameters_wd!F$9,Lin_parameters_wknd!F$10) -> 16.4 | I55: 1.771938814 | J55: -0.0959847532 | K55: 1.397598277 | L55: =$K55*'Input and Output'!$C$30/SUM($K$2:$K$366) -> 1.500937707
A56: 2016-02-24 | B56: ='Input and Output'!C89 -> 2.8 | C56: 4 | D56: =IF($C56<6,Lin_parameters_wd!B$9,Lin_parameters_wknd!B$10) -> 1.771938814 | E56: =IF($C56<6,Lin_parameters_wd!C$9,Lin_parameters_wknd!C$10) -> -0.0959847532 | F56: =IF($C56<6,Lin_parameters_wd!D$9,Lin_parameters_wknd!D$10) -> 0.4069947138 | G56: =IF($C56<6,Lin_parameters_wd!E$9,Lin_parameters_wknd!E$10) -> -0.0127564544 | H56: =IF($C56<6,Lin_parameters_wd!F$9,Lin_parameters_wknd!F$10) -> 16.4 | I56: 1.771938814 | J56: -0.0959847532 | K56: 1.503181505 | L56: =$K56*'Input and Output'!$C$30/SUM($K$2:$K$366) -> 1.614327836
A57: 2016-02-25 | B57: ='Input and Output'!C90 -> 0.7 | C57: 5 | D57: =IF($C57<6,Lin_parameters_wd!B$9,Lin_parameters_wknd!B$10) -> 1.771938814 | E57: =IF($C57<6,Lin_parameters_wd!C$9,Lin_parameters_wknd!C$10) -> -0.0959847532 | F57: =IF($C57<6,Lin_parameters_wd!D$9,Lin_parameters_wknd!D$10) -> 0.4069947138 | G57: =IF($C57<6,Lin_parameters_wd!E$9,Lin_parameters_wknd!E$10) -> -0.0127564544 | H57: =IF($C57<6,Lin_parameters_wd!F$9,Lin_parameters_wknd!F$10) -> 16.4 | I57: 1.771938814 | J57: -0.0959847532 | K57: 1.704749487 | L57: =$K57*'Input and Output'!$C$30/SUM($K$2:$K$366) -> 1.830799901
A58: 2016-02-26 | B58: ='Input and Output'!C91 -> 1.3 | C58: 6 | D58: =IF($C58<6,Lin_parameters_wd!B$9,Lin_parameters_wknd!B$10) -> 1.311247513 | E58: =IF($C58<6,Lin_parameters_wd!C$9,Lin_parameters_wknd!C$10) -> -0.07531076536 | F58: =IF($C58<6,Lin_parameters_wd!D$9,Lin_parameters_wknd!D$10) -> 0.2952447362 | G58: =IF($C58<6,Lin_parameters_wd!E$9,Lin_parameters_wknd!E$10) -> -0.009762199134 | H58: =IF($C58<6,Lin_parameters_wd!F$9,Lin_parameters_wknd!F$10) -> 15.5 | I58: 1.311247513 | J58: -0.07531076536 | K58: 1.213343518 | L58: =$K58*'Input and Output'!$C$30/SUM($K$2:$K$366) -> 1.303059018
A59: 2016-02-27 | B59: ='Input and Output'!C92 -> 1.6 | C59: 7 | D59: =IF($C59<6,Lin_parameters_wd!B$9,Lin_parameters_wknd!B$10) -> 1.311247513 | E59: =IF($C59<6,Lin_parameters_wd!C$9,Lin_parameters_wknd!C$10) -> -0.07531076536 | F59: =IF($C59<6,Lin_parameters_wd!D$9,Lin_parameters_wknd!D$10) -> 0.2952447362 | G59: =IF($C59<6,Lin_parameters_wd!E$9,Lin_parameters_wknd!E$10) -> -0.009762199134 | H59: =IF($C59<6,Lin_parameters_wd!F$9,Lin_parameters_wknd!F$10) -> 15.5 | I59: 1.311247513 | J59: -0.07531076536 | K59: 1.190750288 | L59: =$K59*'Input and Output'!$C$30/SUM($K$2:$K$366) -> 1.278795228
A60: 2016-02-28 | B60: ='Input and Output'!C93 -> 1.3 | C60: 1 | D60: =IF($C60<6,Lin_parameters_wd!B$9,Lin_parameters_wknd!B$10) -> 1.771938814 | E60: =IF($C60<6,Lin_parameters_wd!C$9,Lin_parameters_wknd!C$10) -> -0.0959847532 | F60: =IF($C60<6,Lin_parameters_wd!D$9,Lin_parameters_wknd!D$10) -> 0.4069947138 | G60: =IF($C60<6,Lin_parameters_wd!E$9,Lin_parameters_wknd!E$10) -> -0.0127564544 | H60: =IF($C60<6,Lin_parameters_wd!F$9,Lin_parameters_wknd!F$10) -> 16.4 | I60: 1.771938814 | J60: -0.0959847532 | K60: 1.647158635 | L60: =$K60*'Input and Output'!$C$30/SUM($K$2:$K$366) -> 1.76895074
A61: 2016-02-29 | B61: ='Input and Output'!C94 -> 1.9 | C61: 2 | D61: =IF($C61<6,Lin_parameters_wd!B$9,Lin_parameters_wknd!B$10) -> 1.771938814 | E61: =IF($C61<6,Lin_parameters_wd!C$9,Lin_parameters_wknd!C$10) -> -0.0959847532 | F61: =IF($C61<6,Lin_parameters_wd!D$9,Lin_parameters_wknd!D$10) -> 0.4069947138 | G61: =IF($C61<6,Lin_parameters_wd!E$9,Lin_parameters_wknd!E$10) -> -0.0127564544 | H61: =IF($C61<6,Lin_parameters_wd!F$9,Lin_parameters_wknd!F$10) -> 16.4 | I61: 1.771938814 | J61: -0.0959847532 | K61: 1.589567783 | L61: =$K61*'Input and Output'!$C$30/SUM($K$2:$K$366) -> 1.707101578
A62: 2016-03-01 | B62: ='Input and Output'!C95 -> 0.9 | C62: 3 | D62: =IF($C62<6,Lin_parameters_wd!B$9,Lin_parameters_wknd!B$10) -> 1.771938814 | E62: =IF($C62<6,Lin_parameters_wd!C$9,Lin_parameters_wknd!C$10) -> -0.0959847532 | F62: =IF($C62<6,Lin_parameters_wd!D$9,Lin_parameters_wknd!D$10) -> 0.4069947138 | G62: =IF($C62<6,Lin_parameters_wd!E$9,Lin_parameters_wknd!E$10) -> -0.0127564544 | H62: =IF($C62<6,Lin_parameters_wd!F$9,Lin_parameters_wknd!F$10) -> 16.4 | I62: 1.771938814 | J62: -0.0959847532 | K62: 1.685552536 | L62: =$K62*'Input and Output'!$C$30/SUM($K$2:$K$366) -> 1.810183514
A63: 2016-03-02 | B63: ='Input and Output'!C96 -> 4 | C63: 4 | D63: =IF($C63<6,Lin_parameters_wd!B$9,Lin_parameters_wknd!B$10) -> 1.771938814 | E63: =IF($C63<6,Lin_parameters_wd!C$9,Lin_parameters_wknd!C$10) -> -0.0959847532 | F63: =IF($C63<6,Lin_parameters_wd!D$9,Lin_parameters_wknd!D$10) -> 0.4069947138 | G63: =IF($C63<6,Lin_parameters_wd!E$9,Lin_parameters_wknd!E$10) -> -0.0127564544 | H63: =IF($C63<6,Lin_parameters_wd!F$9,Lin_parameters_wknd!F$10) -> 16.4 | I63: 1.771938814 | J63: -0.0959847532 | K63: 1.387999801 | L63: =$K63*'Input and Output'!$C$30/SUM($K$2:$K$366) -> 1.490629514
A64: 2016-03-03 | B64: ='Input and Output'!C97 -> 3.9 | C64: 5 | D64: =IF($C64<6,Lin_parameters_wd!B$9,Lin_parameters_wknd!B$10) -> 1.771938814 | E64: =IF($C64<6,Lin_parameters_wd!C$9,Lin_parameters_wknd!C$10) -> -0.0959847532 | F64: =IF($C64<6,Lin_parameters_wd!D$9,Lin_parameters_wknd!D$10) -> 0.4069947138 | G64: =IF($C64<6,Lin_parameters_wd!E$9,Lin_parameters_wknd!E$10) -> -0.0127564544 | H64: =IF($C64<6,Lin_parameters_wd!F$9,Lin_parameters_wknd!F$10) -> 16.4 | I64: 1.771938814 | J64: -0.0959847532 | K64: 1.397598277 | L64: =$K64*'Input and Output'!$C$30/SUM($K$2:$K$366) -> 1.500937707
A65: 2016-03-04 | B65: ='Input and Output'!C98 -> 3.4 | C65: 6 | D65: =IF($C65<6,Lin_parameters_wd!B$9,Lin_parameters_wknd!B$10) -> 1.311247513 | E65: =IF($C65<6,Lin_parameters_wd!C$9,Lin_parameters_wknd!C$10) -> -0.07531076536 | F65: =IF($C65<6,Lin_parameters_wd!D$9,Lin_parameters_wknd!D$10) -> 0.2952447362 | G65: =IF($C65<6,Lin_parameters_wd!E$9,Lin_parameters_wknd!E$10) -> -0.009762199134 | H65: =IF($C65<6,Lin_parameters_wd!F$9,Lin_parameters_wknd!F$10) -> 15.5 | I65: 1.311247513 | J65: -0.07531076536 | K65: 1.05519091 | L65: =$K65*'Input and Output'!$C$30/SUM($K$2:$K$366) -> 1.133212492
A66: 2016-03-05 | B66: ='Input and Output'!C99 -> 4.8 | C66: =WEEKDAY(A66) -> 7 | D66: =IF($C66<6,Lin_parameters_wd!B$9,Lin_parameters_wknd!B$10) -> 1.311247513 | E66: =IF($C66<6,Lin_parameters_wd!C$9,Lin_parameters_wknd!C$10) -> -0.07531076536 | F66: =IF($C66<6,Lin_parameters_wd!D$9,Lin_parameters_wknd!D$10) -> 0.2952447362 | G66: =IF($C66<6,Lin_parameters_wd!E$9,Lin_parameters_wknd!E$10) -> -0.009762199134 | H66: =IF($C66<6,Lin_parameters_wd!F$9,Lin_parameters_wknd!F$10) -> 15.5 | I66: 1.311247513 | J66: -0.07531076536 | K66: 0.949755839 | L66: =$K66*'Input and Output'!$C$30/SUM($K$2:$K$366) -> 1.019981475
A67: 2016-03-06 | B67: ='Input and Output'!C100 -> 2.9 | C67: 1 | D67: =IF($C67<6,Lin_parameters_wd!B$9,Lin_parameters_wknd!B$10) -> 1.771938814 | E67: =IF($C67<6,Lin_parameters_wd!C$9,Lin_parameters_wknd!C$10) -> -0.0959847532 | F67: =IF($C67<6,Lin_parameters_wd!D$9,Lin_parameters_wknd!D$10) -> 0.4069947138 | G67: =IF($C67<6,Lin_parameters_wd!E$9,Lin_parameters_wknd!E$10) -> -0.0127564544 | H67: =IF($C67<6,Lin_parameters_wd!F$9,Lin_parameters_wknd!F$10) -> 16.4 | I67: =IF($B67<$H67,$D67,$F67) -> 1.771938814 | J67: =IF($B67<$H67,$E67,$G67) -> -0.0959847532 | K67: =MAX($I67+$J67*$B67,0) -> 1.49358303 | L67: =$K67*'Input and Output'!$C$30/SUM($K$2:$K$366) -> 1.604019643
A68: =A67+1 -> 2016-03-07 | B68: ='Input and Output'!C101 -> 1.7 | C68: 2 | D68: =IF($C68<6,Lin_parameters_wd!B$9,Lin_parameters_wknd!B$10) -> 1.771938814 | E68: =IF($C68<6,Lin_parameters_wd!C$9,Lin_parameters_wknd!C$10) -> -0.0959847532 | F68: =IF($C68<6,Lin_parameters_wd!D$9,Lin_parameters_wknd!D$10) -> 0.4069947138 | G68: =IF($C68<6,Lin_parameters_wd!E$9,Lin_parameters_wknd!E$10) -> -0.0127564544 | H68: =IF($C68<6,Lin_parameters_wd!F$9,Lin_parameters_wknd!F$10) -> 16.4 | I68: 1.771938814 | J68: -0.0959847532 | K68: 1.608764734 | L68: =$K68*'Input and Output'!$C$30/SUM($K$2:$K$366) -> 1.727717965
A69: 2016-03-08 | B69: ='Input and Output'!C102 -> 1.3 | C69: 3 | D69: =IF($C69<6,Lin_parameters_wd!B$9,Lin_parameters_wknd!B$10) -> 1.771938814 | E69: =IF($C69<6,Lin_parameters_wd!C$9,Lin_parameters_wknd!C$10) -> -0.0959847532 | F69: =IF($C69<6,Lin_parameters_wd!D$9,Lin_parameters_wknd!D$10) -> 0.4069947138 | G69: =IF($C69<6,Lin_parameters_wd!E$9,Lin_parameters_wknd!E$10) -> -0.0127564544 | H69: =IF($C69<6,Lin_parameters_wd!F$9,Lin_parameters_wknd!F$10) -> 16.4 | I69: 1.771938814 | J69: -0.0959847532 | K69: 1.647158635 | L69: =$K69*'Input and Output'!$C$30/SUM($K$2:$K$366) -> 1.76895074
A70: 2016-03-09 | B70: ='Input and Output'!C103 -> 3.4 | C70: 4 | D70: =IF($C70<6,Lin_parameters_wd!B$9,Lin_parameters_wknd!B$10) -> 1.771938814 | E70: =IF($C70<6,Lin_parameters_wd!C$9,Lin_parameters_wknd!C$10) -> -0.0959847532 | F70: =IF($C70<6,Lin_parameters_wd!D$9,Lin_parameters_wknd!D$10) -> 0.4069947138 | G70: =IF($C70<6,Lin_parameters_wd!E$9,Lin_parameters_wknd!E$10) -> -0.0127564544 | H70: =IF($C70<6,Lin_parameters_wd!F$9,Lin_parameters_wknd!F$10) -> 16.4 | I70: 1.771938814 | J70: -0.0959847532 | K70: 1.445590653 | L70: =$K70*'Input and Output'!$C$30/SUM($K$2:$K$366) -> 1.552478675
A71: 2016-03-10 | B71: ='Input and Output'!C104 -> 3.4 | C71: 5 | D71: =IF($C71<6,Lin_parameters_wd!B$9,Lin_parameters_wknd!B$10) -> 1.771938814 | E71: =IF($C71<6,Lin_parameters_wd!C$9,Lin_parameters_wknd!C$10) -> -0.0959847532 | F71: =IF($C71<6,Lin_parameters_wd!D$9,Lin_parameters_wknd!D$10) -> 0.4069947138 | G71: =IF($C71<6,Lin_parameters_wd!E$9,Lin_parameters_wknd!E$10) -> -0.0127564544 | H71: =IF($C71<6,Lin_parameters_wd!F$9,Lin_parameters_wknd!F$10) -> 16.4 | I71: 1.771938814 | J71: -0.0959847532 | K71: 1.445590653 | L71: =$K71*'Input and Output'!$C$30/SUM($K$2:$K$366) -> 1.552478675
A72: 2016-03-11 | B72: ='Input and Output'!C105 -> 4.9 | C72: 6 | D72: =IF($C72<6,Lin_parameters_wd!B$9,Lin_parameters_wknd!B$10) -> 1.311247513 | E72: =IF($C72<6,Lin_parameters_wd!C$9,Lin_parameters_wknd!C$10) -> -0.07531076536 | F72: =IF($C72<6,Lin_parameters_wd!D$9,Lin_parameters_wknd!D$10) -> 0.2952447362 | G72: =IF($C72<6,Lin_parameters_wd!E$9,Lin_parameters_wknd!E$10) -> -0.009762199134 | H72: =IF($C72<6,Lin_parameters_wd!F$9,Lin_parameters_wknd!F$10) -> 15.5 | I72: 1.311247513 | J72: -0.07531076536 | K72: 0.9422247625 | L72: =$K72*'Input and Output'!$C$30/SUM($K$2:$K$366) -> 1.011893545
A73: 2016-03-12 | B73: ='Input and Output'!C106 -> 3.4 | C73: 7 | D73: =IF($C73<6,Lin_parameters_wd!B$9,Lin_parameters_wknd!B$10) -> 1.311247513 | E73: =IF($C73<6,Lin_parameters_wd!C$9,Lin_parameters_wknd!C$10) -> -0.07531076536 | F73: =IF($C73<6,Lin_parameters_wd!D$9,Lin_parameters_wknd!D$10) -> 0.2952447362 | G73: =IF($C73<6,Lin_parameters_wd!E$9,Lin_parameters_wknd!E$10) -> -0.009762199134 | H73: =IF($C73<6,Lin_parameters_wd!F$9,Lin_parameters_wknd!F$10) -> 15.5 | I73: 1.311247513 | J73: -0.07531076536 | K73: 1.05519091 | L73: =$K73*'Input and Output'!$C$30/SUM($K$2:$K$366) -> 1.133212492
A74: 2016-03-13 | B74: ='Input and Output'!C107 -> 3.4 | C74: 1 | D74: =IF($C74<6,Lin_parameters_wd!B$9,Lin_parameters_wknd!B$10) -> 1.771938814 | E74: =IF($C74<6,Lin_parameters_wd!C$9,Lin_parameters_wknd!C$10) -> -0.0959847532 | F74: =IF($C74<6,Lin_parameters_wd!D$9,Lin_parameters_wknd!D$10) -> 0.4069947138 | G74: =IF($C74<6,Lin_parameters_wd!E$9,Lin_parameters_wknd!E$10) -> -0.0127564544 | H74: =IF($C74<6,Lin_parameters_wd!F$9,Lin_parameters_wknd!F$10) -> 16.4 | I74: 1.771938814 | J74: -0.0959847532 | K74: 1.445590653 | L74: =$K74*'Input and Output'!$C$30/SUM($K$2:$K$366) -> 1.552478675
A75: 2016-03-14 | B75: ='Input and Output'!C108 -> 4.6 | C75: 2 | D75: =IF($C75<6,Lin_parameters_wd!B$9,Lin_parameters_wknd!B$10) -> 1.771938814 | E75: =IF($C75<6,Lin_parameters_wd!C$9,Lin_parameters_wknd!C$10) -> -0.0959847532 | F75: =IF($C75<6,Lin_parameters_wd!D$9,Lin_parameters_wknd!D$10) -> 0.4069947138 | G75: =IF($C75<6,Lin_parameters_wd!E$9,Lin_parameters_wknd!E$10) -> -0.0127564544 | H75: =IF($C75<6,Lin_parameters_wd!F$9,Lin_parameters_wknd!F$10) -> 16.4 | I75: 1.771938814 | J75: -0.0959847532 | K75: 1.330408949 | L75: =$K75*'Input and Output'!$C$30/SUM($K$2:$K$366) -> 1.428780352
A76: 2016-03-15 | B76: ='Input and Output'!C109 -> 4.1 | C76: 3 | D76: =IF($C76<6,Lin_parameters_wd!B$9,Lin_parameters_wknd!B$10) -> 1.771938814 | E76: =IF($C76<6,Lin_parameters_wd!C$9,Lin_parameters_wknd!C$10) -> -0.0959847532 | F76: =IF($C76<6,Lin_parameters_wd!D$9,Lin_parameters_wknd!D$10) -> 0.4069947138 | G76: =IF($C76<6,Lin_parameters_wd!E$9,Lin_parameters_wknd!E$10) -> -0.0127564544 | H76: =IF($C76<6,Lin_parameters_wd!F$9,Lin_parameters_wknd!F$10) -> 16.4 | I76: 1.771938814 | J76: -0.0959847532 | K76: 1.378401326 | L76: =$K76*'Input and Output'!$C$30/SUM($K$2:$K$366) -> 1.48032132
A77: 2016-03-16 | B77: ='Input and Output'!C110 -> 4.9 | C77: 4 | D77: =IF($C77<6,Lin_parameters_wd!B$9,Lin_parameters_wknd!B$10) -> 1.771938814 | E77: =IF($C77<6,Lin_parameters_wd!C$9,Lin_parameters_wknd!C$10) -> -0.0959847532 | F77: =IF($C77<6,Lin_parameters_wd!D$9,Lin_parameters_wknd!D$10) -> 0.4069947138 | G77: =IF($C77<6,Lin_parameters_wd!E$9,Lin_parameters_wknd!E$10) -> -0.0127564544 | H77: =IF($C77<6,Lin_parameters_wd!F$9,Lin_parameters_wknd!F$10) -> 16.4 | I77: 1.771938814 | J77: -0.0959847532 | K77: 1.301613523 | L77: =$K77*'Input and Output'!$C$30/SUM($K$2:$K$366) -> 1.397855772
A78: 2016-03-17 | B78: ='Input and Output'!C111 -> 6.6 | C78: 5 | D78: =IF($C78<6,Lin_parameters_wd!B$9,Lin_parameters_wknd!B$10) -> 1.771938814 | E78: =IF($C78<6,Lin_parameters_wd!C$9,Lin_parameters_wknd!C$10) -> -0.0959847532 | F78: =IF($C78<6,Lin_parameters_wd!D$9,Lin_parameters_wknd!D$10) -> 0.4069947138 | G78: =IF($C78<6,Lin_parameters_wd!E$9,Lin_parameters_wknd!E$10) -> -0.0127564544 | H78: =IF($C78<6,Lin_parameters_wd!F$9,Lin_parameters_wknd!F$10) -> 16.4 | I78: 1.771938814 | J78: -0.0959847532 | K78: 1.138439443 | L78: =$K78*'Input and Output'!$C$30/SUM($K$2:$K$366) -> 1.222616481
A79: 2016-03-18 | B79: ='Input and Output'!C112 -> 3.4 | C79: 6 | D79: =IF($C79<6,Lin_parameters_wd!B$9,Lin_parameters_wknd!B$10) -> 1.311247513 | E79: =IF($C79<6,Lin_parameters_wd!C$9,Lin_parameters_wknd!C$10) -> -0.07531076536 | F79: =IF($C79<6,Lin_parameters_wd!D$9,Lin_parameters_wknd!D$10) -> 0.2952447362 | G79: =IF($C79<6,Lin_parameters_wd!E$9,Lin_parameters_wknd!E$10) -> -0.009762199134 | H79: =IF($C79<6,Lin_parameters_wd!F$9,Lin_parameters_wknd!F$10) -> 15.5 | I79: 1.311247513 | J79: -0.07531076536 | K79: 1.05519091 | L79: =$K79*'Input and Output'!$C$30/SUM($K$2:$K$366) -> 1.133212492
A80: 2016-03-19 | B80: ='Input and Output'!C113 -> 4.9 | C80: 7 | D80: =IF($C80<6,Lin_parameters_wd!B$9,Lin_parameters_wknd!B$10) -> 1.311247513 | E80: =IF($C80<6,Lin_parameters_wd!C$9,Lin_parameters_wknd!C$10) -> -0.07531076536 | F80: =IF($C80<6,Lin_parameters_wd!D$9,Lin_parameters_wknd!D$10) -> 0.2952447362 | G80: =IF($C80<6,Lin_parameters_wd!E$9,Lin_parameters_wknd!E$10) -> -0.009762199134 | H80: =IF($C80<6,Lin_parameters_wd!F$9,Lin_parameters_wknd!F$10) -> 15.5 | I80: 1.311247513 | J80: -0.07531076536 | K80: 0.9422247625 | L80: =$K80*'Input and Output'!$C$30/SUM($K$2:$K$366) -> 1.011893545
A81: 2016-03-20 | B81: ='Input and Output'!C114 -> 5.8 | C81: 1 | D81: =IF($C81<6,Lin_parameters_wd!B$9,Lin_parameters_wknd!B$10) -> 1.771938814 | E81: =IF($C81<6,Lin_parameters_wd!C$9,Lin_parameters_wknd!C$10) -> -0.0959847532 | F81: =IF($C81<6,Lin_parameters_wd!D$9,Lin_parameters_wknd!D$10) -> 0.4069947138 | G81: =IF($C81<6,Lin_parameters_wd!E$9,Lin_parameters_wknd!E$10) -> -0.0127564544 | H81: =IF($C81<6,Lin_parameters_wd!F$9,Lin_parameters_wknd!F$10) -> 16.4 | I81: 1.771938814 | J81: -0.0959847532 | K81: 1.215227246 | L81: =$K81*'Input and Output'!$C$30/SUM($K$2:$K$366) -> 1.30508203
A82: 2016-03-21 | B82: ='Input and Output'!C115 -> 6.3 | C82: 2 | D82: =IF($C82<6,Lin_parameters_wd!B$9,Lin_parameters_wknd!B$10) -> 1.771938814 | E82: =IF($C82<6,Lin_parameters_wd!C$9,Lin_parameters_wknd!C$10) -> -0.0959847532 | F82: =IF($C82<6,Lin_parameters_wd!D$9,Lin_parameters_wknd!D$10) -> 0.4069947138 | G82: =IF($C82<6,Lin_parameters_wd!E$9,Lin_parameters_wknd!E$10) -> -0.0127564544 | H82: =IF($C82<6,Lin_parameters_wd!F$9,Lin_parameters_wknd!F$10) -> 16.4 | I82: 1.771938814 | J82: -0.0959847532 | K82: 1.167234869 | L82: =$K82*'Input and Output'!$C$30/SUM($K$2:$K$366) -> 1.253541062
A83: 2016-03-22 | B83: ='Input and Output'!C116 -> 6.2 | C83: 3 | D83: =IF($C83<6,Lin_parameters_wd!B$9,Lin_parameters_wknd!B$10) -> 1.771938814 | E83: =IF($C83<6,Lin_parameters_wd!C$9,Lin_parameters_wknd!C$10) -> -0.0959847532 | F83: =IF($C83<6,Lin_parameters_wd!D$9,Lin_parameters_wknd!D$10) -> 0.4069947138 | G83: =IF($C83<6,Lin_parameters_wd!E$9,Lin_parameters_wknd!E$10) -> -0.0127564544 | H83: =IF($C83<6,Lin_parameters_wd!F$9,Lin_parameters_wknd!F$10) -> 16.4 | I83: 1.771938814 | J83: -0.0959847532 | K83: 1.176833344 | L83: =$K83*'Input and Output'!$C$30/SUM($K$2:$K$366) -> 1.263849256
A84: 2016-03-23 | B84: ='Input and Output'!C117 -> 6.5 | C84: 4 | D84: =IF($C84<6,Lin_parameters_wd!B$9,Lin_parameters_wknd!B$10) -> 1.771938814 | E84: =IF($C84<6,Lin_parameters_wd!C$9,Lin_parameters_wknd!C$10) -> -0.0959847532 | F84: =IF($C84<6,Lin_parameters_wd!D$9,Lin_parameters_wknd!D$10) -> 0.4069947138 | G84: =IF($C84<6,Lin_parameters_wd!E$9,Lin_parameters_wknd!E$10) -> -0.0127564544 | H84: =IF($C84<6,Lin_parameters_wd!F$9,Lin_parameters_wknd!F$10) -> 16.4 | I84: 1.771938814 | J84: -0.0959847532 | K84: 1.148037918 | L84: =$K84*'Input and Output'!$C$30/SUM($K$2:$K$366) -> 1.232924675
A85: 2016-03-24 | B85: ='Input and Output'!C118 -> 6.3 | C85: 5 | D85: =IF($C85<6,Lin_parameters_wd!B$9,Lin_parameters_wknd!B$10) -> 1.771938814 | E85: =IF($C85<6,Lin_parameters_wd!C$9,Lin_parameters_wknd!C$10) -> -0.0959847532 | F85: =IF($C85<6,Lin_parameters_wd!D$9,Lin_parameters_wknd!D$10) -> 0.4069947138 | G85: =IF($C85<6,Lin_parameters_wd!E$9,Lin_parameters_wknd!E$10) -> -0.0127564544 | H85: =IF($C85<6,Lin_parameters_wd!F$9,Lin_parameters_wknd!F$10) -> 16.4 | I85: 1.771938814 | J85: -0.0959847532 | K85: 1.167234869 | L85: =$K85*'Input and Output'!$C$30/SUM($K$2:$K$366) -> 1.253541062
A86: 2016-03-25 | B86: ='Input and Output'!C119 -> 6 | C86: 6 | D86: =IF($C86<6,Lin_parameters_wd!B$9,Lin_parameters_wknd!B$10) -> 1.311247513 | E86: =IF($C86<6,Lin_parameters_wd!C$9,Lin_parameters_wknd!C$10) -> -0.07531076536 | F86: =IF($C86<6,Lin_parameters_wd!D$9,Lin_parameters_wknd!D$10) -> 0.2952447362 | G86: =IF($C86<6,Lin_parameters_wd!E$9,Lin_parameters_wknd!E$10) -> -0.009762199134 | H86: =IF($C86<6,Lin_parameters_wd!F$9,Lin_parameters_wknd!F$10) -> 15.5 | I86: 1.311247513 | J86: -0.07531076536 | K86: 0.8593829206 | L86: =$K86*'Input and Output'!$C$30/SUM($K$2:$K$366) -> 0.9229263172
A87: 2016-03-26 | B87: ='Input and Output'!C120 -> 9 | C87: 7 | D87: =IF($C87<6,Lin_parameters_wd!B$9,Lin_parameters_wknd!B$10) -> 1.311247513 | E87: =IF($C87<6,Lin_parameters_wd!C$9,Lin_parameters_wknd!C$10) -> -0.07531076536 | F87: =IF($C87<6,Lin_parameters_wd!D$9,Lin_parameters_wknd!D$10) -> 0.2952447362 | G87: =IF($C87<6,Lin_parameters_wd!E$9,Lin_parameters_wknd!E$10) -> -0.009762199134 | H87: =IF($C87<6,Lin_parameters_wd!F$9,Lin_parameters_wknd!F$10) -> 15.5 | I87: 1.311247513 | J87: -0.07531076536 | K87: 0.6334506245 | L87: =$K87*'Input and Output'!$C$30/SUM($K$2:$K$366) -> 0.6802884232
A88: 2016-03-27 | B88: ='Input and Output'!C121 -> 8.6 | C88: 1 | D88: =IF($C88<6,Lin_parameters_wd!B$9,Lin_parameters_wknd!B$10) -> 1.771938814 | E88: =IF($C88<6,Lin_parameters_wd!C$9,Lin_parameters_wknd!C$10) -> -0.0959847532 | F88: =IF($C88<6,Lin_parameters_wd!D$9,Lin_parameters_wknd!D$10) -> 0.4069947138 | G88: =IF($C88<6,Lin_parameters_wd!E$9,Lin_parameters_wknd!E$10) -> -0.0127564544 | H88: =IF($C88<6,Lin_parameters_wd!F$9,Lin_parameters_wknd!F$10) -> 16.4 | I88: 1.771938814 | J88: -0.0959847532 | K88: 0.9464699366 | L88: =$K88*'Input and Output'!$C$30/SUM($K$2:$K$366) -> 1.01645261
A89: 2016-03-28 | B89: ='Input and Output'!C122 -> 7.5 | C89: 2 | D89: =IF($C89<6,Lin_parameters_wd!B$9,Lin_parameters_wknd!B$10) -> 1.771938814 | E89: =IF($C89<6,Lin_parameters_wd!C$9,Lin_parameters_wknd!C$10) -> -0.0959847532 | F89: =IF($C89<6,Lin_parameters_wd!D$9,Lin_parameters_wknd!D$10) -> 0.4069947138 | G89: =IF($C89<6,Lin_parameters_wd!E$9,Lin_parameters_wknd!E$10) -> -0.0127564544 | H89: =IF($C89<6,Lin_parameters_wd!F$9,Lin_parameters_wknd!F$10) -> 16.4 | I89: 1.771938814 | J89: -0.0959847532 | K89: 1.052053165 | L89: =$K89*'Input and Output'!$C$30/SUM($K$2:$K$366) -> 1.12984274
A90: 2016-03-29 | B90: ='Input and Output'!C123 -> 7.2 | C90: 3 | D90: =IF($C90<6,Lin_parameters_wd!B$9,Lin_parameters_wknd!B$10) -> 1.771938814 | E90: =IF($C90<6,Lin_parameters_wd!C$9,Lin_parameters_wknd!C$10) -> -0.0959847532 | F90: =IF($C90<6,Lin_parameters_wd!D$9,Lin_parameters_wknd!D$10) -> 0.4069947138 | G90: =IF($C90<6,Lin_parameters_wd!E$9,Lin_parameters_wknd!E$10) -> -0.0127564544 | H90: =IF($C90<6,Lin_parameters_wd!F$9,Lin_parameters_wknd!F$10) -> 16.4 | I90: 1.771938814 | J90: -0.0959847532 | K90: 1.080848591 | L90: =$K90*'Input and Output'!$C$30/SUM($K$2:$K$366) -> 1.16076732
A91: 2016-03-30 | B91: ='Input and Output'!C124 -> 8.6 | C91: 4 | D91: =IF($C91<6,Lin_parameters_wd!B$9,Lin_parameters_wknd!B$10) -> 1.771938814 | E91: =IF($C91<6,Lin_parameters_wd!C$9,Lin_parameters_wknd!C$10) -> -0.0959847532 | F91: =IF($C91<6,Lin_parameters_wd!D$9,Lin_parameters_wknd!D$10) -> 0.4069947138 | G91: =IF($C91<6,Lin_parameters_wd!E$9,Lin_parameters_wknd!E$10) -> -0.0127564544 | H91: =IF($C91<6,Lin_parameters_wd!F$9,Lin_parameters_wknd!F$10) -> 16.4 | I91: 1.771938814 | J91: -0.0959847532 | K91: 0.9464699366 | L91: =$K91*'Input and Output'!$C$30/SUM($K$2:$K$366) -> 1.01645261
A92: 2016-03-31 | B92: ='Input and Output'!C125 -> 6.1 | C92: 5 | D92: =IF($C92<6,Lin_parameters_wd!B$9,Lin_parameters_wknd!B$10) -> 1.771938814 | E92: =IF($C92<6,Lin_parameters_wd!C$9,Lin_parameters_wknd!C$10) -> -0.0959847532 | F92: =IF($C92<6,Lin_parameters_wd!D$9,Lin_parameters_wknd!D$10) -> 0.4069947138 | G92: =IF($C92<6,Lin_parameters_wd!E$9,Lin_parameters_wknd!E$10) -> -0.0127564544 | H92: =IF($C92<6,Lin_parameters_wd!F$9,Lin_parameters_wknd!F$10) -> 16.4 | I92: 1.771938814 | J92: -0.0959847532 | K92: 1.18643182 | L92: =$K92*'Input and Output'!$C$30/SUM($K$2:$K$366) -> 1.274157449
A93: 2016-04-01 | B93: ='Input and Output'!C126 -> 7.6 | C93: 6 | D93: =IF($C93<6,Lin_parameters_wd!B$9,Lin_parameters_wknd!B$10) -> 1.311247513 | E93: =IF($C93<6,Lin_parameters_wd!C$9,Lin_parameters_wknd!C$10) -> -0.07531076536 | F93: =IF($C93<6,Lin_parameters_wd!D$9,Lin_parameters_wknd!D$10) -> 0.2952447362 | G93: =IF($C93<6,Lin_parameters_wd!E$9,Lin_parameters_wknd!E$10) -> -0.009762199134 | H93: =IF($C93<6,Lin_parameters_wd!F$9,Lin_parameters_wknd!F$10) -> 15.5 | I93: 1.311247513 | J93: -0.07531076536 | K93: 0.738885696 | L93: =$K93*'Input and Output'!$C$30/SUM($K$2:$K$366) -> 0.7935194404
A94: 2016-04-02 | B94: ='Input and Output'!C127 -> 10 | C94: 7 | D94: =IF($C94<6,Lin_parameters_wd!B$9,Lin_parameters_wknd!B$10) -> 1.311247513 | E94: =IF($C94<6,Lin_parameters_wd!C$9,Lin_parameters_wknd!C$10) -> -0.07531076536 | F94: =IF($C94<6,Lin_parameters_wd!D$9,Lin_parameters_wknd!D$10) -> 0.2952447362 | G94: =IF($C94<6,Lin_parameters_wd!E$9,Lin_parameters_wknd!E$10) -> -0.009762199134 | H94: =IF($C94<6,Lin_parameters_wd!F$9,Lin_parameters_wknd!F$10) -> 15.5 | I94: 1.311247513 | J94: -0.07531076536 | K94: 0.5581398591 | L94: =$K94*'Input and Output'!$C$30/SUM($K$2:$K$366) -> 0.5994091253
A95: 2016-04-03 | B95: ='Input and Output'!C128 -> 14.1 | C95: 1 | D95: =IF($C95<6,Lin_parameters_wd!B$9,Lin_parameters_wknd!B$10) -> 1.771938814 | E95: =IF($C95<6,Lin_parameters_wd!C$9,Lin_parameters_wknd!C$10) -> -0.0959847532 | F95: =IF($C95<6,Lin_parameters_wd!D$9,Lin_parameters_wknd!D$10) -> 0.4069947138 | G95: =IF($C95<6,Lin_parameters_wd!E$9,Lin_parameters_wknd!E$10) -> -0.0127564544 | H95: =IF($C95<6,Lin_parameters_wd!F$9,Lin_parameters_wknd!F$10) -> 16.4 | I95: 1.771938814 | J95: -0.0959847532 | K95: 0.418553794 | L95: =$K95*'Input and Output'!$C$30/SUM($K$2:$K$366) -> 0.4495019652
A96: 2016-04-04 | B96: ='Input and Output'!C129 -> 14.9 | C96: 2 | D96: =IF($C96<6,Lin_parameters_wd!B$9,Lin_parameters_wknd!B$10) -> 1.771938814 | E96: =IF($C96<6,Lin_parameters_wd!C$9,Lin_parameters_wknd!C$10) -> -0.0959847532 | F96: =IF($C96<6,Lin_parameters_wd!D$9,Lin_parameters_wknd!D$10) -> 0.4069947138 | G96: =IF($C96<6,Lin_parameters_wd!E$9,Lin_parameters_wknd!E$10) -> -0.0127564544 | H96: =IF($C96<6,Lin_parameters_wd!F$9,Lin_parameters_wknd!F$10) -> 16.4 | I96: 1.771938814 | J96: -0.0959847532 | K96: 0.3417659915 | L96: =$K96*'Input and Output'!$C$30/SUM($K$2:$K$366) -> 0.3670364169
A97: 2016-04-05 | B97: ='Input and Output'!C130 -> 12.4 | C97: 3 | D97: =IF($C97<6,Lin_parameters_wd!B$9,Lin_parameters_wknd!B$10) -> 1.771938814 | E97: =IF($C97<6,Lin_parameters_wd!C$9,Lin_parameters_wknd!C$10) -> -0.0959847532 | F97: =IF($C97<6,Lin_parameters_wd!D$9,Lin_parameters_wknd!D$10) -> 0.4069947138 | G97: =IF($C97<6,Lin_parameters_wd!E$9,Lin_parameters_wknd!E$10) -> -0.0127564544 | H97: =IF($C97<6,Lin_parameters_wd!F$9,Lin_parameters_wknd!F$10) -> 16.4 | I97: 1.771938814 | J97: -0.0959847532 | K97: 0.5817278745 | L97: =$K97*'Input and Output'!$C$30/SUM($K$2:$K$366) -> 0.6247412556
A98: 2016-04-06 | B98: ='Input and Output'!C131 -> 11.1 | C98: 4 | D98: =IF($C98<6,Lin_parameters_wd!B$9,Lin_parameters_wknd!B$10) -> 1.771938814 | E98: =IF($C98<6,Lin_parameters_wd!C$9,Lin_parameters_wknd!C$10) -> -0.0959847532 | F98: =IF($C98<6,Lin_parameters_wd!D$9,Lin_parameters_wknd!D$10) -> 0.4069947138 | G98: =IF($C98<6,Lin_parameters_wd!E$9,Lin_parameters_wknd!E$10) -> -0.0127564544 | H98: =IF($C98<6,Lin_parameters_wd!F$9,Lin_parameters_wknd!F$10) -> 16.4 | I98: 1.771938814 | J98: -0.0959847532 | K98: 0.7065080536 | L98: =$K98*'Input and Output'!$C$30/SUM($K$2:$K$366) -> 0.7587477717
A99: 2016-04-07 | B99: ='Input and Output'!C132 -> 9 | C99: 5 | D99: =IF($C99<6,Lin_parameters_wd!B$9,Lin_parameters_wknd!B$10) -> 1.771938814 | E99: =IF($C99<6,Lin_parameters_wd!C$9,Lin_parameters_wknd!C$10) -> -0.0959847532 | F99: =IF($C99<6,Lin_parameters_wd!D$9,Lin_parameters_wknd!D$10) -> 0.4069947138 | G99: =IF($C99<6,Lin_parameters_wd!E$9,Lin_parameters_wknd!E$10) -> -0.0127564544 | H99: =IF($C99<6,Lin_parameters_wd!F$9,Lin_parameters_wknd!F$10) -> 16.4 | I99: 1.771938814 | J99: -0.0959847532 | K99: 0.9080760354 | L99: =$K99*'Input and Output'!$C$30/SUM($K$2:$K$366) -> 0.9752198363
A100: 2016-04-08 | B100: ='Input and Output'!C133 -> 7.6 | C100: 6 | D100: =IF($C100<6,Lin_parameters_wd!B$9,Lin_parameters_wknd!B$10) -> 1.311247513 | E100: =IF($C100<6,Lin_parameters_wd!C$9,Lin_parameters_wknd!C$10) -> -0.07531076536 | F100: =IF($C100<6,Lin_parameters_wd!D$9,Lin_parameters_wknd!D$10) -> 0.2952447362 | G100: =IF($C100<6,Lin_parameters_wd!E$9,Lin_parameters_wknd!E$10) -> -0.009762199134 | H100: =IF($C100<6,Lin_parameters_wd!F$9,Lin_parameters_wknd!F$10) -> 15.5 | I100: 1.311247513 | J100: -0.07531076536 | K100: 0.738885696 | L100: =$K100*'Input and Output'!$C$30/SUM($K$2:$K$366) -> 0.7935194404
A101: 2016-04-09 | B101: ='Input and Output'!C134 -> 9.5 | C101: 7 | D101: =IF($C101<6,Lin_parameters_wd!B$9,Lin_parameters_wknd!B$10) -> 1.311247513 | E101: =IF($C101<6,Lin_parameters_wd!C$9,Lin_parameters_wknd!C$10) -> -0.07531076536 | F101: =IF($C101<6,Lin_parameters_wd!D$9,Lin_parameters_wknd!D$10) -> 0.2952447362 | G101: =IF($C101<6,Lin_parameters_wd!E$9,Lin_parameters_wknd!E$10) -> -0.009762199134 | H101: =IF($C101<6,Lin_parameters_wd!F$9,Lin_parameters_wknd!F$10) -> 15.5 | I101: 1.311247513 | J101: -0.07531076536 | K101: 0.5957952418 | L101: =$K101*'Input and Output'!$C$30/SUM($K$2:$K$366) -> 0.6398487742
A102: 2016-04-10 | B102: ='Input and Output'!C135 -> 11.9 | C102: 1 | D102: =IF($C102<6,Lin_parameters_wd!B$9,Lin_parameters_wknd!B$10) -> 1.771938814 | E102: =IF($C102<6,Lin_parameters_wd!C$9,Lin_parameters_wknd!C$10) -> -0.0959847532 | F102: =IF($C102<6,Lin_parameters_wd!D$9,Lin_parameters_wknd!D$10) -> 0.4069947138 | G102: =IF($C102<6,Lin_parameters_wd!E$9,Lin_parameters_wknd!E$10) -> -0.0127564544 | H102: =IF($C102<6,Lin_parameters_wd!F$9,Lin_parameters_wknd!F$10) -> 16.4 | I102: 1.771938814 | J102: -0.0959847532 | K102: 0.6297202511 | L102: =$K102*'Input and Output'!$C$30/SUM($K$2:$K$366) -> 0.6762822233
A103: 2016-04-11 | B103: ='Input and Output'!C136 -> 9.9 | C103: 2 | D103: =IF($C103<6,Lin_parameters_wd!B$9,Lin_parameters_wknd!B$10) -> 1.771938814 | E103: =IF($C103<6,Lin_parameters_wd!C$9,Lin_parameters_wknd!C$10) -> -0.0959847532 | F103: =IF($C103<6,Lin_parameters_wd!D$9,Lin_parameters_wknd!D$10) -> 0.4069947138 | G103: =IF($C103<6,Lin_parameters_wd!E$9,Lin_parameters_wknd!E$10) -> -0.0127564544 | H103: =IF($C103<6,Lin_parameters_wd!F$9,Lin_parameters_wknd!F$10) -> 16.4 | I103: 1.771938814 | J103: -0.0959847532 | K103: 0.8216897575 | L103: =$K103*'Input and Output'!$C$30/SUM($K$2:$K$366) -> 0.8824460943
A104: 2016-04-12 | B104: ='Input and Output'!C137 -> 10.7 | C104: 3 | D104: =IF($C104<6,Lin_parameters_wd!B$9,Lin_parameters_wknd!B$10) -> 1.771938814 | E104: =IF($C104<6,Lin_parameters_wd!C$9,Lin_parameters_wknd!C$10) -> -0.0959847532 | F104: =IF($C104<6,Lin_parameters_wd!D$9,Lin_parameters_wknd!D$10) -> 0.4069947138 | G104: =IF($C104<6,Lin_parameters_wd!E$9,Lin_parameters_wknd!E$10) -> -0.0127564544 | H104: =IF($C104<6,Lin_parameters_wd!F$9,Lin_parameters_wknd!F$10) -> 16.4 | I104: 1.771938814 | J104: -0.0959847532 | K104: 0.7449019549 | L104: =$K104*'Input and Output'!$C$30/SUM($K$2:$K$366) -> 0.7999805459
A105: 2016-04-13 | B105: ='Input and Output'!C138 -> 10 | C105: 4 | D105: =IF($C105<6,Lin_parameters_wd!B$9,Lin_parameters_wknd!B$10) -> 1.771938814 | E105: =IF($C105<6,Lin_parameters_wd!C$9,Lin_parameters_wknd!C$10) -> -0.0959847532 | F105: =IF($C105<6,Lin_parameters_wd!D$9,Lin_parameters_wknd!D$10) -> 0.4069947138 | G105: =IF($C105<6,Lin_parameters_wd!E$9,Lin_parameters_wknd!E$10) -> -0.0127564544 | H105: =IF($C105<6,Lin_parameters_wd!F$9,Lin_parameters_wknd!F$10) -> 16.4 | I105: 1.771938814 | J105: -0.0959847532 | K105: 0.8120912822 | L105: =$K105*'Input and Output'!$C$30/SUM($K$2:$K$366) -> 0.8721379008
A106: 2016-04-14 | B106: ='Input and Output'!C139 -> 11.5 | C106: 5 | D106: =IF($C106<6,Lin_parameters_wd!B$9,Lin_parameters_wknd!B$10) -> 1.771938814 | E106: =IF($C106<6,Lin_parameters_wd!C$9,Lin_parameters_wknd!C$10) -> -0.0959847532 | F106: =IF($C106<6,Lin_parameters_wd!D$9,Lin_parameters_wknd!D$10) -> 0.4069947138 | G106: =IF($C106<6,Lin_parameters_wd!E$9,Lin_parameters_wknd!E$10) -> -0.0127564544 | H106: =IF($C106<6,Lin_parameters_wd!F$9,Lin_parameters_wknd!F$10) -> 16.4 | I106: 1.771938814 | J106: -0.0959847532 | K106: 0.6681141524 | L106: =$K106*'Input and Output'!$C$30/SUM($K$2:$K$366) -> 0.7175149975
A107: 2016-04-15 | B107: ='Input and Output'!C140 -> 11.4 | C107: 6 | D107: =IF($C107<6,Lin_parameters_wd!B$9,Lin_parameters_wknd!B$10) -> 1.311247513 | E107: =IF($C107<6,Lin_parameters_wd!C$9,Lin_parameters_wknd!C$10) -> -0.07531076536 | F107: =IF($C107<6,Lin_parameters_wd!D$9,Lin_parameters_wknd!D$10) -> 0.2952447362 | G107: =IF($C107<6,Lin_parameters_wd!E$9,Lin_parameters_wknd!E$10) -> -0.009762199134 | H107: =IF($C107<6,Lin_parameters_wd!F$9,Lin_parameters_wknd!F$10) -> 15.5 | I107: 1.311247513 | J107: -0.07531076536 | K107: 0.4527047876 | L107: =$K107*'Input and Output'!$C$30/SUM($K$2:$K$366) -> 0.4861781081
A108: 2016-04-16 | B108: ='Input and Output'!C141 -> 10.9 | C108: 7 | D108: =IF($C108<6,Lin_parameters_wd!B$9,Lin_parameters_wknd!B$10) -> 1.311247513 | E108: =IF($C108<6,Lin_parameters_wd!C$9,Lin_parameters_wknd!C$10) -> -0.07531076536 | F108: =IF($C108<6,Lin_parameters_wd!D$9,Lin_parameters_wknd!D$10) -> 0.2952447362 | G108: =IF($C108<6,Lin_parameters_wd!E$9,Lin_parameters_wknd!E$10) -> -0.009762199134 | H108: =IF($C108<6,Lin_parameters_wd!F$9,Lin_parameters_wknd!F$10) -> 15.5 | I108: 1.311247513 | J108: -0.07531076536 | K108: 0.4903601703 | L108: =$K108*'Input and Output'!$C$30/SUM($K$2:$K$366) -> 0.5266177571
A109: 2016-04-17 | B109: ='Input and Output'!C142 -> 8 | C109: 1 | D109: =IF($C109<6,Lin_parameters_wd!B$9,Lin_parameters_wknd!B$10) -> 1.771938814 | E109: =IF($C109<6,Lin_parameters_wd!C$9,Lin_parameters_wknd!C$10) -> -0.0959847532 | F109: =IF($C109<6,Lin_parameters_wd!D$9,Lin_parameters_wknd!D$10) -> 0.4069947138 | G109: =IF($C109<6,Lin_parameters_wd!E$9,Lin_parameters_wknd!E$10) -> -0.0127564544 | H109: =IF($C109<6,Lin_parameters_wd!F$9,Lin_parameters_wknd!F$10) -> 16.4 | I109: 1.771938814 | J109: -0.0959847532 | K109: 1.004060789 | L109: =$K109*'Input and Output'!$C$30/SUM($K$2:$K$366) -> 1.078301772
A110: 2016-04-18 | B110: ='Input and Output'!C143 -> 8.1 | C110: 2 | D110: =IF($C110<6,Lin_parameters_wd!B$9,Lin_parameters_wknd!B$10) -> 1.771938814 | E110: =IF($C110<6,Lin_parameters_wd!C$9,Lin_parameters_wknd!C$10) -> -0.0959847532 | F110: =IF($C110<6,Lin_parameters_wd!D$9,Lin_parameters_wknd!D$10) -> 0.4069947138 | G110: =IF($C110<6,Lin_parameters_wd!E$9,Lin_parameters_wknd!E$10) -> -0.0127564544 | H110: =IF($C110<6,Lin_parameters_wd!F$9,Lin_parameters_wknd!F$10) -> 16.4 | I110: 1.771938814 | J110: -0.0959847532 | K110: 0.9944623132 | L110: =$K110*'Input and Output'!$C$30/SUM($K$2:$K$366) -> 1.067993578
A111: 2016-04-19 | B111: ='Input and Output'!C144 -> 10 | C111: 3 | D111: =IF($C111<6,Lin_parameters_wd!B$9,Lin_parameters_wknd!B$10) -> 1.771938814 | E111: =IF($C111<6,Lin_parameters_wd!C$9,Lin_parameters_wknd!C$10) -> -0.0959847532 | F111: =IF($C111<6,Lin_parameters_wd!D$9,Lin_parameters_wknd!D$10) -> 0.4069947138 | G111: =IF($C111<6,Lin_parameters_wd!E$9,Lin_parameters_wknd!E$10) -> -0.0127564544 | H111: =IF($C111<6,Lin_parameters_wd!F$9,Lin_parameters_wknd!F$10) -> 16.4 | I111: 1.771938814 | J111: -0.0959847532 | K111: 0.8120912822 | L111: =$K111*'Input and Output'!$C$30/SUM($K$2:$K$366) -> 0.8721379008
A112: 2016-04-20 | B112: ='Input and Output'!C145 -> 8.6 | C112: 4 | D112: =IF($C112<6,Lin_parameters_wd!B$9,Lin_parameters_wknd!B$10) -> 1.771938814 | E112: =IF($C112<6,Lin_parameters_wd!C$9,Lin_parameters_wknd!C$10) -> -0.0959847532 | F112: =IF($C112<6,Lin_parameters_wd!D$9,Lin_parameters_wknd!D$10) -> 0.4069947138 | G112: =IF($C112<6,Lin_parameters_wd!E$9,Lin_parameters_wknd!E$10) -> -0.0127564544 | H112: =IF($C112<6,Lin_parameters_wd!F$9,Lin_parameters_wknd!F$10) -> 16.4 | I112: 1.771938814 | J112: -0.0959847532 | K112: 0.9464699366 | L112: =$K112*'Input and Output'!$C$30/SUM($K$2:$K$366) -> 1.01645261
A113: 2016-04-21 | B113: ='Input and Output'!C146 -> 11.7 | C113: 5 | D113: =IF($C113<6,Lin_parameters_wd!B$9,Lin_parameters_wknd!B$10) -> 1.771938814 | E113: =IF($C113<6,Lin_parameters_wd!C$9,Lin_parameters_wknd!C$10) -> -0.0959847532 | F113: =IF($C113<6,Lin_parameters_wd!D$9,Lin_parameters_wknd!D$10) -> 0.4069947138 | G113: =IF($C113<6,Lin_parameters_wd!E$9,Lin_parameters_wknd!E$10) -> -0.0127564544 | H113: =IF($C113<6,Lin_parameters_wd!F$9,Lin_parameters_wknd!F$10) -> 16.4 | I113: 1.771938814 | J113: -0.0959847532 | K113: 0.6489172017 | L113: =$K113*'Input and Output'!$C$30/SUM($K$2:$K$366) -> 0.6968986104
A114: 2016-04-22 | B114: ='Input and Output'!C147 -> 10.3 | C114: 6 | D114: =IF($C114<6,Lin_parameters_wd!B$9,Lin_parameters_wknd!B$10) -> 1.311247513 | E114: =IF($C114<6,Lin_parameters_wd!C$9,Lin_parameters_wknd!C$10) -> -0.07531076536 | F114: =IF($C114<6,Lin_parameters_wd!D$9,Lin_parameters_wknd!D$10) -> 0.2952447362 | G114: =IF($C114<6,Lin_parameters_wd!E$9,Lin_parameters_wknd!E$10) -> -0.009762199134 | H114: =IF($C114<6,Lin_parameters_wd!F$9,Lin_parameters_wknd!F$10) -> 15.5 | I114: 1.311247513 | J114: -0.07531076536 | K114: 0.5355466295 | L114: =$K114*'Input and Output'!$C$30/SUM($K$2:$K$366) -> 0.5751453359
A115: 2016-04-23 | B115: ='Input and Output'!C148 -> 6.1 | C115: 7 | D115: =IF($C115<6,Lin_parameters_wd!B$9,Lin_parameters_wknd!B$10) -> 1.311247513 | E115: =IF($C115<6,Lin_parameters_wd!C$9,Lin_parameters_wknd!C$10) -> -0.07531076536 | F115: =IF($C115<6,Lin_parameters_wd!D$9,Lin_parameters_wknd!D$10) -> 0.2952447362 | G115: =IF($C115<6,Lin_parameters_wd!E$9,Lin_parameters_wknd!E$10) -> -0.009762199134 | H115: =IF($C115<6,Lin_parameters_wd!F$9,Lin_parameters_wknd!F$10) -> 15.5 | I115: 1.311247513 | J115: -0.07531076536 | K115: 0.851851844 | L115: =$K115*'Input and Output'!$C$30/SUM($K$2:$K$366) -> 0.9148383874
A116: 2016-04-24 | B116: ='Input and Output'!C149 -> 3.4 | C116: 1 | D116: =IF($C116<6,Lin_parameters_wd!B$9,Lin_parameters_wknd!B$10) -> 1.771938814 | E116: =IF($C116<6,Lin_parameters_wd!C$9,Lin_parameters_wknd!C$10) -> -0.0959847532 | F116: =IF($C116<6,Lin_parameters_wd!D$9,Lin_parameters_wknd!D$10) -> 0.4069947138 | G116: =IF($C116<6,Lin_parameters_wd!E$9,Lin_parameters_wknd!E$10) -> -0.0127564544 | H116: =IF($C116<6,Lin_parameters_wd!F$9,Lin_parameters_wknd!F$10) -> 16.4 | I116: 1.771938814 | J116: -0.0959847532 | K116: 1.445590653 | L116: =$K116*'Input and Output'!$C$30/SUM($K$2:$K$366) -> 1.552478675
A117: 2016-04-25 | B117: ='Input and Output'!C150 -> 4.3 | C117: 2 | D117: =IF($C117<6,Lin_parameters_wd!B$9,Lin_parameters_wknd!B$10) -> 1.771938814 | E117: =IF($C117<6,Lin_parameters_wd!C$9,Lin_parameters_wknd!C$10) -> -0.0959847532 | F117: =IF($C117<6,Lin_parameters_wd!D$9,Lin_parameters_wknd!D$10) -> 0.4069947138 | G117: =IF($C117<6,Lin_parameters_wd!E$9,Lin_parameters_wknd!E$10) -> -0.0127564544 | H117: =IF($C117<6,Lin_parameters_wd!F$9,Lin_parameters_wknd!F$10) -> 16.4 | I117: 1.771938814 | J117: -0.0959847532 | K117: 1.359204375 | L117: =$K117*'Input and Output'!$C$30/SUM($K$2:$K$366) -> 1.459704933
A118: 2016-04-26 | B118: ='Input and Output'!C151 -> 4.6 | C118: 3 | D118: =IF($C118<6,Lin_parameters_wd!B$9,Lin_parameters_wknd!B$10) -> 1.771938814 | E118: =IF($C118<6,Lin_parameters_wd!C$9,Lin_parameters_wknd!C$10) -> -0.0959847532 | F118: =IF($C118<6,Lin_parameters_wd!D$9,Lin_parameters_wknd!D$10) -> 0.4069947138 | G118: =IF($C118<6,Lin_parameters_wd!E$9,Lin_parameters_wknd!E$10) -> -0.0127564544 | H118: =IF($C118<6,Lin_parameters_wd!F$9,Lin_parameters_wknd!F$10) -> 16.4 | I118: 1.771938814 | J118: -0.0959847532 | K118: 1.330408949 | L118: =$K118*'Input and Output'!$C$30/SUM($K$2:$K$366) -> 1.428780352
A119: 2016-04-27 | B119: ='Input and Output'!C152 -> 4.6 | C119: 4 | D119: =IF($C119<6,Lin_parameters_wd!B$9,Lin_parameters_wknd!B$10) -> 1.771938814 | E119: =IF($C119<6,Lin_parameters_wd!C$9,Lin_parameters_wknd!C$10) -> -0.0959847532 | F119: =IF($C119<6,Lin_parameters_wd!D$9,Lin_parameters_wknd!D$10) -> 0.4069947138 | G119: =IF($C119<6,Lin_parameters_wd!E$9,Lin_parameters_wknd!E$10) -> -0.0127564544 | H119: =IF($C119<6,Lin_parameters_wd!F$9,Lin_parameters_wknd!F$10) -> 16.4 | I119: 1.771938814 | J119: -0.0959847532 | K119: 1.330408949 | L119: =$K119*'Input and Output'!$C$30/SUM($K$2:$K$366) -> 1.428780352
A120: 2016-04-28 | B120: ='Input and Output'!C153 -> 5.9 | C120: 5 | D120: =IF($C120<6,Lin_parameters_wd!B$9,Lin_parameters_wknd!B$10) -> 1.771938814 | E120: =IF($C120<6,Lin_parameters_wd!C$9,Lin_parameters_wknd!C$10) -> -0.0959847532 | F120: =IF($C120<6,Lin_parameters_wd!D$9,Lin_parameters_wknd!D$10) -> 0.4069947138 | G120: =IF($C120<6,Lin_parameters_wd!E$9,Lin_parameters_wknd!E$10) -> -0.0127564544 | H120: =IF($C120<6,Lin_parameters_wd!F$9,Lin_parameters_wknd!F$10) -> 16.4 | I120: 1.771938814 | J120: -0.0959847532 | K120: 1.20562877 | L120: =$K120*'Input and Output'!$C$30/SUM($K$2:$K$366) -> 1.294773836
A121: 2016-04-29 | B121: ='Input and Output'!C154 -> 7.6 | C121: 6 | D121: =IF($C121<6,Lin_parameters_wd!B$9,Lin_parameters_wknd!B$10) -> 1.311247513 | E121: =IF($C121<6,Lin_parameters_wd!C$9,Lin_parameters_wknd!C$10) -> -0.07531076536 | F121: =IF($C121<6,Lin_parameters_wd!D$9,Lin_parameters_wknd!D$10) -> 0.2952447362 | G121: =IF($C121<6,Lin_parameters_wd!E$9,Lin_parameters_wknd!E$10) -> -0.009762199134 | H121: =IF($C121<6,Lin_parameters_wd!F$9,Lin_parameters_wknd!F$10) -> 15.5 | I121: 1.311247513 | J121: -0.07531076536 | K121: 0.738885696 | L121: =$K121*'Input and Output'!$C$30/SUM($K$2:$K$366) -> 0.7935194404
A122: 2016-04-30 | B122: ='Input and Output'!C155 -> 8.9 | C122: 7 | D122: =IF($C122<6,Lin_parameters_wd!B$9,Lin_parameters_wknd!B$10) -> 1.311247513 | E122: =IF($C122<6,Lin_parameters_wd!C$9,Lin_parameters_wknd!C$10) -> -0.07531076536 | F122: =IF($C122<6,Lin_parameters_wd!D$9,Lin_parameters_wknd!D$10) -> 0.2952447362 | G122: =IF($C122<6,Lin_parameters_wd!E$9,Lin_parameters_wknd!E$10) -> -0.009762199134 | H122: =IF($C122<6,Lin_parameters_wd!F$9,Lin_parameters_wknd!F$10) -> 15.5 | I122: 1.311247513 | J122: -0.07531076536 | K122: 0.640981701 | L122: =$K122*'Input and Output'!$C$30/SUM($K$2:$K$366) -> 0.688376353
A123: 2016-05-01 | B123: ='Input and Output'!C156 -> 11.7 | C123: 1 | D123: =IF($C123<6,Lin_parameters_wd!B$9,Lin_parameters_wknd!B$10) -> 1.771938814 | E123: =IF($C123<6,Lin_parameters_wd!C$9,Lin_parameters_wknd!C$10) -> -0.0959847532 | F123: =IF($C123<6,Lin_parameters_wd!D$9,Lin_parameters_wknd!D$10) -> 0.4069947138 | G123: =IF($C123<6,Lin_parameters_wd!E$9,Lin_parameters_wknd!E$10) -> -0.0127564544 | H123: =IF($C123<6,Lin_parameters_wd!F$9,Lin_parameters_wknd!F$10) -> 16.4 | I123: 1.771938814 | J123: -0.0959847532 | K123: 0.6489172017 | L123: =$K123*'Input and Output'!$C$30/SUM($K$2:$K$366) -> 0.6968986104
A124: 2016-05-02 | B124: ='Input and Output'!C157 -> 14.3 | C124: 2 | D124: =IF($C124<6,Lin_parameters_wd!B$9,Lin_parameters_wknd!B$10) -> 1.771938814 | E124: =IF($C124<6,Lin_parameters_wd!C$9,Lin_parameters_wknd!C$10) -> -0.0959847532 | F124: =IF($C124<6,Lin_parameters_wd!D$9,Lin_parameters_wknd!D$10) -> 0.4069947138 | G124: =IF($C124<6,Lin_parameters_wd!E$9,Lin_parameters_wknd!E$10) -> -0.0127564544 | H124: =IF($C124<6,Lin_parameters_wd!F$9,Lin_parameters_wknd!F$10) -> 16.4 | I124: 1.771938814 | J124: -0.0959847532 | K124: 0.3993568434 | L124: =$K124*'Input and Output'!$C$30/SUM($K$2:$K$366) -> 0.4288855781
A125: 2016-05-03 | B125: ='Input and Output'!C158 -> 10 | C125: 3 | D125: =IF($C125<6,Lin_parameters_wd!B$9,Lin_parameters_wknd!B$10) -> 1.771938814 | E125: =IF($C125<6,Lin_parameters_wd!C$9,Lin_parameters_wknd!C$10) -> -0.0959847532 | F125: =IF($C125<6,Lin_parameters_wd!D$9,Lin_parameters_wknd!D$10) -> 0.4069947138 | G125: =IF($C125<6,Lin_parameters_wd!E$9,Lin_parameters_wknd!E$10) -> -0.0127564544 | H125: =IF($C125<6,Lin_parameters_wd!F$9,Lin_parameters_wknd!F$10) -> 16.4 | I125: 1.771938814 | J125: -0.0959847532 | K125: 0.8120912822 | L125: =$K125*'Input and Output'!$C$30/SUM($K$2:$K$366) -> 0.8721379008
A126: 2016-05-04 | B126: ='Input and Output'!C159 -> 9.6 | C126: 4 | D126: =IF($C126<6,Lin_parameters_wd!B$9,Lin_parameters_wknd!B$10) -> 1.771938814 | E126: =IF($C126<6,Lin_parameters_wd!C$9,Lin_parameters_wknd!C$10) -> -0.0959847532 | F126: =IF($C126<6,Lin_parameters_wd!D$9,Lin_parameters_wknd!D$10) -> 0.4069947138 | G126: =IF($C126<6,Lin_parameters_wd!E$9,Lin_parameters_wknd!E$10) -> -0.0127564544 | H126: =IF($C126<6,Lin_parameters_wd!F$9,Lin_parameters_wknd!F$10) -> 16.4 | I126: 1.771938814 | J126: -0.0959847532 | K126: 0.8504851834 | L126: =$K126*'Input and Output'!$C$30/SUM($K$2:$K$366) -> 0.913370675
A127: 2016-05-05 | B127: ='Input and Output'!C160 -> 12.6 | C127: 5 | D127: =IF($C127<6,Lin_parameters_wd!B$9,Lin_parameters_wknd!B$10) -> 1.771938814 | E127: =IF($C127<6,Lin_parameters_wd!C$9,Lin_parameters_wknd!C$10) -> -0.0959847532 | F127: =IF($C127<6,Lin_parameters_wd!D$9,Lin_parameters_wknd!D$10) -> 0.4069947138 | G127: =IF($C127<6,Lin_parameters_wd!E$9,Lin_parameters_wknd!E$10) -> -0.0127564544 | H127: =IF($C127<6,Lin_parameters_wd!F$9,Lin_parameters_wknd!F$10) -> 16.4 | I127: 1.771938814 | J127: -0.0959847532 | K127: 0.5625309238 | L127: =$K127*'Input and Output'!$C$30/SUM($K$2:$K$366) -> 0.6041248685
A128: 2016-05-06 | B128: ='Input and Output'!C161 -> 17.9 | C128: 6 | D128: =IF($C128<6,Lin_parameters_wd!B$9,Lin_parameters_wknd!B$10) -> 1.311247513 | E128: =IF($C128<6,Lin_parameters_wd!C$9,Lin_parameters_wknd!C$10) -> -0.07531076536 | F128: =IF($C128<6,Lin_parameters_wd!D$9,Lin_parameters_wknd!D$10) -> 0.2952447362 | G128: =IF($C128<6,Lin_parameters_wd!E$9,Lin_parameters_wknd!E$10) -> -0.009762199134 | H128: =IF($C128<6,Lin_parameters_wd!F$9,Lin_parameters_wknd!F$10) -> 15.5 | I128: 0.2952447362 | J128: -0.009762199134 | K128: 0.1205013717 | L128: =$K128*'Input and Output'!$C$30/SUM($K$2:$K$366) -> 0.1294113305
A129: 2016-05-07 | B129: ='Input and Output'!C162 -> 19.5 | C129: 7 | D129: =IF($C129<6,Lin_parameters_wd!B$9,Lin_parameters_wknd!B$10) -> 1.311247513 | E129: =IF($C129<6,Lin_parameters_wd!C$9,Lin_parameters_wknd!C$10) -> -0.07531076536 | F129: =IF($C129<6,Lin_parameters_wd!D$9,Lin_parameters_wknd!D$10) -> 0.2952447362 | G129: =IF($C129<6,Lin_parameters_wd!E$9,Lin_parameters_wknd!E$10) -> -0.009762199134 | H129: =IF($C129<6,Lin_parameters_wd!F$9,Lin_parameters_wknd!F$10) -> 15.5 | I129: 0.2952447362 | J129: -0.009762199134 | K129: 0.1048818531 | L129: =$K129*'Input and Output'!$C$30/SUM($K$2:$K$366) -> 0.1126368934
A130: 2016-05-08 | B130: ='Input and Output'!C163 -> 19.2 | C130: =WEEKDAY(A130) -> 1 | D130: =IF($C130<6,Lin_parameters_wd!B$9,Lin_parameters_wknd!B$10) -> 1.771938814 | E130: =IF($C130<6,Lin_parameters_wd!C$9,Lin_parameters_wknd!C$10) -> -0.0959847532 | F130: =IF($C130<6,Lin_parameters_wd!D$9,Lin_parameters_wknd!D$10) -> 0.4069947138 | G130: =IF($C130<6,Lin_parameters_wd!E$9,Lin_parameters_wknd!E$10) -> -0.0127564544 | H130: =IF($C130<6,Lin_parameters_wd!F$9,Lin_parameters_wknd!F$10) -> 16.4 | I130: 0.4069947138 | J130: -0.0127564544 | K130: 0.1620707894 | L130: =$K130*'Input and Output'!$C$30/SUM($K$2:$K$366) -> 0.1740544211
A131: 2016-05-09 | B131: ='Input and Output'!C164 -> 19.6 | C131: 2 | D131: =IF($C131<6,Lin_parameters_wd!B$9,Lin_parameters_wknd!B$10) -> 1.771938814 | E131: =IF($C131<6,Lin_parameters_wd!C$9,Lin_parameters_wknd!C$10) -> -0.0959847532 | F131: =IF($C131<6,Lin_parameters_wd!D$9,Lin_parameters_wknd!D$10) -> 0.4069947138 | G131: =IF($C131<6,Lin_parameters_wd!E$9,Lin_parameters_wknd!E$10) -> -0.0127564544 | H131: =IF($C131<6,Lin_parameters_wd!F$9,Lin_parameters_wknd!F$10) -> 16.4 | I131: =IF($B131<$H131,$D131,$F131) -> 0.4069947138 | J131: =IF($B131<$H131,$E131,$G131) -> -0.0127564544 | K131: =MAX($I131+$J131*$B131,0) -> 0.1569682076 | L131: =$K131*'Input and Output'!$C$30/SUM($K$2:$K$366) -> 0.1685745508
A132: =A131+1 -> 2016-05-10 | B132: ='Input and Output'!C165 -> 19.9 | C132: 3 | D132: =IF($C132<6,Lin_parameters_wd!B$9,Lin_parameters_wknd!B$10) -> 1.771938814 | E132: =IF($C132<6,Lin_parameters_wd!C$9,Lin_parameters_wknd!C$10) -> -0.0959847532 | F132: =IF($C132<6,Lin_parameters_wd!D$9,Lin_parameters_wknd!D$10) -> 0.4069947138 | G132: =IF($C132<6,Lin_parameters_wd!E$9,Lin_parameters_wknd!E$10) -> -0.0127564544 | H132: =IF($C132<6,Lin_parameters_wd!F$9,Lin_parameters_wknd!F$10) -> 16.4 | I132: 0.4069947138 | J132: -0.0127564544 | K132: 0.1531412713 | L132: =$K132*'Input and Output'!$C$30/SUM($K$2:$K$366) -> 0.164464648
A133: 2016-05-11 | B133: ='Input and Output'!C166 -> 19.4 | C133: 4 | D133: =IF($C133<6,Lin_parameters_wd!B$9,Lin_parameters_wknd!B$10) -> 1.771938814 | E133: =IF($C133<6,Lin_parameters_wd!C$9,Lin_parameters_wknd!C$10) -> -0.0959847532 | F133: =IF($C133<6,Lin_parameters_wd!D$9,Lin_parameters_wknd!D$10) -> 0.4069947138 | G133: =IF($C133<6,Lin_parameters_wd!E$9,Lin_parameters_wknd!E$10) -> -0.0127564544 | H133: =IF($C133<6,Lin_parameters_wd!F$9,Lin_parameters_wknd!F$10) -> 16.4 | I133: 0.4069947138 | J133: -0.0127564544 | K133: 0.1595194985 | L133: =$K133*'Input and Output'!$C$30/SUM($K$2:$K$366) -> 0.1713144859
A134: 2016-05-12 | B134: ='Input and Output'!C167 -> 19.8 | C134: 5 | D134: =IF($C134<6,Lin_parameters_wd!B$9,Lin_parameters_wknd!B$10) -> 1.771938814 | E134: =IF($C134<6,Lin_parameters_wd!C$9,Lin_parameters_wknd!C$10) -> -0.0959847532 | F134: =IF($C134<6,Lin_parameters_wd!D$9,Lin_parameters_wknd!D$10) -> 0.4069947138 | G134: =IF($C134<6,Lin_parameters_wd!E$9,Lin_parameters_wknd!E$10) -> -0.0127564544 | H134: =IF($C134<6,Lin_parameters_wd!F$9,Lin_parameters_wknd!F$10) -> 16.4 | I134: 0.4069947138 | J134: -0.0127564544 | K134: 0.1544169167 | L134: =$K134*'Input and Output'!$C$30/SUM($K$2:$K$366) -> 0.1658346156
A135: 2016-05-13 | B135: ='Input and Output'!C168 -> 17.9 | C135: 6 | D135: =IF($C135<6,Lin_parameters_wd!B$9,Lin_parameters_wknd!B$10) -> 1.311247513 | E135: =IF($C135<6,Lin_parameters_wd!C$9,Lin_parameters_wknd!C$10) -> -0.07531076536 | F135: =IF($C135<6,Lin_parameters_wd!D$9,Lin_parameters_wknd!D$10) -> 0.2952447362 | G135: =IF($C135<6,Lin_parameters_wd!E$9,Lin_parameters_wknd!E$10) -> -0.009762199134 | H135: =IF($C135<6,Lin_parameters_wd!F$9,Lin_parameters_wknd!F$10) -> 15.5 | I135: 0.2952447362 | J135: -0.009762199134 | K135: 0.1205013717 | L135: =$K135*'Input and Output'!$C$30/SUM($K$2:$K$366) -> 0.1294113305
A136: 2016-05-14 | B136: ='Input and Output'!C169 -> 9.3 | C136: 7 | D136: =IF($C136<6,Lin_parameters_wd!B$9,Lin_parameters_wknd!B$10) -> 1.311247513 | E136: =IF($C136<6,Lin_parameters_wd!C$9,Lin_parameters_wknd!C$10) -> -0.07531076536 | F136: =IF($C136<6,Lin_parameters_wd!D$9,Lin_parameters_wknd!D$10) -> 0.2952447362 | G136: =IF($C136<6,Lin_parameters_wd!E$9,Lin_parameters_wknd!E$10) -> -0.009762199134 | H136: =IF($C136<6,Lin_parameters_wd!F$9,Lin_parameters_wknd!F$10) -> 15.5 | I136: 1.311247513 | J136: -0.07531076536 | K136: 0.6108573949 | L136: =$K136*'Input and Output'!$C$30/SUM($K$2:$K$366) -> 0.6560246338
A137: 2016-05-15 | B137: ='Input and Output'!C170 -> 8 | C137: 1 | D137: =IF($C137<6,Lin_parameters_wd!B$9,Lin_parameters_wknd!B$10) -> 1.771938814 | E137: =IF($C137<6,Lin_parameters_wd!C$9,Lin_parameters_wknd!C$10) -> -0.0959847532 | F137: =IF($C137<6,Lin_parameters_wd!D$9,Lin_parameters_wknd!D$10) -> 0.4069947138 | G137: =IF($C137<6,Lin_parameters_wd!E$9,Lin_parameters_wknd!E$10) -> -0.0127564544 | H137: =IF($C137<6,Lin_parameters_wd!F$9,Lin_parameters_wknd!F$10) -> 16.4 | I137: 1.771938814 | J137: -0.0959847532 | K137: 1.004060789 | L137: =$K137*'Input and Output'!$C$30/SUM($K$2:$K$366) -> 1.078301772
A138: 2016-05-16 | B138: ='Input and Output'!C171 -> 9.3 | C138: 2 | D138: =IF($C138<6,Lin_parameters_wd!B$9,Lin_parameters_wknd!B$10) -> 1.771938814 | E138: =IF($C138<6,Lin_parameters_wd!C$9,Lin_parameters_wknd!C$10) -> -0.0959847532 | F138: =IF($C138<6,Lin_parameters_wd!D$9,Lin_parameters_wknd!D$10) -> 0.4069947138 | G138: =IF($C138<6,Lin_parameters_wd!E$9,Lin_parameters_wknd!E$10) -> -0.0127564544 | H138: =IF($C138<6,Lin_parameters_wd!F$9,Lin_parameters_wknd!F$10) -> 16.4 | I138: 1.771938814 | J138: -0.0959847532 | K138: 0.8792806094 | L138: =$K138*'Input and Output'!$C$30/SUM($K$2:$K$366) -> 0.9442952556
A139: 2016-05-17 | B139: ='Input and Output'!C172 -> 11.5 | C139: 3 | D139: =IF($C139<6,Lin_parameters_wd!B$9,Lin_parameters_wknd!B$10) -> 1.771938814 | E139: =IF($C139<6,Lin_parameters_wd!C$9,Lin_parameters_wknd!C$10) -> -0.0959847532 | F139: =IF($C139<6,Lin_parameters_wd!D$9,Lin_parameters_wknd!D$10) -> 0.4069947138 | G139: =IF($C139<6,Lin_parameters_wd!E$9,Lin_parameters_wknd!E$10) -> -0.0127564544 | H139: =IF($C139<6,Lin_parameters_wd!F$9,Lin_parameters_wknd!F$10) -> 16.4 | I139: 1.771938814 | J139: -0.0959847532 | K139: 0.6681141524 | L139: =$K139*'Input and Output'!$C$30/SUM($K$2:$K$366) -> 0.7175149975
A140: 2016-05-18 | B140: ='Input and Output'!C173 -> 14.1 | C140: 4 | D140: =IF($C140<6,Lin_parameters_wd!B$9,Lin_parameters_wknd!B$10) -> 1.771938814 | E140: =IF($C140<6,Lin_parameters_wd!C$9,Lin_parameters_wknd!C$10) -> -0.0959847532 | F140: =IF($C140<6,Lin_parameters_wd!D$9,Lin_parameters_wknd!D$10) -> 0.4069947138 | G140: =IF($C140<6,Lin_parameters_wd!E$9,Lin_parameters_wknd!E$10) -> -0.0127564544 | H140: =IF($C140<6,Lin_parameters_wd!F$9,Lin_parameters_wknd!F$10) -> 16.4 | I140: 1.771938814 | J140: -0.0959847532 | K140: 0.418553794 | L140: =$K140*'Input and Output'!$C$30/SUM($K$2:$K$366) -> 0.4495019652
A141: 2016-05-19 | B141: ='Input and Output'!C174 -> 13.6 | C141: 5 | D141: =IF($C141<6,Lin_parameters_wd!B$9,Lin_parameters_wknd!B$10) -> 1.771938814 | E141: =IF($C141<6,Lin_parameters_wd!C$9,Lin_parameters_wknd!C$10) -> -0.0959847532 | F141: =IF($C141<6,Lin_parameters_wd!D$9,Lin_parameters_wknd!D$10) -> 0.4069947138 | G141: =IF($C141<6,Lin_parameters_wd!E$9,Lin_parameters_wknd!E$10) -> -0.0127564544 | H141: =IF($C141<6,Lin_parameters_wd!F$9,Lin_parameters_wknd!F$10) -> 16.4 | I141: 1.771938814 | J141: -0.0959847532 | K141: 0.4665461706 | L141: =$K141*'Input and Output'!$C$30/SUM($K$2:$K$366) -> 0.501042933
A142: 2016-05-20 | B142: ='Input and Output'!C175 -> 14.6 | C142: 6 | D142: =IF($C142<6,Lin_parameters_wd!B$9,Lin_parameters_wknd!B$10) -> 1.311247513 | E142: =IF($C142<6,Lin_parameters_wd!C$9,Lin_parameters_wknd!C$10) -> -0.07531076536 | F142: =IF($C142<6,Lin_parameters_wd!D$9,Lin_parameters_wknd!D$10) -> 0.2952447362 | G142: =IF($C142<6,Lin_parameters_wd!E$9,Lin_parameters_wknd!E$10) -> -0.009762199134 | H142: =IF($C142<6,Lin_parameters_wd!F$9,Lin_parameters_wknd!F$10) -> 15.5 | I142: 1.311247513 | J142: -0.07531076536 | K142: 0.2117103384 | L142: =$K142*'Input and Output'!$C$30/SUM($K$2:$K$366) -> 0.2273643545
A143: 2016-05-21 | B143: ='Input and Output'!C176 -> 17.5 | C143: 7 | D143: =IF($C143<6,Lin_parameters_wd!B$9,Lin_parameters_wknd!B$10) -> 1.311247513 | E143: =IF($C143<6,Lin_parameters_wd!C$9,Lin_parameters_wknd!C$10) -> -0.07531076536 | F143: =IF($C143<6,Lin_parameters_wd!D$9,Lin_parameters_wknd!D$10) -> 0.2952447362 | G143: =IF($C143<6,Lin_parameters_wd!E$9,Lin_parameters_wknd!E$10) -> -0.009762199134 | H143: =IF($C143<6,Lin_parameters_wd!F$9,Lin_parameters_wknd!F$10) -> 15.5 | I143: 0.2952447362 | J143: -0.009762199134 | K143: 0.1244062513 | L143: =$K143*'Input and Output'!$C$30/SUM($K$2:$K$366) -> 0.1336049398
A144: 2016-05-22 | B144: ='Input and Output'!C177 -> 20 | C144: 1 | D144: =IF($C144<6,Lin_parameters_wd!B$9,Lin_parameters_wknd!B$10) -> 1.771938814 | E144: =IF($C144<6,Lin_parameters_wd!C$9,Lin_parameters_wknd!C$10) -> -0.0959847532 | F144: =IF($C144<6,Lin_parameters_wd!D$9,Lin_parameters_wknd!D$10) -> 0.4069947138 | G144: =IF($C144<6,Lin_parameters_wd!E$9,Lin_parameters_wknd!E$10) -> -0.0127564544 | H144: =IF($C144<6,Lin_parameters_wd!F$9,Lin_parameters_wknd!F$10) -> 16.4 | I144: 0.4069947138 | J144: -0.0127564544 | K144: 0.1518656258 | L144: =$K144*'Input and Output'!$C$30/SUM($K$2:$K$366) -> 0.1630946804
A145: 2016-05-23 | B145: ='Input and Output'!C178 -> 15.5 | C145: 2 | D145: =IF($C145<6,Lin_parameters_wd!B$9,Lin_parameters_wknd!B$10) -> 1.771938814 | E145: =IF($C145<6,Lin_parameters_wd!C$9,Lin_parameters_wknd!C$10) -> -0.0959847532 | F145: =IF($C145<6,Lin_parameters_wd!D$9,Lin_parameters_wknd!D$10) -> 0.4069947138 | G145: =IF($C145<6,Lin_parameters_wd!E$9,Lin_parameters_wknd!E$10) -> -0.0127564544 | H145: =IF($C145<6,Lin_parameters_wd!F$9,Lin_parameters_wknd!F$10) -> 16.4 | I145: 1.771938814 | J145: -0.0959847532 | K145: 0.2841751396 | L145: =$K145*'Input and Output'!$C$30/SUM($K$2:$K$366) -> 0.3051872556
A146: 2016-05-24 | B146: ='Input and Output'!C179 -> 11.1 | C146: 3 | D146: =IF($C146<6,Lin_parameters_wd!B$9,Lin_parameters_wknd!B$10) -> 1.771938814 | E146: =IF($C146<6,Lin_parameters_wd!C$9,Lin_parameters_wknd!C$10) -> -0.0959847532 | F146: =IF($C146<6,Lin_parameters_wd!D$9,Lin_parameters_wknd!D$10) -> 0.4069947138 | G146: =IF($C146<6,Lin_parameters_wd!E$9,Lin_parameters_wknd!E$10) -> -0.0127564544 | H146: =IF($C146<6,Lin_parameters_wd!F$9,Lin_parameters_wknd!F$10) -> 16.4 | I146: 1.771938814 | J146: -0.0959847532 | K146: 0.7065080536 | L146: =$K146*'Input and Output'!$C$30/SUM($K$2:$K$366) -> 0.7587477717
A147: 2016-05-25 | B147: ='Input and Output'!C180 -> 12.7 | C147: 4 | D147: =IF($C147<6,Lin_parameters_wd!B$9,Lin_parameters_wknd!B$10) -> 1.771938814 | E147: =IF($C147<6,Lin_parameters_wd!C$9,Lin_parameters_wknd!C$10) -> -0.0959847532 | F147: =IF($C147<6,Lin_parameters_wd!D$9,Lin_parameters_wknd!D$10) -> 0.4069947138 | G147: =IF($C147<6,Lin_parameters_wd!E$9,Lin_parameters_wknd!E$10) -> -0.0127564544 | H147: =IF($C147<6,Lin_parameters_wd!F$9,Lin_parameters_wknd!F$10) -> 16.4 | I147: 1.771938814 | J147: -0.0959847532 | K147: 0.5529324485 | L147: =$K147*'Input and Output'!$C$30/SUM($K$2:$K$366) -> 0.5938166749
A148: 2016-05-26 | B148: ='Input and Output'!C181 -> 16.3 | C148: 5 | D148: =IF($C148<6,Lin_parameters_wd!B$9,Lin_parameters_wknd!B$10) -> 1.771938814 | E148: =IF($C148<6,Lin_parameters_wd!C$9,Lin_parameters_wknd!C$10) -> -0.0959847532 | F148: =IF($C148<6,Lin_parameters_wd!D$9,Lin_parameters_wknd!D$10) -> 0.4069947138 | G148: =IF($C148<6,Lin_parameters_wd!E$9,Lin_parameters_wknd!E$10) -> -0.0127564544 | H148: =IF($C148<6,Lin_parameters_wd!F$9,Lin_parameters_wknd!F$10) -> 16.4 | I148: 1.771938814 | J148: -0.0959847532 | K148: 0.207387337 | L148: =$K148*'Input and Output'!$C$30/SUM($K$2:$K$366) -> 0.2227217072
A149: 2016-05-27 | B149: ='Input and Output'!C182 -> 17.2 | C149: 6 | D149: =IF($C149<6,Lin_parameters_wd!B$9,Lin_parameters_wknd!B$10) -> 1.311247513 | E149: =IF($C149<6,Lin_parameters_wd!C$9,Lin_parameters_wknd!C$10) -> -0.07531076536 | F149: =IF($C149<6,Lin_parameters_wd!D$9,Lin_parameters_wknd!D$10) -> 0.2952447362 | G149: =IF($C149<6,Lin_parameters_wd!E$9,Lin_parameters_wknd!E$10) -> -0.009762199134 | H149: =IF($C149<6,Lin_parameters_wd!F$9,Lin_parameters_wknd!F$10) -> 15.5 | I149: 0.2952447362 | J149: -0.009762199134 | K149: 0.1273349111 | L149: =$K149*'Input and Output'!$C$30/SUM($K$2:$K$366) -> 0.1367501468
A150: 2016-05-28 | B150: ='Input and Output'!C183 -> 18.8 | C150: 7 | D150: =IF($C150<6,Lin_parameters_wd!B$9,Lin_parameters_wknd!B$10) -> 1.311247513 | E150: =IF($C150<6,Lin_parameters_wd!C$9,Lin_parameters_wknd!C$10) -> -0.07531076536 | F150: =IF($C150<6,Lin_parameters_wd!D$9,Lin_parameters_wknd!D$10) -> 0.2952447362 | G150: =IF($C150<6,Lin_parameters_wd!E$9,Lin_parameters_wknd!E$10) -> -0.009762199134 | H150: =IF($C150<6,Lin_parameters_wd!F$9,Lin_parameters_wknd!F$10) -> 15.5 | I150: 0.2952447362 | J150: -0.009762199134 | K150: 0.1117153925 | L150: =$K150*'Input and Output'!$C$30/SUM($K$2:$K$366) -> 0.1199757096
A151: 2016-05-29 | B151: ='Input and Output'!C184 -> 19.1 | C151: 1 | D151: =IF($C151<6,Lin_parameters_wd!B$9,Lin_parameters_wknd!B$10) -> 1.771938814 | E151: =IF($C151<6,Lin_parameters_wd!C$9,Lin_parameters_wknd!C$10) -> -0.0959847532 | F151: =IF($C151<6,Lin_parameters_wd!D$9,Lin_parameters_wknd!D$10) -> 0.4069947138 | G151: =IF($C151<6,Lin_parameters_wd!E$9,Lin_parameters_wknd!E$10) -> -0.0127564544 | H151: =IF($C151<6,Lin_parameters_wd!F$9,Lin_parameters_wknd!F$10) -> 16.4 | I151: 0.4069947138 | J151: -0.0127564544 | K151: 0.1633464348 | L151: =$K151*'Input and Output'!$C$30/SUM($K$2:$K$366) -> 0.1754243887
A152: 2016-05-30 | B152: ='Input and Output'!C185 -> 18.3 | C152: 2 | D152: =IF($C152<6,Lin_parameters_wd!B$9,Lin_parameters_wknd!B$10) -> 1.771938814 | E152: =IF($C152<6,Lin_parameters_wd!C$9,Lin_parameters_wknd!C$10) -> -0.0959847532 | F152: =IF($C152<6,Lin_parameters_wd!D$9,Lin_parameters_wknd!D$10) -> 0.4069947138 | G152: =IF($C152<6,Lin_parameters_wd!E$9,Lin_parameters_wknd!E$10) -> -0.0127564544 | H152: =IF($C152<6,Lin_parameters_wd!F$9,Lin_parameters_wknd!F$10) -> 16.4 | I152: 0.4069947138 | J152: -0.0127564544 | K152: 0.1735515983 | L152: =$K152*'Input and Output'!$C$30/SUM($K$2:$K$366) -> 0.1863841294
A153: 2016-05-31 | B153: ='Input and Output'!C186 -> 18.8 | C153: 3 | D153: =IF($C153<6,Lin_parameters_wd!B$9,Lin_parameters_wknd!B$10) -> 1.771938814 | E153: =IF($C153<6,Lin_parameters_wd!C$9,Lin_parameters_wknd!C$10) -> -0.0959847532 | F153: =IF($C153<6,Lin_parameters_wd!D$9,Lin_parameters_wknd!D$10) -> 0.4069947138 | G153: =IF($C153<6,Lin_parameters_wd!E$9,Lin_parameters_wknd!E$10) -> -0.0127564544 | H153: =IF($C153<6,Lin_parameters_wd!F$9,Lin_parameters_wknd!F$10) -> 16.4 | I153: 0.4069947138 | J153: -0.0127564544 | K153: 0.1671733711 | L153: =$K153*'Input and Output'!$C$30/SUM($K$2:$K$366) -> 0.1795342915
A154: 2016-06-01 | B154: ='Input and Output'!C187 -> 17 | C154: 4 | D154: =IF($C154<6,Lin_parameters_wd!B$9,Lin_parameters_wknd!B$10) -> 1.771938814 | E154: =IF($C154<6,Lin_parameters_wd!C$9,Lin_parameters_wknd!C$10) -> -0.0959847532 | F154: =IF($C154<6,Lin_parameters_wd!D$9,Lin_parameters_wknd!D$10) -> 0.4069947138 | G154: =IF($C154<6,Lin_parameters_wd!E$9,Lin_parameters_wknd!E$10) -> -0.0127564544 | H154: =IF($C154<6,Lin_parameters_wd!F$9,Lin_parameters_wknd!F$10) -> 16.4 | I154: 0.4069947138 | J154: -0.0127564544 | K154: 0.190134989 | L154: =$K154*'Input and Output'!$C$30/SUM($K$2:$K$366) -> 0.2041937081
A155: 2016-06-02 | B155: ='Input and Output'!C188 -> 17.9 | C155: 5 | D155: =IF($C155<6,Lin_parameters_wd!B$9,Lin_parameters_wknd!B$10) -> 1.771938814 | E155: =IF($C155<6,Lin_parameters_wd!C$9,Lin_parameters_wknd!C$10) -> -0.0959847532 | F155: =IF($C155<6,Lin_parameters_wd!D$9,Lin_parameters_wknd!D$10) -> 0.4069947138 | G155: =IF($C155<6,Lin_parameters_wd!E$9,Lin_parameters_wknd!E$10) -> -0.0127564544 | H155: =IF($C155<6,Lin_parameters_wd!F$9,Lin_parameters_wknd!F$10) -> 16.4 | I155: 0.4069947138 | J155: -0.0127564544 | K155: 0.1786541801 | L155: =$K155*'Input and Output'!$C$30/SUM($K$2:$K$366) -> 0.1918639998
A156: 2016-06-03 | B156: ='Input and Output'!C189 -> 18.8 | C156: 6 | D156: =IF($C156<6,Lin_parameters_wd!B$9,Lin_parameters_wknd!B$10) -> 1.311247513 | E156: =IF($C156<6,Lin_parameters_wd!C$9,Lin_parameters_wknd!C$10) -> -0.07531076536 | F156: =IF($C156<6,Lin_parameters_wd!D$9,Lin_parameters_wknd!D$10) -> 0.2952447362 | G156: =IF($C156<6,Lin_parameters_wd!E$9,Lin_parameters_wknd!E$10) -> -0.009762199134 | H156: =IF($C156<6,Lin_parameters_wd!F$9,Lin_parameters_wknd!F$10) -> 15.5 | I156: 0.2952447362 | J156: -0.009762199134 | K156: 0.1117153925 | L156: =$K156*'Input and Output'!$C$30/SUM($K$2:$K$366) -> 0.1199757096
A157: 2016-06-04 | B157: ='Input and Output'!C190 -> 20.8 | C157: 7 | D157: =IF($C157<6,Lin_parameters_wd!B$9,Lin_parameters_wknd!B$10) -> 1.311247513 | E157: =IF($C157<6,Lin_parameters_wd!C$9,Lin_parameters_wknd!C$10) -> -0.07531076536 | F157: =IF($C157<6,Lin_parameters_wd!D$9,Lin_parameters_wknd!D$10) -> 0.2952447362 | G157: =IF($C157<6,Lin_parameters_wd!E$9,Lin_parameters_wknd!E$10) -> -0.009762199134 | H157: =IF($C157<6,Lin_parameters_wd!F$9,Lin_parameters_wknd!F$10) -> 15.5 | I157: 0.2952447362 | J157: -0.009762199134 | K157: 0.09219099421 | L157: =$K157*'Input and Output'!$C$30/SUM($K$2:$K$366) -> 0.09900766321
A158: 2016-06-05 | B158: ='Input and Output'!C191 -> 21.2 | C158: 1 | D158: =IF($C158<6,Lin_parameters_wd!B$9,Lin_parameters_wknd!B$10) -> 1.771938814 | E158: =IF($C158<6,Lin_parameters_wd!C$9,Lin_parameters_wknd!C$10) -> -0.0959847532 | F158: =IF($C158<6,Lin_parameters_wd!D$9,Lin_parameters_wknd!D$10) -> 0.4069947138 | G158: =IF($C158<6,Lin_parameters_wd!E$9,Lin_parameters_wknd!E$10) -> -0.0127564544 | H158: =IF($C158<6,Lin_parameters_wd!F$9,Lin_parameters_wknd!F$10) -> 16.4 | I158: 0.4069947138 | J158: -0.0127564544 | K158: 0.1365578806 | L158: =$K158*'Input and Output'!$C$30/SUM($K$2:$K$366) -> 0.1466550693
A159: 2016-06-06 | B159: ='Input and Output'!C192 -> 22.5 | C159: 2 | D159: =IF($C159<6,Lin_parameters_wd!B$9,Lin_parameters_wknd!B$10) -> 1.771938814 | E159: =IF($C159<6,Lin_parameters_wd!C$9,Lin_parameters_wknd!C$10) -> -0.0959847532 | F159: =IF($C159<6,Lin_parameters_wd!D$9,Lin_parameters_wknd!D$10) -> 0.4069947138 | G159: =IF($C159<6,Lin_parameters_wd!E$9,Lin_parameters_wknd!E$10) -> -0.0127564544 | H159: =IF($C159<6,Lin_parameters_wd!F$9,Lin_parameters_wknd!F$10) -> 16.4 | I159: 0.4069947138 | J159: -0.0127564544 | K159: 0.1199744899 | L159: =$K159*'Input and Output'!$C$30/SUM($K$2:$K$366) -> 0.1288454907
A160: 2016-06-07 | B160: ='Input and Output'!C193 -> 22.3 | C160: 3 | D160: =IF($C160<6,Lin_parameters_wd!B$9,Lin_parameters_wknd!B$10) -> 1.771938814 | E160: =IF($C160<6,Lin_parameters_wd!C$9,Lin_parameters_wknd!C$10) -> -0.0959847532 | F160: =IF($C160<6,Lin_parameters_wd!D$9,Lin_parameters_wknd!D$10) -> 0.4069947138 | G160: =IF($C160<6,Lin_parameters_wd!E$9,Lin_parameters_wknd!E$10) -> -0.0127564544 | H160: =IF($C160<6,Lin_parameters_wd!F$9,Lin_parameters_wknd!F$10) -> 16.4 | I160: 0.4069947138 | J160: -0.0127564544 | K160: 0.1225257807 | L160: =$K160*'Input and Output'!$C$30/SUM($K$2:$K$366) -> 0.1315854259
A161: 2016-06-08 | B161: ='Input and Output'!C194 -> 20 | C161: 4 | D161: =IF($C161<6,Lin_parameters_wd!B$9,Lin_parameters_wknd!B$10) -> 1.771938814 | E161: =IF($C161<6,Lin_parameters_wd!C$9,Lin_parameters_wknd!C$10) -> -0.0959847532 | F161: =IF($C161<6,Lin_parameters_wd!D$9,Lin_parameters_wknd!D$10) -> 0.4069947138 | G161: =IF($C161<6,Lin_parameters_wd!E$9,Lin_parameters_wknd!E$10) -> -0.0127564544 | H161: =IF($C161<6,Lin_parameters_wd!F$9,Lin_parameters_wknd!F$10) -> 16.4 | I161: 0.4069947138 | J161: -0.0127564544 | K161: 0.1518656258 | L161: =$K161*'Input and Output'!$C$30/SUM($K$2:$K$366) -> 0.1630946804
A162: 2016-06-09 | B162: ='Input and Output'!C195 -> 15.2 | C162: 5 | D162: =IF($C162<6,Lin_parameters_wd!B$9,Lin_parameters_wknd!B$10) -> 1.771938814 | E162: =IF($C162<6,Lin_parameters_wd!C$9,Lin_parameters_wknd!C$10) -> -0.0959847532 | F162: =IF($C162<6,Lin_parameters_wd!D$9,Lin_parameters_wknd!D$10) -> 0.4069947138 | G162: =IF($C162<6,Lin_parameters_wd!E$9,Lin_parameters_wknd!E$10) -> -0.0127564544 | H162: =IF($C162<6,Lin_parameters_wd!F$9,Lin_parameters_wknd!F$10) -> 16.4 | I162: 1.771938814 | J162: -0.0959847532 | K162: 0.3129705655 | L162: =$K162*'Input and Output'!$C$30/SUM($K$2:$K$366) -> 0.3361118362
A163: 2016-06-10 | B163: ='Input and Output'!C196 -> 17.3 | C163: 6 | D163: =IF($C163<6,Lin_parameters_wd!B$9,Lin_parameters_wknd!B$10) -> 1.311247513 | E163: =IF($C163<6,Lin_parameters_wd!C$9,Lin_parameters_wknd!C$10) -> -0.07531076536 | F163: =IF($C163<6,Lin_parameters_wd!D$9,Lin_parameters_wknd!D$10) -> 0.2952447362 | G163: =IF($C163<6,Lin_parameters_wd!E$9,Lin_parameters_wknd!E$10) -> -0.009762199134 | H163: =IF($C163<6,Lin_parameters_wd!F$9,Lin_parameters_wknd!F$10) -> 15.5 | I163: 0.2952447362 | J163: -0.009762199134 | K163: 0.1263586912 | L163: =$K163*'Input and Output'!$C$30/SUM($K$2:$K$366) -> 0.1357017445
A164: 2016-06-11 | B164: ='Input and Output'!C197 -> 17.8 | C164: 7 | D164: =IF($C164<6,Lin_parameters_wd!B$9,Lin_parameters_wknd!B$10) -> 1.311247513 | E164: =IF($C164<6,Lin_parameters_wd!C$9,Lin_parameters_wknd!C$10) -> -0.07531076536 | F164: =IF($C164<6,Lin_parameters_wd!D$9,Lin_parameters_wknd!D$10) -> 0.2952447362 | G164: =IF($C164<6,Lin_parameters_wd!E$9,Lin_parameters_wknd!E$10) -> -0.009762199134 | H164: =IF($C164<6,Lin_parameters_wd!F$9,Lin_parameters_wknd!F$10) -> 15.5 | I164: 0.2952447362 | J164: -0.009762199134 | K164: 0.1214775916 | L164: =$K164*'Input and Output'!$C$30/SUM($K$2:$K$366) -> 0.1304597329
A165: 2016-06-12 | B165: ='Input and Output'!C198 -> 16.7 | C165: 1 | D165: =IF($C165<6,Lin_parameters_wd!B$9,Lin_parameters_wknd!B$10) -> 1.771938814 | E165: =IF($C165<6,Lin_parameters_wd!C$9,Lin_parameters_wknd!C$10) -> -0.0959847532 | F165: =IF($C165<6,Lin_parameters_wd!D$9,Lin_parameters_wknd!D$10) -> 0.4069947138 | G165: =IF($C165<6,Lin_parameters_wd!E$9,Lin_parameters_wknd!E$10) -> -0.0127564544 | H165: =IF($C165<6,Lin_parameters_wd!F$9,Lin_parameters_wknd!F$10) -> 16.4 | I165: 0.4069947138 | J165: -0.0127564544 | K165: 0.1939619254 | L165: =$K165*'Input and Output'!$C$30/SUM($K$2:$K$366) -> 0.2083036108
A166: 2016-06-13 | B166: ='Input and Output'!C199 -> 15.7 | C166: 2 | D166: =IF($C166<6,Lin_parameters_wd!B$9,Lin_parameters_wknd!B$10) -> 1.771938814 | E166: =IF($C166<6,Lin_parameters_wd!C$9,Lin_parameters_wknd!C$10) -> -0.0959847532 | F166: =IF($C166<6,Lin_parameters_wd!D$9,Lin_parameters_wknd!D$10) -> 0.4069947138 | G166: =IF($C166<6,Lin_parameters_wd!E$9,Lin_parameters_wknd!E$10) -> -0.0127564544 | H166: =IF($C166<6,Lin_parameters_wd!F$9,Lin_parameters_wknd!F$10) -> 16.4 | I166: 1.771938814 | J166: -0.0959847532 | K166: 0.2649781889 | L166: =$K166*'Input and Output'!$C$30/SUM($K$2:$K$366) -> 0.2845708685
A167: 2016-06-14 | B167: ='Input and Output'!C200 -> 16.4 | C167: 3 | D167: =IF($C167<6,Lin_parameters_wd!B$9,Lin_parameters_wknd!B$10) -> 1.771938814 | E167: =IF($C167<6,Lin_parameters_wd!C$9,Lin_parameters_wknd!C$10) -> -0.0959847532 | F167: =IF($C167<6,Lin_parameters_wd!D$9,Lin_parameters_wknd!D$10) -> 0.4069947138 | G167: =IF($C167<6,Lin_parameters_wd!E$9,Lin_parameters_wknd!E$10) -> -0.0127564544 | H167: =IF($C167<6,Lin_parameters_wd!F$9,Lin_parameters_wknd!F$10) -> 16.4 | I167: 0.4069947138 | J167: -0.0127564544 | K167: 0.1977888617 | L167: =$K167*'Input and Output'!$C$30/SUM($K$2:$K$366) -> 0.2124135136
A168: 2016-06-15 | B168: ='Input and Output'!C201 -> 15.5 | C168: 4 | D168: =IF($C168<6,Lin_parameters_wd!B$9,Lin_parameters_wknd!B$10) -> 1.771938814 | E168: =IF($C168<6,Lin_parameters_wd!C$9,Lin_parameters_wknd!C$10) -> -0.0959847532 | F168: =IF($C168<6,Lin_parameters_wd!D$9,Lin_parameters_wknd!D$10) -> 0.4069947138 | G168: =IF($C168<6,Lin_parameters_wd!E$9,Lin_parameters_wknd!E$10) -> -0.0127564544 | H168: =IF($C168<6,Lin_parameters_wd!F$9,Lin_parameters_wknd!F$10) -> 16.4 | I168: 1.771938814 | J168: -0.0959847532 | K168: 0.2841751396 | L168: =$K168*'Input and Output'!$C$30/SUM($K$2:$K$366) -> 0.3051872556
A169: 2016-06-16 | B169: ='Input and Output'!C202 -> 14.8 | C169: 5 | D169: =IF($C169<6,Lin_parameters_wd!B$9,Lin_parameters_wknd!B$10) -> 1.771938814 | E169: =IF($C169<6,Lin_parameters_wd!C$9,Lin_parameters_wknd!C$10) -> -0.0959847532 | F169: =IF($C169<6,Lin_parameters_wd!D$9,Lin_parameters_wknd!D$10) -> 0.4069947138 | G169: =IF($C169<6,Lin_parameters_wd!E$9,Lin_parameters_wknd!E$10) -> -0.0127564544 | H169: =IF($C169<6,Lin_parameters_wd!F$9,Lin_parameters_wknd!F$10) -> 16.4 | I169: 1.771938814 | J169: -0.0959847532 | K169: 0.3513644668 | L169: =$K169*'Input and Output'!$C$30/SUM($K$2:$K$366) -> 0.3773446104
A170: 2016-06-17 | B170: ='Input and Output'!C203 -> 16 | C170: 6 | D170: =IF($C170<6,Lin_parameters_wd!B$9,Lin_parameters_wknd!B$10) -> 1.311247513 | E170: =IF($C170<6,Lin_parameters_wd!C$9,Lin_parameters_wknd!C$10) -> -0.07531076536 | F170: =IF($C170<6,Lin_parameters_wd!D$9,Lin_parameters_wknd!D$10) -> 0.2952447362 | G170: =IF($C170<6,Lin_parameters_wd!E$9,Lin_parameters_wknd!E$10) -> -0.009762199134 | H170: =IF($C170<6,Lin_parameters_wd!F$9,Lin_parameters_wknd!F$10) -> 15.5 | I170: 0.2952447362 | J170: -0.009762199134 | K170: 0.13904955 | L170: =$K170*'Input and Output'!$C$30/SUM($K$2:$K$366) -> 0.1493309747
A171: 2016-06-18 | B171: ='Input and Output'!C204 -> 16.4 | C171: 7 | D171: =IF($C171<6,Lin_parameters_wd!B$9,Lin_parameters_wknd!B$10) -> 1.311247513 | E171: =IF($C171<6,Lin_parameters_wd!C$9,Lin_parameters_wknd!C$10) -> -0.07531076536 | F171: =IF($C171<6,Lin_parameters_wd!D$9,Lin_parameters_wknd!D$10) -> 0.2952447362 | G171: =IF($C171<6,Lin_parameters_wd!E$9,Lin_parameters_wknd!E$10) -> -0.009762199134 | H171: =IF($C171<6,Lin_parameters_wd!F$9,Lin_parameters_wknd!F$10) -> 15.5 | I171: 0.2952447362 | J171: -0.009762199134 | K171: 0.1351446704 | L171: =$K171*'Input and Output'!$C$30/SUM($K$2:$K$366) -> 0.1451373654
A172: 2016-06-19 | B172: ='Input and Output'!C205 -> 14.9 | C172: 1 | D172: =IF($C172<6,Lin_parameters_wd!B$9,Lin_parameters_wknd!B$10) -> 1.771938814 | E172: =IF($C172<6,Lin_parameters_wd!C$9,Lin_parameters_wknd!C$10) -> -0.0959847532 | F172: =IF($C172<6,Lin_parameters_wd!D$9,Lin_parameters_wknd!D$10) -> 0.4069947138 | G172: =IF($C172<6,Lin_parameters_wd!E$9,Lin_parameters_wknd!E$10) -> -0.0127564544 | H172: =IF($C172<6,Lin_parameters_wd!F$9,Lin_parameters_wknd!F$10) -> 16.4 | I172: 1.771938814 | J172: -0.0959847532 | K172: 0.3417659915 | L172: =$K172*'Input and Output'!$C$30/SUM($K$2:$K$366) -> 0.3670364169
A173: 2016-06-20 | B173: ='Input and Output'!C206 -> 15.7 | C173: 2 | D173: =IF($C173<6,Lin_parameters_wd!B$9,Lin_parameters_wknd!B$10) -> 1.771938814 | E173: =IF($C173<6,Lin_parameters_wd!C$9,Lin_parameters_wknd!C$10) -> -0.0959847532 | F173: =IF($C173<6,Lin_parameters_wd!D$9,Lin_parameters_wknd!D$10) -> 0.4069947138 | G173: =IF($C173<6,Lin_parameters_wd!E$9,Lin_parameters_wknd!E$10) -> -0.0127564544 | H173: =IF($C173<6,Lin_parameters_wd!F$9,Lin_parameters_wknd!F$10) -> 16.4 | I173: 1.771938814 | J173: -0.0959847532 | K173: 0.2649781889 | L173: =$K173*'Input and Output'!$C$30/SUM($K$2:$K$366) -> 0.2845708685
A174: 2016-06-21 | B174: ='Input and Output'!C207 -> 19.1 | C174: 3 | D174: =IF($C174<6,Lin_parameters_wd!B$9,Lin_parameters_wknd!B$10) -> 1.771938814 | E174: =IF($C174<6,Lin_parameters_wd!C$9,Lin_parameters_wknd!C$10) -> -0.0959847532 | F174: =IF($C174<6,Lin_parameters_wd!D$9,Lin_parameters_wknd!D$10) -> 0.4069947138 | G174: =IF($C174<6,Lin_parameters_wd!E$9,Lin_parameters_wknd!E$10) -> -0.0127564544 | H174: =IF($C174<6,Lin_parameters_wd!F$9,Lin_parameters_wknd!F$10) -> 16.4 | I174: 0.4069947138 | J174: -0.0127564544 | K174: 0.1633464348 | L174: =$K174*'Input and Output'!$C$30/SUM($K$2:$K$366) -> 0.1754243887
A175: 2016-06-22 | B175: ='Input and Output'!C208 -> 22.2 | C175: 4 | D175: =IF($C175<6,Lin_parameters_wd!B$9,Lin_parameters_wknd!B$10) -> 1.771938814 | E175: =IF($C175<6,Lin_parameters_wd!C$9,Lin_parameters_wknd!C$10) -> -0.0959847532 | F175: =IF($C175<6,Lin_parameters_wd!D$9,Lin_parameters_wknd!D$10) -> 0.4069947138 | G175: =IF($C175<6,Lin_parameters_wd!E$9,Lin_parameters_wknd!E$10) -> -0.0127564544 | H175: =IF($C175<6,Lin_parameters_wd!F$9,Lin_parameters_wknd!F$10) -> 16.4 | I175: 0.4069947138 | J175: -0.0127564544 | K175: 0.1238014262 | L175: =$K175*'Input and Output'!$C$30/SUM($K$2:$K$366) -> 0.1329553934
A176: 2016-06-23 | B176: ='Input and Output'!C209 -> 26.3 | C176: 5 | D176: =IF($C176<6,Lin_parameters_wd!B$9,Lin_parameters_wknd!B$10) -> 1.771938814 | E176: =IF($C176<6,Lin_parameters_wd!C$9,Lin_parameters_wknd!C$10) -> -0.0959847532 | F176: =IF($C176<6,Lin_parameters_wd!D$9,Lin_parameters_wknd!D$10) -> 0.4069947138 | G176: =IF($C176<6,Lin_parameters_wd!E$9,Lin_parameters_wknd!E$10) -> -0.0127564544 | H176: =IF($C176<6,Lin_parameters_wd!F$9,Lin_parameters_wknd!F$10) -> 16.4 | I176: 0.4069947138 | J176: -0.0127564544 | K176: 0.07149996315 | L176: =$K176*'Input and Output'!$C$30/SUM($K$2:$K$366) -> 0.0767867223
A177: 2016-06-24 | B177: ='Input and Output'!C210 -> 24.4 | C177: 6 | D177: =IF($C177<6,Lin_parameters_wd!B$9,Lin_parameters_wknd!B$10) -> 1.311247513 | E177: =IF($C177<6,Lin_parameters_wd!C$9,Lin_parameters_wknd!C$10) -> -0.07531076536 | F177: =IF($C177<6,Lin_parameters_wd!D$9,Lin_parameters_wknd!D$10) -> 0.2952447362 | G177: =IF($C177<6,Lin_parameters_wd!E$9,Lin_parameters_wknd!E$10) -> -0.009762199134 | H177: =IF($C177<6,Lin_parameters_wd!F$9,Lin_parameters_wknd!F$10) -> 15.5 | I177: 0.2952447362 | J177: -0.009762199134 | K177: 0.05704707732 | L177: =$K177*'Input and Output'!$C$30/SUM($K$2:$K$366) -> 0.06126517961
A178: 2016-06-25 | B178: ='Input and Output'!C211 -> 19.2 | C178: 7 | D178: =IF($C178<6,Lin_parameters_wd!B$9,Lin_parameters_wknd!B$10) -> 1.311247513 | E178: =IF($C178<6,Lin_parameters_wd!C$9,Lin_parameters_wknd!C$10) -> -0.07531076536 | F178: =IF($C178<6,Lin_parameters_wd!D$9,Lin_parameters_wknd!D$10) -> 0.2952447362 | G178: =IF($C178<6,Lin_parameters_wd!E$9,Lin_parameters_wknd!E$10) -> -0.009762199134 | H178: =IF($C178<6,Lin_parameters_wd!F$9,Lin_parameters_wknd!F$10) -> 15.5 | I178: 0.2952447362 | J178: -0.009762199134 | K178: 0.1078105128 | L178: =$K178*'Input and Output'!$C$30/SUM($K$2:$K$366) -> 0.1157821004
A179: 2016-06-26 | B179: ='Input and Output'!C212 -> 17.6 | C179: 1 | D179: =IF($C179<6,Lin_parameters_wd!B$9,Lin_parameters_wknd!B$10) -> 1.771938814 | E179: =IF($C179<6,Lin_parameters_wd!C$9,Lin_parameters_wknd!C$10) -> -0.0959847532 | F179: =IF($C179<6,Lin_parameters_wd!D$9,Lin_parameters_wknd!D$10) -> 0.4069947138 | G179: =IF($C179<6,Lin_parameters_wd!E$9,Lin_parameters_wknd!E$10) -> -0.0127564544 | H179: =IF($C179<6,Lin_parameters_wd!F$9,Lin_parameters_wknd!F$10) -> 16.4 | I179: 0.4069947138 | J179: -0.0127564544 | K179: 0.1824811164 | L179: =$K179*'Input and Output'!$C$30/SUM($K$2:$K$366) -> 0.1959739025
A180: 2016-06-27 | B180: ='Input and Output'!C213 -> 16.5 | C180: 2 | D180: =IF($C180<6,Lin_parameters_wd!B$9,Lin_parameters_wknd!B$10) -> 1.771938814 | E180: =IF($C180<6,Lin_parameters_wd!C$9,Lin_parameters_wknd!C$10) -> -0.0959847532 | F180: =IF($C180<6,Lin_parameters_wd!D$9,Lin_parameters_wknd!D$10) -> 0.4069947138 | G180: =IF($C180<6,Lin_parameters_wd!E$9,Lin_parameters_wknd!E$10) -> -0.0127564544 | H180: =IF($C180<6,Lin_parameters_wd!F$9,Lin_parameters_wknd!F$10) -> 16.4 | I180: 0.4069947138 | J180: -0.0127564544 | K180: 0.1965132162 | L180: =$K180*'Input and Output'!$C$30/SUM($K$2:$K$366) -> 0.211043546
A181: 2016-06-28 | B181: ='Input and Output'!C214 -> 18.6 | C181: 3 | D181: =IF($C181<6,Lin_parameters_wd!B$9,Lin_parameters_wknd!B$10) -> 1.771938814 | E181: =IF($C181<6,Lin_parameters_wd!C$9,Lin_parameters_wknd!C$10) -> -0.0959847532 | F181: =IF($C181<6,Lin_parameters_wd!D$9,Lin_parameters_wknd!D$10) -> 0.4069947138 | G181: =IF($C181<6,Lin_parameters_wd!E$9,Lin_parameters_wknd!E$10) -> -0.0127564544 | H181: =IF($C181<6,Lin_parameters_wd!F$9,Lin_parameters_wknd!F$10) -> 16.4 | I181: 0.4069947138 | J181: -0.0127564544 | K181: 0.169724662 | L181: =$K181*'Input and Output'!$C$30/SUM($K$2:$K$366) -> 0.1822742267
A182: 2016-06-29 | B182: ='Input and Output'!C215 -> 20.5 | C182: 4 | D182: =IF($C182<6,Lin_parameters_wd!B$9,Lin_parameters_wknd!B$10) -> 1.771938814 | E182: =IF($C182<6,Lin_parameters_wd!C$9,Lin_parameters_wknd!C$10) -> -0.0959847532 | F182: =IF($C182<6,Lin_parameters_wd!D$9,Lin_parameters_wknd!D$10) -> 0.4069947138 | G182: =IF($C182<6,Lin_parameters_wd!E$9,Lin_parameters_wknd!E$10) -> -0.0127564544 | H182: =IF($C182<6,Lin_parameters_wd!F$9,Lin_parameters_wknd!F$10) -> 16.4 | I182: 0.4069947138 | J182: -0.0127564544 | K182: 0.1454873986 | L182: =$K182*'Input and Output'!$C$30/SUM($K$2:$K$366) -> 0.1562448425
A183: 2016-06-30 | B183: ='Input and Output'!C216 -> 19.1 | C183: 5 | D183: =IF($C183<6,Lin_parameters_wd!B$9,Lin_parameters_wknd!B$10) -> 1.771938814 | E183: =IF($C183<6,Lin_parameters_wd!C$9,Lin_parameters_wknd!C$10) -> -0.0959847532 | F183: =IF($C183<6,Lin_parameters_wd!D$9,Lin_parameters_wknd!D$10) -> 0.4069947138 | G183: =IF($C183<6,Lin_parameters_wd!E$9,Lin_parameters_wknd!E$10) -> -0.0127564544 | H183: =IF($C183<6,Lin_parameters_wd!F$9,Lin_parameters_wknd!F$10) -> 16.4 | I183: 0.4069947138 | J183: -0.0127564544 | K183: 0.1633464348 | L183: =$K183*'Input and Output'!$C$30/SUM($K$2:$K$366) -> 0.1754243887
A184: 2016-07-01 | B184: ='Input and Output'!C217 -> 21 | C184: 6 | D184: =IF($C184<6,Lin_parameters_wd!B$9,Lin_parameters_wknd!B$10) -> 1.311247513 | E184: =IF($C184<6,Lin_parameters_wd!C$9,Lin_parameters_wknd!C$10) -> -0.07531076536 | F184: =IF($C184<6,Lin_parameters_wd!D$9,Lin_parameters_wknd!D$10) -> 0.2952447362 | G184: =IF($C184<6,Lin_parameters_wd!E$9,Lin_parameters_wknd!E$10) -> -0.009762199134 | H184: =IF($C184<6,Lin_parameters_wd!F$9,Lin_parameters_wknd!F$10) -> 15.5 | I184: 0.2952447362 | J184: -0.009762199134 | K184: 0.09023855438 | L184: =$K184*'Input and Output'!$C$30/SUM($K$2:$K$366) -> 0.09691085856
A185: 2016-07-02 | B185: ='Input and Output'!C218 -> 16.6 | C185: 7 | D185: =IF($C185<6,Lin_parameters_wd!B$9,Lin_parameters_wknd!B$10) -> 1.311247513 | E185: =IF($C185<6,Lin_parameters_wd!C$9,Lin_parameters_wknd!C$10) -> -0.07531076536 | F185: =IF($C185<6,Lin_parameters_wd!D$9,Lin_parameters_wknd!D$10) -> 0.2952447362 | G185: =IF($C185<6,Lin_parameters_wd!E$9,Lin_parameters_wknd!E$10) -> -0.009762199134 | H185: =IF($C185<6,Lin_parameters_wd!F$9,Lin_parameters_wknd!F$10) -> 15.5 | I185: 0.2952447362 | J185: -0.009762199134 | K185: 0.1331922306 | L185: =$K185*'Input and Output'!$C$30/SUM($K$2:$K$366) -> 0.1430405607
A186: 2016-07-03 | B186: ='Input and Output'!C219 -> 15.2 | C186: 1 | D186: =IF($C186<6,Lin_parameters_wd!B$9,Lin_parameters_wknd!B$10) -> 1.771938814 | E186: =IF($C186<6,Lin_parameters_wd!C$9,Lin_parameters_wknd!C$10) -> -0.0959847532 | F186: =IF($C186<6,Lin_parameters_wd!D$9,Lin_parameters_wknd!D$10) -> 0.4069947138 | G186: =IF($C186<6,Lin_parameters_wd!E$9,Lin_parameters_wknd!E$10) -> -0.0127564544 | H186: =IF($C186<6,Lin_parameters_wd!F$9,Lin_parameters_wknd!F$10) -> 16.4 | I186: 1.771938814 | J186: -0.0959847532 | K186: 0.3129705655 | L186: =$K186*'Input and Output'!$C$30/SUM($K$2:$K$366) -> 0.3361118362
A187: 2016-07-04 | B187: ='Input and Output'!C220 -> 17.6 | C187: 2 | D187: =IF($C187<6,Lin_parameters_wd!B$9,Lin_parameters_wknd!B$10) -> 1.771938814 | E187: =IF($C187<6,Lin_parameters_wd!C$9,Lin_parameters_wknd!C$10) -> -0.0959847532 | F187: =IF($C187<6,Lin_parameters_wd!D$9,Lin_parameters_wknd!D$10) -> 0.4069947138 | G187: =IF($C187<6,Lin_parameters_wd!E$9,Lin_parameters_wknd!E$10) -> -0.0127564544 | H187: =IF($C187<6,Lin_parameters_wd!F$9,Lin_parameters_wknd!F$10) -> 16.4 | I187: 0.4069947138 | J187: -0.0127564544 | K187: 0.1824811164 | L187: =$K187*'Input and Output'!$C$30/SUM($K$2:$K$366) -> 0.1959739025
A188: 2016-07-05 | B188: ='Input and Output'!C221 -> 18.4 | C188: 3 | D188: =IF($C188<6,Lin_parameters_wd!B$9,Lin_parameters_wknd!B$10) -> 1.771938814 | E188: =IF($C188<6,Lin_parameters_wd!C$9,Lin_parameters_wknd!C$10) -> -0.0959847532 | F188: =IF($C188<6,Lin_parameters_wd!D$9,Lin_parameters_wknd!D$10) -> 0.4069947138 | G188: =IF($C188<6,Lin_parameters_wd!E$9,Lin_parameters_wknd!E$10) -> -0.0127564544 | H188: =IF($C188<6,Lin_parameters_wd!F$9,Lin_parameters_wknd!F$10) -> 16.4 | I188: 0.4069947138 | J188: -0.0127564544 | K188: 0.1722759529 | L188: =$K188*'Input and Output'!$C$30/SUM($K$2:$K$366) -> 0.1850141618
A189: 2016-07-06 | B189: ='Input and Output'!C222 -> 16.6 | C189: 4 | D189: =IF($C189<6,Lin_parameters_wd!B$9,Lin_parameters_wknd!B$10) -> 1.771938814 | E189: =IF($C189<6,Lin_parameters_wd!C$9,Lin_parameters_wknd!C$10) -> -0.0959847532 | F189: =IF($C189<6,Lin_parameters_wd!D$9,Lin_parameters_wknd!D$10) -> 0.4069947138 | G189: =IF($C189<6,Lin_parameters_wd!E$9,Lin_parameters_wknd!E$10) -> -0.0127564544 | H189: =IF($C189<6,Lin_parameters_wd!F$9,Lin_parameters_wknd!F$10) -> 16.4 | I189: 0.4069947138 | J189: -0.0127564544 | K189: 0.1952375708 | L189: =$K189*'Input and Output'!$C$30/SUM($K$2:$K$366) -> 0.2096735784
A190: 2016-07-07 | B190: ='Input and Output'!C223 -> 18.4 | C190: 5 | D190: =IF($C190<6,Lin_parameters_wd!B$9,Lin_parameters_wknd!B$10) -> 1.771938814 | E190: =IF($C190<6,Lin_parameters_wd!C$9,Lin_parameters_wknd!C$10) -> -0.0959847532 | F190: =IF($C190<6,Lin_parameters_wd!D$9,Lin_parameters_wknd!D$10) -> 0.4069947138 | G190: =IF($C190<6,Lin_parameters_wd!E$9,Lin_parameters_wknd!E$10) -> -0.0127564544 | H190: =IF($C190<6,Lin_parameters_wd!F$9,Lin_parameters_wknd!F$10) -> 16.4 | I190: 0.4069947138 | J190: -0.0127564544 | K190: 0.1722759529 | L190: =$K190*'Input and Output'!$C$30/SUM($K$2:$K$366) -> 0.1850141618
A191: 2016-07-08 | B191: ='Input and Output'!C224 -> 20.6 | C191: 6 | D191: =IF($C191<6,Lin_parameters_wd!B$9,Lin_parameters_wknd!B$10) -> 1.311247513 | E191: =IF($C191<6,Lin_parameters_wd!C$9,Lin_parameters_wknd!C$10) -> -0.07531076536 | F191: =IF($C191<6,Lin_parameters_wd!D$9,Lin_parameters_wknd!D$10) -> 0.2952447362 | G191: =IF($C191<6,Lin_parameters_wd!E$9,Lin_parameters_wknd!E$10) -> -0.009762199134 | H191: =IF($C191<6,Lin_parameters_wd!F$9,Lin_parameters_wknd!F$10) -> 15.5 | I191: 0.2952447362 | J191: -0.009762199134 | K191: 0.09414343403 | L191: =$K191*'Input and Output'!$C$30/SUM($K$2:$K$366) -> 0.1011044679
A192: 2016-07-09 | B192: ='Input and Output'!C225 -> 20.9 | C192: 7 | D192: =IF($C192<6,Lin_parameters_wd!B$9,Lin_parameters_wknd!B$10) -> 1.311247513 | E192: =IF($C192<6,Lin_parameters_wd!C$9,Lin_parameters_wknd!C$10) -> -0.07531076536 | F192: =IF($C192<6,Lin_parameters_wd!D$9,Lin_parameters_wknd!D$10) -> 0.2952447362 | G192: =IF($C192<6,Lin_parameters_wd!E$9,Lin_parameters_wknd!E$10) -> -0.009762199134 | H192: =IF($C192<6,Lin_parameters_wd!F$9,Lin_parameters_wknd!F$10) -> 15.5 | I192: 0.2952447362 | J192: -0.009762199134 | K192: 0.09121477429 | L192: =$K192*'Input and Output'!$C$30/SUM($K$2:$K$366) -> 0.09795926088
A193: 2016-07-10 | B193: ='Input and Output'!C226 -> 24 | C193: 1 | D193: =IF($C193<6,Lin_parameters_wd!B$9,Lin_parameters_wknd!B$10) -> 1.771938814 | E193: =IF($C193<6,Lin_parameters_wd!C$9,Lin_parameters_wknd!C$10) -> -0.0959847532 | F193: =IF($C193<6,Lin_parameters_wd!D$9,Lin_parameters_wknd!D$10) -> 0.4069947138 | G193: =IF($C193<6,Lin_parameters_wd!E$9,Lin_parameters_wknd!E$10) -> -0.0127564544 | H193: =IF($C193<6,Lin_parameters_wd!F$9,Lin_parameters_wknd!F$10) -> 16.4 | I193: 0.4069947138 | J193: -0.0127564544 | K193: 0.1008398083 | L193: =$K193*'Input and Output'!$C$30/SUM($K$2:$K$366) -> 0.1082959768
A194: 2016-07-11 | B194: ='Input and Output'!C227 -> 23.3 | C194: =WEEKDAY(A194) -> 2 | D194: =IF($C194<6,Lin_parameters_wd!B$9,Lin_parameters_wknd!B$10) -> 1.771938814 | E194: =IF($C194<6,Lin_parameters_wd!C$9,Lin_parameters_wknd!C$10) -> -0.0959847532 | F194: =IF($C194<6,Lin_parameters_wd!D$9,Lin_parameters_wknd!D$10) -> 0.4069947138 | G194: =IF($C194<6,Lin_parameters_wd!E$9,Lin_parameters_wknd!E$10) -> -0.0127564544 | H194: =IF($C194<6,Lin_parameters_wd!F$9,Lin_parameters_wknd!F$10) -> 16.4 | I194: 0.4069947138 | J194: -0.0127564544 | K194: 0.1097693263 | L194: =$K194*'Input and Output'!$C$30/SUM($K$2:$K$366) -> 0.11788575
A195: 2016-07-12 | B195: ='Input and Output'!C228 -> 20.7 | C195: 3 | D195: =IF($C195<6,Lin_parameters_wd!B$9,Lin_parameters_wknd!B$10) -> 1.771938814 | E195: =IF($C195<6,Lin_parameters_wd!C$9,Lin_parameters_wknd!C$10) -> -0.0959847532 | F195: =IF($C195<6,Lin_parameters_wd!D$9,Lin_parameters_wknd!D$10) -> 0.4069947138 | G195: =IF($C195<6,Lin_parameters_wd!E$9,Lin_parameters_wknd!E$10) -> -0.0127564544 | H195: =IF($C195<6,Lin_parameters_wd!F$9,Lin_parameters_wknd!F$10) -> 16.4 | I195: =IF($B195<$H195,$D195,$F195) -> 0.4069947138 | J195: =IF($B195<$H195,$E195,$G195) -> -0.0127564544 | K195: =MAX($I195+$J195*$B195,0) -> 0.1429361078 | L195: =$K195*'Input and Output'!$C$30/SUM($K$2:$K$366) -> 0.1535049073
A196: =A195+1 -> 2016-07-13 | B196: ='Input and Output'!C229 -> 17 | C196: 4 | D196: =IF($C196<6,Lin_parameters_wd!B$9,Lin_parameters_wknd!B$10) -> 1.771938814 | E196: =IF($C196<6,Lin_parameters_wd!C$9,Lin_parameters_wknd!C$10) -> -0.0959847532 | F196: =IF($C196<6,Lin_parameters_wd!D$9,Lin_parameters_wknd!D$10) -> 0.4069947138 | G196: =IF($C196<6,Lin_parameters_wd!E$9,Lin_parameters_wknd!E$10) -> -0.0127564544 | H196: =IF($C196<6,Lin_parameters_wd!F$9,Lin_parameters_wknd!F$10) -> 16.4 | I196: 0.4069947138 | J196: -0.0127564544 | K196: 0.190134989 | L196: =$K196*'Input and Output'!$C$30/SUM($K$2:$K$366) -> 0.2041937081
A197: 2016-07-14 | B197: ='Input and Output'!C230 -> 15.1 | C197: 5 | D197: =IF($C197<6,Lin_parameters_wd!B$9,Lin_parameters_wknd!B$10) -> 1.771938814 | E197: =IF($C197<6,Lin_parameters_wd!C$9,Lin_parameters_wknd!C$10) -> -0.0959847532 | F197: =IF($C197<6,Lin_parameters_wd!D$9,Lin_parameters_wknd!D$10) -> 0.4069947138 | G197: =IF($C197<6,Lin_parameters_wd!E$9,Lin_parameters_wknd!E$10) -> -0.0127564544 | H197: =IF($C197<6,Lin_parameters_wd!F$9,Lin_parameters_wknd!F$10) -> 16.4 | I197: 1.771938814 | J197: -0.0959847532 | K197: 0.3225690408 | L197: =$K197*'Input and Output'!$C$30/SUM($K$2:$K$366) -> 0.3464200298
A198: 2016-07-15 | B198: ='Input and Output'!C231 -> 15.9 | C198: 6 | D198: =IF($C198<6,Lin_parameters_wd!B$9,Lin_parameters_wknd!B$10) -> 1.311247513 | E198: =IF($C198<6,Lin_parameters_wd!C$9,Lin_parameters_wknd!C$10) -> -0.07531076536 | F198: =IF($C198<6,Lin_parameters_wd!D$9,Lin_parameters_wknd!D$10) -> 0.2952447362 | G198: =IF($C198<6,Lin_parameters_wd!E$9,Lin_parameters_wknd!E$10) -> -0.009762199134 | H198: =IF($C198<6,Lin_parameters_wd!F$9,Lin_parameters_wknd!F$10) -> 15.5 | I198: 0.2952447362 | J198: -0.009762199134 | K198: 0.14002577 | L198: =$K198*'Input and Output'!$C$30/SUM($K$2:$K$366) -> 0.150379377
A199: 2016-07-16 | B199: ='Input and Output'!C232 -> 18.3 | C199: 7 | D199: =IF($C199<6,Lin_parameters_wd!B$9,Lin_parameters_wknd!B$10) -> 1.311247513 | E199: =IF($C199<6,Lin_parameters_wd!C$9,Lin_parameters_wknd!C$10) -> -0.07531076536 | F199: =IF($C199<6,Lin_parameters_wd!D$9,Lin_parameters_wknd!D$10) -> 0.2952447362 | G199: =IF($C199<6,Lin_parameters_wd!E$9,Lin_parameters_wknd!E$10) -> -0.009762199134 | H199: =IF($C199<6,Lin_parameters_wd!F$9,Lin_parameters_wknd!F$10) -> 15.5 | I199: 0.2952447362 | J199: -0.009762199134 | K199: 0.116596492 | L199: =$K199*'Input and Output'!$C$30/SUM($K$2:$K$366) -> 0.1252177213
A200: 2016-07-17 | B200: ='Input and Output'!C233 -> 20.8 | C200: 1 | D200: =IF($C200<6,Lin_parameters_wd!B$9,Lin_parameters_wknd!B$10) -> 1.771938814 | E200: =IF($C200<6,Lin_parameters_wd!C$9,Lin_parameters_wknd!C$10) -> -0.0959847532 | F200: =IF($C200<6,Lin_parameters_wd!D$9,Lin_parameters_wknd!D$10) -> 0.4069947138 | G200: =IF($C200<6,Lin_parameters_wd!E$9,Lin_parameters_wknd!E$10) -> -0.0127564544 | H200: =IF($C200<6,Lin_parameters_wd!F$9,Lin_parameters_wknd!F$10) -> 16.4 | I200: 0.4069947138 | J200: -0.0127564544 | K200: 0.1416604623 | L200: =$K200*'Input and Output'!$C$30/SUM($K$2:$K$366) -> 0.1521349397
... 167 more rows

Sheet Lin_parameters_wd
A1: Linear regregression paramaters for working days:
B2: b_h | C2: m_h | D2: b_w | E2: m_w | F2: t_hl
A3: 0 | B3: 1.085192073 | C3: -0.01544218835 | D3: 1.060986187 | E3: -0.007095330991 | F3: 2.9
A4: 1 | B4: 1.469535126 | C4: -0.05875924024 | D4: 0.677907865 | E4: -0.01326342062 | F4: 17.4
A5: 2 | B5: 1.771938814 | C5: -0.0959847532 | D5: 0.4069947138 | E5: -0.0127564544 | F5: 16.4
A6: 3 | B6: 2.540402509 | C6: -0.1780162497 | D6: 0.5210410288 | E6: -0.02147660005 | F6: 12.9
A7: Linear regression paramaters for selected working day cluster:
B8: b_h | C8: m_h | D8: b_w | E8: m_w | F8: t_hl
A9: =VLOOKUP('Input and Output'!$C$28,Lin_parameters_wd!$A$2:$F$6,1,FALSE) -> 2 | B9: =VLOOKUP('Input and Output'!$C$28,Lin_parameters_wd!$A$2:$F$6,2,FALSE) -> 1.771938814 | C9: =VLOOKUP('Input and Output'!$C$28,Lin_parameters_wd!$A$2:$F$6,3,FALSE) -> -0.0959847532 | D9: =VLOOKUP('Input and Output'!$C$28,Lin_parameters_wd!$A$2:$F$6,4,FALSE) -> 0.4069947138 | E9: =VLOOKUP('Input and Output'!$C$28,Lin_parameters_wd!$A$2:$F$6,5,FALSE) -> -0.0127564544 | F9: =VLOOKUP('Input and Output'!$C$28,Lin_parameters_wd!$A$2:$F$6,6,FALSE) -> 16.4

Sheet Lin_parameters_wknd
A1: Linear regregression paramaters for weekends and holidays:
B2: b_h | C2: m_h | D2: b_w | E2: m_w | F2: t_hl
A3: 0 | B3: 0.8813667549 | C3: -0.0123674387 | D3: 0.6660929729 | E3: -0.00034097043 | F3: 17.9
A4: 1 | B4: 0.4052911199 | C4: -0.01322632301 | D4: 0.1960725514 | E4: -0.0006227947792 | F4: 16.6
A5: 2 | B5: 1.479156966 | C5: -0.06611992083 | D5: 0.6527442346 | E5: -0.01603430073 | F5: 16.5
A6: 3 | B6: 1.311247513 | C6: -0.07531076536 | D6: 0.2952447362 | E6: -0.009762199134 | F6: 15.5
A7: 4 | B7: 1.942495648 | C7: -0.1200596026 | D7: 0.444876766 | E7: -0.01748296683 | F7: 14.6
A8: Linear regression paramaters for selected weekend and holiday cluster:
B9: b_h | C9: m_h | D9: b_w | E9: m_w | F9: t_hl
A10: =VLOOKUP('Input and Output'!$C$29,Lin_parameters_wknd!$A$2:$F$7,1,FALSE) -> 3 | B10: =VLOOKUP('Input and Output'!$C$29,Lin_parameters_wknd!$A$2:$F$7,2,FALSE) -> 1.311247513 | C10: =VLOOKUP('Input and Output'!$C$29,Lin_parameters_wknd!$A$2:$F$7,3,FALSE) -> -0.07531076536 | D10: =VLOOKUP('Input and Output'!$C$29,Lin_parameters_wknd!$A$2:$F$7,4,FALSE) -> 0.2952447362 | E10: =VLOOKUP('Input and Output'!$C$29,Lin_parameters_wknd!$A$2:$F$7,5,FALSE) -> -0.009762199134 | F10: =VLOOKUP('Input and Output'!$C$29,Lin_parameters_wknd!$A$2:$F$7,6,FALSE) -> 15.5
